Workbook

Sheet Main
B10: 2024-08-20
B12: Sheet No. | C12: Template Name | D12: Summary
B13: 1 | C13: Future Intra | D13: For Intraday trading in F&O segment
B14: 2 | C14: Cash Intra | D14: For Intraday trading in cash market segment
B15: 3 | C15: Mid-cap Intra | D15: For Intraday trading in Mid-cap stocks
B16: 4 | C16: Bulk Deals | D16: Reveals Bulk Deals carried on NSE & BSE
B17: 5 | C17: Call Tracker
K27: `

Sheet Future Intra
M5: Back to Main Page
A6: FOR INTRA DAY TRADING | L6: =Main!B10 -> 2024-08-20
A9: Sr.no | B9: Sector | C9: Scrip | D9: Expiry Date | E9: CLOSE RATE | F9: Pivot Point | G9: Supports | J9: Resistances
E10: Point | F10: Point | G10: S1 | H10: S2 | I10: S3 | J10: R1 | K10: R2 | L10: R3 | M10: HIGH | N10: LOW | O10: OI | P10: % Change in OI
A11: 1 | B11: Index | C11: NIFTY | D11: 2024-08-29 | E11: 24595.75 | F11: 24596.83 | G11: 24531.92 | H11: 24468.08 | I11: 24403.17 | J11: 24660.67 | K11: 24725.58 | L11: 24789.42 | M11: 24661.75 | N11: 24533 | O11: 12911175 | P11: -1.97%
A12: 2 | B12: Index | C12: BANKNIFTY | D12: 2024-08-28 | E12: 50485.25 | F12: 50575.67 | G12: 50336.58 | H12: 50187.92 | I12: 49948.83 | J12: 50724.33 | K12: 50963.42 | L12: 51112.08 | M12: 50814.75 | N12: 50427 | O12: 3796935 | P12: 5.34%
A13: 3 | B13: Index | C13: FINNIFTY | D13: 2024-08-27 | E13: 22975.35 | F13: 23000.40 | G13: 22891.05 | H13: 22806.75 | I13: 22697.40 | J13: 23084.70 | K13: 23194.05 | L13: 23278.35 | M13: 23109.75 | N13: 22916.1 | O13: 94300 | P13: -7.59%
A14: 4 | B14: Index | C14: MIDCPNIFTY | D14: 2024-08-26 | E14: 12757.45 | F14: 12754.05 | G14: 12681.60 | H14: 12605.75 | I14: 12533.30 | J14: 12829.90 | K14: 12902.35 | L14: 12978.20 | M14: 12826.5 | N14: 12678.2 | O14: 2399150 | P14: 1.01%
A15: 5 | B15: Index | C15: NIFTYNXT50 | D15: 2024-08-30 | E15: 73469.05 | F15: 73444.98 | G15: 73225.12 | H15: 72981.18 | I15: 72761.32 | J15: 73688.92 | K15: 73908.78 | L15: 74152.72 | M15: 73664.85 | N15: 73201.05 | O15: 12610 | P15: -2.40%
A16: 6 | B16: Chemicals | C16: AARTIIND | D16: 2024-08-29 | E16: 621.40 | F16: 612.92 | G16: 600.83 | H16: 580.27 | I16: 568.18 | J16: 633.48 | K16: 645.57 | L16: 666.13 | M16: 625 | N16: 592.35 | O16: 16019000 | P16: -4.51%
A17: 7 | B17: Capital_Goods | C17: ABB | D17: 2024-08-29 | E17: 7834.65 | F17: 7881.20 | G17: 7769.00 | H17: 7703.35 | I17: 7591.15 | J17: 7946.85 | K17: 8059.05 | L17: 8124.70 | M17: 7993.4 | N17: 7815.55 | O17: 1840500 | P17: 1.31%
A18: 8 | B18: Pharma | C18: ABBOTINDIA | D18: 2024-08-29 | E18: 28097.10 | F18: 28003.70 | G18: 27711.50 | H18: 27325.90 | I18: 27033.70 | J18: 28389.30 | K18: 28681.50 | L18: 29067.10 | M18: 28295.9 | N18: 27618.1 | O18: 140400 | P18: -0.86%
A19: 9 | B19: Finance | C19: ABCAPITAL | D19: 2024-08-29 | E19: 213.60 | F19: 215.02 | G19: 211.18 | H19: 208.77 | I19: 204.93 | J19: 217.43 | K19: 221.27 | L19: 223.68 | M19: 218.85 | N19: 212.6 | O19: 77830200 | P19: 0.80%
A20: 10 | B20: Textile | C20: ABFRL | D20: 2024-08-29 | E20: 322.05 | F20: 321.58 | G20: 319.67 | H20: 317.28 | I20: 315.37 | J20: 323.97 | K20: 325.88 | L20: 328.27 | M20: 323.5 | N20: 319.2 | O20: 48128600 | P20: -0.39%
A21: 11 | B21: Cement | C21: ACC | D21: 2024-08-29 | E21: 2353.05 | F21: 2346.92 | G21: 2335.83 | H21: 2318.62 | I21: 2307.53 | J21: 2364.13 | K21: 2375.22 | L21: 2392.43 | M21: 2358 | N21: 2329.7 | O21: 5073900 | P21: 0.70%
A22: 12 | B22: Infrastructure | C22: ADANIENT | D22: 2024-08-29 | E22: 3110.25 | F22: 3114.35 | G22: 3091.65 | H22: 3073.05 | I22: 3050.35 | J22: 3132.95 | K22: 3155.65 | L22: 3174.25 | M22: 3137.05 | N22: 3095.75 | O22: 21461700 | P22: -1.24%
A23: 13 | B23: Infrastructure | C23: ADANIPORTS | D23: 2024-08-29 | E23: 1499.10 | F23: 1499.20 | G23: 1490.65 | H23: 1482.20 | I23: 1473.65 | J23: 1507.65 | K23: 1516.20 | L23: 1524.65 | M23: 1507.75 | N23: 1490.75 | O23: 29233200 | P23: -0.61%
A24: 14 | B24: Pharma | C24: ALKEM | D24: 2024-08-29 | E24: 5756.20 | F24: 5740.08 | G24: 5702.17 | H24: 5648.13 | I24: 5610.22 | J24: 5794.12 | K24: 5832.03 | L24: 5886.07 | M24: 5778 | N24: 5686.05 | O24: 2132300 | P24: 1.84%
A25: 15 | B25: Cement | C25: AMBUJACEM | D25: 2024-08-29 | E25: 634.10 | F25: 637.18 | G25: 629.37 | H25: 624.63 | I25: 616.82 | J25: 641.92 | K25: 649.73 | L25: 654.47 | M25: 645 | N25: 632.45 | O25: 33389100 | P25: 2.84%
A26: 16 | B26: Pharma | C26: APOLLOHOSP | D26: 2024-08-29 | E26: 6723.85 | F26: 6673.95 | G26: 6617.90 | H26: 6511.95 | I26: 6455.90 | J26: 6779.90 | K26: 6835.95 | L26: 6941.90 | M26: 6730 | N26: 6568 | O26: 1551250 | P26: -2.41%
A27: 17 | B27: Automobile | C27: APOLLOTYRE | D27: 2024-08-29 | E27: 484.20 | F27: 485.43 | G27: 481.82 | H27: 479.43 | I27: 475.82 | J27: 487.82 | K27: 491.43 | L27: 493.82 | M27: 489.05 | N27: 483.05 | O27: 16629400 | P27: 5.25%
A28: 18 | B28: Automobile | C28: ASHOKLEY | D28: 2024-08-29 | E28: 257.45 | F28: 257.57 | G28: 255.38 | H28: 253.32 | I28: 251.13 | J28: 259.63 | K28: 261.82 | L28: 263.88 | M28: 259.75 | N28: 255.5 | O28: 59140000 | P28: -0.19%
A29: 19 | B29: FMCG | C29: ASIANPAINT | D29: 2024-08-29 | E29: 3080.75 | F29: 3071.65 | G29: 3050.35 | H29: 3019.95 | I29: 2998.65 | J29: 3102.05 | K29: 3123.35 | L29: 3153.75 | M29: 3092.95 | N29: 3041.25 | O29: 11052800 | P29: 1.98%
A30: 20 | B30: Capital_Goods | C30: ASTRAL | D30: 2024-08-29 | E30: 1891.40 | F30: 1901.15 | G30: 1867.40 | H30: 1843.40 | I30: 1809.65 | J30: 1925.15 | K30: 1958.90 | L30: 1982.90 | M30: 1934.9 | N30: 1877.15 | O30: 5144239 | P30: 5.30%
A31: 21 | B31: Chemicals | C31: ATUL | D31: 2024-08-29 | E31: 7836.55 | F31: 7855.67 | G31: 7769.33 | H31: 7702.12 | I31: 7615.78 | J31: 7922.88 | K31: 8009.22 | L31: 8076.43 | M31: 7942 | N31: 7788.45 | O31: 870900 | P31: 1.74%
A32: 22 | B32: Banking | C32: AUBANK | D32: 2024-08-29 | E32: 619.50 | F32: 618.35 | G32: 612.60 | H32: 605.70 | I32: 599.95 | J32: 625.25 | K32: 631.00 | L32: 637.90 | M32: 624.1 | N32: 611.45 | O32: 25403000 | P32: -1.21%
A33: 23 | B33: Pharma | C33: AUROPHARMA | D33: 2024-08-29 | E33: 1523.65 | F33: 1518.92 | G33: 1498.63 | H33: 1473.62 | I33: 1453.33 | J33: 1543.93 | K33: 1564.22 | L33: 1589.23 | M33: 1539.2 | N33: 1493.9 | O33: 11193600 | P33: -0.13%
A34: 24 | B34: Banking | C34: AXISBANK | D34: 2024-08-29 | E34: 1156.35 | F34: 1161.58 | G34: 1148.52 | H34: 1140.68 | I34: 1127.62 | J34: 1169.42 | K34: 1182.48 | L34: 1190.32 | M34: 1174.65 | N34: 1153.75 | O34: 60752500 | P34: 3.04%
A35: 25 | B35: Automobile | C35: BAJAJ-AUTO | D35: 2024-08-29 | E35: 9799.70 | F35: 9854.95 | G35: 9736.75 | H35: 9673.80 | I35: 9555.60 | J35: 9917.90 | K35: 10036.10 | L35: 10099.05 | M35: 9973.15 | N35: 9792 | O35: 1448325 | P35: 3.96%
A36: 26 | B36: Finance | C36: BAJAJFINSV | D36: 2024-08-29 | E36: 1552.30 | F36: 1553.42 | G36: 1544.38 | H36: 1536.47 | I36: 1527.43 | J36: 1561.33 | K36: 1570.37 | L36: 1578.28 | M36: 1562.45 | N36: 1545.5 | O36: 13230500 | P36: 0.11%
A37: 27 | B37: Finance | C37: BAJFINANCE | D37: 2024-08-29 | E37: 6630.10 | F37: 6635.93 | G37: 6599.87 | H37: 6569.63 | I37: 6533.57 | J37: 6666.17 | K37: 6702.23 | L37: 6732.47 | M37: 6672 | N37: 6605.7 | O37: 10240875 | P37: 0.28%
A38: 28 | B38: Automobile | C38: BALKRISIND | D38: 2024-08-29 | E38: 2804.10 | F38: 2824.37 | G38: 2774.78 | H38: 2745.47 | I38: 2695.88 | J38: 2853.68 | K38: 2903.27 | L38: 2932.58 | M38: 2873.95 | N38: 2795.05 | O38: 2215800 | P38: 3.13%
A39: 29 | B39: FMCG | C39: BALRAMCHIN | D39: 2024-08-29 | E39: 533.20 | F39: 535.08 | G39: 524.32 | H39: 515.43 | I39: 504.67 | J39: 543.97 | K39: 554.73 | L39: 563.62 | M39: 545.85 | N39: 526.2 | O39: 10209600 | P39: 14.38%
A40: 30 | B40: Banking | C40: BANDHANBNK | D40: 2024-08-29 | E40: 193.67 | F40: 194.02 | G40: 192.60 | H40: 191.52 | I40: 190.10 | J40: 195.10 | K40: 196.52 | L40: 197.60 | M40: 195.45 | N40: 192.95 | O40: 101068800 | P40: -0.38%
A41: 31 | B41: Banking | C41: BANKBARODA | D41: 2024-08-29 | E41: 247.85 | F41: 247.62 | G41: 245.28 | H41: 242.72 | I41: 240.38 | J41: 250.18 | K41: 252.52 | L41: 255.08 | M41: 249.95 | N41: 245.05 | O41: 184494375 | P41: -1.07%
A42: 32 | B42: FMCG | C42: BATAINDIA | D42: 2024-08-29 | E42: 1426.40 | F42: 1431.57 | G42: 1412.28 | H42: 1398.17 | I42: 1378.88 | J42: 1445.68 | K42: 1464.97 | L42: 1479.08 | M42: 1450.85 | N42: 1417.45 | O42: 4169250 | P42: 2.54%
A43: 33 | B43: Capital_Goods | C43: BEL | D43: 2024-08-29 | E43: 302.80 | F43: 303.58 | G43: 301.02 | H43: 299.23 | I43: 296.67 | J43: 305.37 | K43: 307.93 | L43: 309.72 | M43: 306.15 | N43: 301.8 | O43: 153295800 | P43: 2.04%
A44: 34 | B44: FMCG | C44: BERGEPAINT | D44: 2024-08-29 | E44: 563.75 | F44: 559.28 | G44: 553.57 | H44: 543.38 | I44: 537.67 | J44: 569.47 | K44: 575.18 | L44: 585.37 | M44: 565 | N44: 549.1 | O44: 15623520 | P44: 1.27%
A45: 35 | B45: Automobile | C45: BHARATFORG | D45: 2024-08-29 | E45: 1592.75 | F45: 1590.70 | G45: 1565.80 | H45: 1538.85 | I45: 1513.95 | J45: 1617.65 | K45: 1642.55 | L45: 1669.50 | M45: 1615.6 | N45: 1563.75 | O45: 7881000 | P45: -1.27%
A46: 36 | B46: Telecom | C46: BHARTIARTL | D46: 2024-08-29 | E46: 1473.75 | F46: 1477.98 | G46: 1464.22 | H46: 1454.68 | I46: 1440.92 | J46: 1487.52 | K46: 1501.28 | L46: 1510.82 | M46: 1491.75 | N46: 1468.45 | O46: 40846200 | P46: 1.29%
A47: 37 | B47: Capital_Goods | C47: BHEL | D47: 2024-08-29 | E47: 294.55 | F47: 296.05 | G47: 292.60 | H47: 290.65 | I47: 287.20 | J47: 298.00 | K47: 301.45 | L47: 303.40 | M47: 299.5 | N47: 294.1 | O47: 79779000 | P47: 0.99%
A48: 38 | B48: Pharma | C48: BIOCON | D48: 2024-08-29 | E48: 344.95 | F48: 344.38 | G48: 341.52 | H48: 338.08 | I48: 335.22 | J48: 347.82 | K48: 350.68 | L48: 354.12 | M48: 347.25 | N48: 340.95 | O48: 42825000 | P48: -2.61%
A49: 39 | B49: Automobile | C49: BOSCHLTD | D49: 2024-08-29 | E49: 31700.40 | F49: 31816.37 | G49: 31470.83 | H49: 31241.27 | I49: 30895.73 | J49: 32045.93 | K49: 32391.47 | L49: 32621.03 | M49: 32161.9 | N49: 31586.8 | O49: 334600 | P49: -0.51%
A50: 40 | B50: Oil_Gas | C50: BPCL | D50: 2024-08-29 | E50: 344.30 | F50: 342.32 | G50: 338.48 | H50: 332.67 | I50: 328.83 | J50: 348.13 | K50: 351.97 | L50: 357.78 | M50: 346.15 | N50: 336.5 | O50: 64773000 | P50: 1.78%
A51: 41 | B51: FMCG | C51: BRITANNIA | D51: 2024-08-29 | E51: 5734.85 | F51: 5743.82 | G51: 5709.58 | H51: 5684.32 | I51: 5650.08 | J51: 5769.08 | K51: 5803.32 | L51: 5828.58 | M51: 5778.05 | N51: 5718.55 | O51: 2570200 | P51: -0.15%
A52: 42 | B52: Technology | C52: BSOFT | D52: 2024-08-29 | E52: 625.40 | F52: 624.25 | G52: 608.95 | H52: 592.50 | I52: 577.20 | J52: 640.70 | K52: 656.00 | L52: 672.45 | M52: 639.55 | N52: 607.8 | O52: 16127000 | P52: 34.72%
A53: 43 | B53: Banking | C53: CANBK | D53: 2024-08-29 | E53: 110.08 | F53: 109.96 | G53: 108.62 | H53: 107.16 | I53: 105.82 | J53: 111.42 | K53: 112.76 | L53: 114.22 | M53: 111.3 | N53: 108.5 | O53: 296338500 | P53: -0.14%
A54: 44 | B54: Finance | C54: CANFINHOME | D54: 2024-08-29 | E54: 840.60 | F54: 839.05 | G54: 833.10 | H54: 825.60 | I54: 819.65 | J54: 846.55 | K54: 852.50 | L54: 860.00 | M54: 845 | N54: 831.55 | O54: 5650125 | P54: 1.29%
A55: 45 | B55: Chemicals | C55: CHAMBLFERT | D55: 2024-08-29 | E55: 498.25 | F55: 497.57 | G55: 495.53 | H55: 492.82 | I55: 490.78 | J55: 500.28 | K55: 502.32 | L55: 505.03 | M55: 499.6 | N55: 494.85 | O55: 12929500 | P55: -1.08%
A56: 46 | B56: Finance | C56: CHOLAFIN | D56: 2024-08-29 | E56: 1353.95 | F56: 1360.57 | G56: 1343.48 | H56: 1333.02 | I56: 1315.93 | J56: 1371.03 | K56: 1388.12 | L56: 1398.58 | M56: 1377.65 | N56: 1350.1 | O56: 10740000 | P56: 1.81%
A57: 47 | B57: Pharma | C57: CIPLA | D57: 2024-08-29 | E57: 1579.00 | F57: 1579.95 | G57: 1571.20 | H57: 1563.40 | I57: 1554.65 | J57: 1587.75 | K57: 1596.50 | L57: 1604.30 | M57: 1588.7 | N57: 1572.15 | O57: 9918350 | P57: 1.37%
A58: 48 | B58: Metals | C58: COALINDIA | D58: 2024-08-29 | E58: 521.90 | F58: 519.65 | G58: 515.95 | H58: 510.00 | I58: 506.30 | J58: 525.60 | K58: 529.30 | L58: 535.25 | M58: 523.35 | N58: 513.7 | O58: 53266500 | P58: -1.73%
A59: 49 | B59: Technology | C59: COFORGE | D59: 2024-08-29 | E59: 6080.10 | F59: 6102.33 | G59: 6033.97 | H59: 5987.83 | I59: 5919.47 | J59: 6148.47 | K59: 6216.83 | L59: 6262.97 | M59: 6170.7 | N59: 6056.2 | O59: 2089500 | P59: 2.66%
A60: 50 | B60: FMCG | C60: COLPAL | D60: 2024-08-29 | E60: 3546.30 | F60: 3549.03 | G60: 3529.27 | H60: 3512.23 | I60: 3492.47 | J60: 3566.07 | K60: 3585.83 | L60: 3602.87 | M60: 3568.8 | N60: 3532 | O60: 3043600 | P60: 2.26%
A61: 51 | B61: Infrastructure | C61: CONCOR | D61: 2024-08-29 | E61: 971.50 | F61: 973.80 | G61: 959.95 | H61: 948.40 | I61: 934.55 | J61: 985.35 | K61: 999.20 | L61: 1010.75 | M61: 987.65 | N61: 962.25 | O61: 24151000 | P61: 2.36%
A62: 52 | B62: Chemicals | C62: COROMANDEL | D62: 2024-08-29 | E62: 1745.80 | F62: 1746.43 | G62: 1718.92 | H62: 1692.03 | I62: 1664.52 | J62: 1773.32 | K62: 1800.83 | L62: 1827.72 | M62: 1773.95 | N62: 1719.55 | O62: 4786600 | P62: -1.16%
A63: 53 | B63: Capital_Goods | C63: CROMPTON | D63: 2024-08-29 | E63: 453.45 | F63: 450.63 | G63: 445.92 | H63: 438.38 | I63: 433.67 | J63: 458.17 | K63: 462.88 | L63: 470.42 | M63: 455.35 | N63: 443.1 | O63: 19746000 | P63: -0.76%
A64: 54 | B64: Banking | C64: CUB | D64: 2024-08-29 | E64: 166.45 | F64: 166.48 | G64: 165.17 | H64: 163.88 | I64: 162.57 | J64: 167.77 | K64: 169.08 | L64: 170.37 | M64: 167.8 | N64: 165.2 | O64: 30750000 | P64: 0.69%
A65: 55 | B65: Capital_Goods | C65: CUMMINSIND | D65: 2024-08-29 | E65: 3760.60 | F65: 3765.53 | G65: 3721.07 | H65: 3681.53 | I65: 3637.07 | J65: 3805.07 | K65: 3849.53 | L65: 3889.07 | M65: 3810 | N65: 3726 | O65: 4418100 | P65: -0.32%
A66: 56 | B66: FMCG | C66: DABUR | D66: 2024-08-29 | E66: 622.45 | F66: 622.00 | G66: 617.60 | H66: 612.75 | I66: 608.35 | J66: 626.85 | K66: 631.25 | L66: 636.10 | M66: 626.4 | N66: 617.15 | O66: 16412500 | P66: -2.47%
A67: 57 | B67: Cement | C67: DALBHARAT | D67: 2024-08-29 | E67: 1775.55 | F67: 1777.40 | G67: 1762.35 | H67: 1749.15 | I67: 1734.10 | J67: 1790.60 | K67: 1805.65 | L67: 1818.85 | M67: 1792.45 | N67: 1764.2 | O67: 5028650 | P67: 4.53%
A68: 58 | B68: Chemicals | C68: DEEPAKNTR | D68: 2024-08-29 | E68: 2878.85 | F68: 2889.77 | G68: 2855.93 | H68: 2833.02 | I68: 2799.18 | J68: 2912.68 | K68: 2946.52 | L68: 2969.43 | M68: 2923.6 | N68: 2866.85 | O68: 2172000 | P68: 2.93%
A69: 59 | B69: Pharma | C69: DIVISLAB | D69: 2024-08-29 | E69: 4669.70 | F69: 4661.58 | G69: 4638.22 | H69: 4606.73 | I69: 4583.37 | J69: 4693.07 | K69: 4716.43 | L69: 4747.92 | M69: 4684.95 | N69: 4630.1 | O69: 3117400 | P69: 0.95%
A70: 60 | B70: Capital_Goods | C70: DIXON | D70: 2024-08-29 | E70: 12797.05 | F70: 12682.62 | G70: 12527.68 | H70: 12258.32 | I70: 12103.38 | J70: 12951.98 | K70: 13106.92 | L70: 13376.28 | M70: 12837.55 | N70: 12413.25 | O70: 1898200 | P70: 1.54%
A71: 61 | B71: Realty | C71: DLF | D71: 2024-08-29 | E71: 860.30 | F71: 864.50 | G71: 854.80 | H71: 849.30 | I71: 839.60 | J71: 870.00 | K71: 879.70 | L71: 885.20 | M71: 874.2 | N71: 859 | O71: 37351875 | P71: -0.11%
A72: 62 | B72: Pharma | C72: DRREDDY | D72: 2024-08-29 | E72: 6912.35 | F72: 6890.98 | G72: 6857.62 | H72: 6802.88 | I72: 6769.52 | J72: 6945.72 | K72: 6979.08 | L72: 7033.82 | M72: 6924.35 | N72: 6836.25 | O72: 2590375 | P72: -1.00%
A73: 63 | B73: Automobile | C73: EICHERMOT | D73: 2024-08-29 | E73: 4814.85 | F73: 4811.57 | G73: 4785.38 | H73: 4755.92 | I73: 4729.73 | J73: 4841.03 | K73: 4867.22 | L73: 4896.68 | M73: 4837.75 | N73: 4782.1 | O73: 3790500 | P73: -0.09%
A74: 64 | B74: Automobile | C74: ESCORTS | D74: 2024-08-29 | E74: 3740.95 | F74: 3750.03 | G74: 3718.92 | H74: 3696.88 | I74: 3665.77 | J74: 3772.07 | K74: 3803.18 | L74: 3825.22 | M74: 3781.15 | N74: 3728 | O74: 2057825 | P74: 0.52%
A75: 65 | B75: Automobile | C75: EXIDEIND | D75: 2024-08-29 | E75: 497.70 | F75: 497.92 | G75: 494.63 | H75: 491.57 | I75: 488.28 | J75: 500.98 | K75: 504.27 | L75: 507.33 | M75: 501.2 | N75: 494.85 | O75: 32722200 | P75: 0.83%
A76: 66 | B76: Banking | C76: FEDERALBNK | D76: 2024-08-29 | E76: 201.57 | F76: 202.37 | G76: 200.23 | H76: 198.90 | I76: 196.76 | J76: 203.70 | K76: 205.84 | L76: 207.17 | M76: 204.5 | N76: 201.03 | O76: 96080000 | P76: 4.29%
A77: 67 | B77: Oil_Gas | C77: GAIL | D77: 2024-08-29 | E77: 238.80 | F77: 237.25 | G77: 235.00 | H77: 231.20 | I77: 228.95 | J77: 241.05 | K77: 243.30 | L77: 247.10 | M77: 239.5 | N77: 233.45 | O77: 109891500 | P77: -4.17%
A78: 68 | B78: Pharma | C78: GLENMARK | D78: 2024-08-29 | E78: 1631.50 | F78: 1613.23 | G78: 1587.07 | H78: 1542.63 | I78: 1516.47 | J78: 1657.67 | K78: 1683.83 | L78: 1728.27 | M78: 1639.4 | N78: 1568.8 | O78: 6444525 | P78: 7.12%
A79: 69 | B79: Infrastructure | C79: GMRINFRA | D79: 2024-08-29 | E79: 96.57 | F79: 96.93 | G79: 95.94 | H79: 95.31 | I79: 94.32 | J79: 97.56 | K79: 98.55 | L79: 99.18 | M79: 97.92 | N79: 96.3 | O79: 244440000 | P79: 4.28%
A80: 70 | B80: Chemicals | C80: GNFC | D80: 2024-08-29 | E80: 650.60 | F80: 651.70 | G80: 644.15 | H80: 637.70 | I80: 630.15 | J80: 658.15 | K80: 665.70 | L80: 672.15 | M80: 659.25 | N80: 645.25 | O80: 8281000 | P80: -0.89%
A81: 71 | B81: FMCG | C81: GODREJCP | D81: 2024-08-29 | E81: 1405.65 | F81: 1403.80 | G81: 1392.55 | H81: 1379.45 | I81: 1368.20 | J81: 1416.90 | K81: 1428.15 | L81: 1441.25 | M81: 1415.05 | N81: 1390.7 | O81: 9775000 | P81: 0.51%
A82: 72 | B82: Realty | C82: GODREJPROP | D82: 2024-08-29 | E82: 2936.80 | F82: 2935.48 | G82: 2895.87 | H82: 2854.93 | I82: 2815.32 | J82: 2976.42 | K82: 3016.03 | L82: 3056.97 | M82: 2975.1 | N82: 2894.55 | O82: 5463675 | P82: 1.23%
A83: 73 | B83: Pharma | C83: GRANULES | D83: 2024-08-29 | E83: 666.60 | F83: 666.42 | G83: 662.18 | H83: 657.77 | I83: 653.53 | J83: 670.83 | K83: 675.07 | L83: 679.48 | M83: 670.65 | N83: 662 | O83: 8674000 | P83: -0.64%
A84: 74 | B84: Cement | C84: GRASIM | D84: 2024-08-29 | E84: 2603.40 | F84: 2601.82 | G84: 2563.68 | H84: 2523.97 | I84: 2485.83 | J84: 2641.53 | K84: 2679.67 | L84: 2719.38 | M84: 2639.95 | N84: 2562.1 | O84: 8575000 | P84: 0.74%
A85: 75 | B85: Oil_Gas | C85: GUJGASLTD | D85: 2024-08-29 | E85: 592.65 | F85: 596.60 | G85: 587.00 | H85: 581.35 | I85: 571.75 | J85: 602.25 | K85: 611.85 | L85: 617.50 | M85: 606.2 | N85: 590.95 | O85: 11757500 | P85: 5.89%
A86: 76 | B86: Capital_Goods | C86: HAL | D86: 2024-08-29 | E86: 4780.30 | F86: 4796.18 | G86: 4745.52 | H86: 4710.73 | I86: 4660.07 | J86: 4830.97 | K86: 4881.63 | L86: 4916.42 | M86: 4846.85 | N86: 4761.4 | O86: 13533600 | P86: -1.32%
A87: 77 | B87: Capital_Goods | C87: HAVELLS | D87: 2024-08-29 | E87: 1887.20 | F87: 1886.23 | G87: 1873.57 | H87: 1859.93 | I87: 1847.27 | J87: 1899.87 | K87: 1912.53 | L87: 1926.17 | M87: 1898.9 | N87: 1872.6 | O87: 8447500 | P87: 1.54%
A88: 78 | B88: Technology | C88: HCLTECH | D88: 2024-08-29 | E88: 1676.95 | F88: 1674.65 | G88: 1666.30 | H88: 1655.65 | I88: 1647.30 | J88: 1685.30 | K88: 1693.65 | L88: 1704.30 | M88: 1683 | N88: 1664 | O88: 14027300 | P88: 1.17%
A89: 79 | B89: Finance | C89: HDFCAMC | D89: 2024-08-29 | E89: 4209.05 | F89: 4214.33 | G89: 4170.97 | H89: 4132.88 | I89: 4089.52 | J89: 4252.42 | K89: 4295.78 | L89: 4333.87 | M89: 4257.7 | N89: 4176.25 | O89: 3289050 | P89: 6.12%
A90: 80 | B90: Banking | C90: HDFCBANK | D90: 2024-08-29 | E90: 1633.40 | F90: 1632.18 | G90: 1627.32 | H90: 1621.23 | I90: 1616.37 | J90: 1638.27 | K90: 1643.13 | L90: 1649.22 | M90: 1637.05 | N90: 1626.1 | O90: 191390650 | P90: 0.10%
A91: 81 | B91: Finance | C91: HDFCLIFE | D91: 2024-08-29 | E91: 685.90 | F91: 685.42 | G91: 680.13 | H91: 674.37 | I91: 669.08 | J91: 691.18 | K91: 696.47 | L91: 702.23 | M91: 690.7 | N91: 679.65 | O91: 25701500 | P91: -2.70%
A92: 82 | B92: Automobile | C92: HEROMOTOCO | D92: 2024-08-29 | E92: 5188.15 | F92: 5175.73 | G92: 5126.47 | H92: 5064.78 | I92: 5015.52 | J92: 5237.42 | K92: 5286.68 | L92: 5348.37 | M92: 5225 | N92: 5114.05 | O92: 4656150 | P92: -4.50%
A93: 83 | B93: Metals | C93: HINDALCO | D93: 2024-08-29 | E93: 658.90 | F93: 652.08 | G93: 643.72 | H93: 628.53 | I93: 620.17 | J93: 667.27 | K93: 675.63 | L93: 690.82 | M93: 660.45 | N93: 636.9 | O93: 44304400 | P93: -1.94%
A94: 84 | B94: Metals | C94: HINDCOPPER | D94: 2024-08-29 | E94: 324.80 | F94: 321.95 | G94: 317.40 | H94: 310.00 | I94: 305.45 | J94: 329.35 | K94: 333.90 | L94: 341.30 | M94: 326.5 | N94: 314.55 | O94: 41297600 | P94: 9.29%
A95: 85 | B95: Oil_Gas | C95: HINDPETRO | D95: 2024-08-29 | E95: 388.65 | F95: 389.62 | G95: 383.18 | H95: 377.72 | I95: 371.28 | J95: 395.08 | K95: 401.52 | L95: 406.98 | M95: 396.05 | N95: 384.15 | O95: 56756700 | P95: 3.77%
A96: 86 | B96: FMCG | C96: HINDUNILVR | D96: 2024-08-29 | E96: 2752.05 | F96: 2754.92 | G96: 2742.13 | H96: 2732.22 | I96: 2719.43 | J96: 2764.83 | K96: 2777.62 | L96: 2787.53 | M96: 2767.7 | N96: 2745 | O96: 15139200 | P96: 1.00%
A97: 87 | B97: Banking | C97: ICICIBANK | D97: 2024-08-29 | E97: 1177.50 | F97: 1183.40 | G97: 1170.20 | H97: 1162.90 | I97: 1149.70 | J97: 1190.70 | K97: 1203.90 | L97: 1211.20 | M97: 1196.6 | N97: 1176.1 | O97: 96244400 | P97: -0.81%
A98: 88 | B98: Finance | C98: ICICIGI | D98: 2024-08-29 | E98: 2015.10 | F98: 2021.37 | G98: 1990.43 | H98: 1965.77 | I98: 1934.83 | J98: 2046.03 | K98: 2076.97 | L98: 2101.63 | M98: 2052.3 | N98: 1996.7 | O98: 3984000 | P98: 0.18%
A99: 89 | B99: Finance | C99: ICICIPRULI | D99: 2024-08-29 | E99: 720.55 | F99: 720.85 | G99: 715.80 | H99: 711.05 | I99: 706.00 | J99: 725.60 | K99: 730.65 | L99: 735.40 | M99: 725.9 | N99: 716.1 | O99: 11106000 | P99: 1.08%
A100: 90 | B100: Telecom | C100: IDEA | D100: 2024-08-29 | E100: 15.97 | F100: 15.93 | G100: 15.78 | H100: 15.59 | I100: 15.44 | J100: 16.12 | K100: 16.27 | L100: 16.46 | M100: 16.08 | N100: 15.74 | O100: 4674200000 | P100: -0.76%
A101: 91 | B101: Finance | C101: IDFC | D101: 2024-08-29 | E101: 108.29 | F101: 108.17 | G101: 107.73 | H101: 107.17 | I101: 106.73 | J101: 108.73 | K101: 109.17 | L101: 109.73 | M101: 108.61 | N101: 107.61 | O101: 131595000 | P101: 0.11%
A102: 92 | B102: Banking | C102: IDFCFIRSTB | D102: 2024-08-29 | E102: 72.23 | F102: 72.15 | G102: 71.77 | H102: 71.31 | I102: 70.93 | J102: 72.61 | K102: 72.99 | L102: 73.45 | M102: 72.53 | N102: 71.69 | O102: 523665000 | P102: 0.46%
A103: 93 | B103: Power | C103: IEX | D103: 2024-08-29 | E103: 196.73 | F103: 196.73 | G103: 195.11 | H103: 193.49 | I103: 191.87 | J103: 198.35 | K103: 199.97 | L103: 201.59 | M103: 198.35 | N103: 195.11 | O103: 72821250 | P103: -0.19%
A104: 94 | B104: Oil_Gas | C104: IGL | D104: 2024-08-29 | E104: 548.95 | F104: 549.62 | G104: 542.73 | H104: 536.52 | I104: 529.63 | J104: 555.83 | K104: 562.72 | L104: 568.93 | M104: 556.5 | N104: 543.4 | O104: 12619750 | P104: 6.80%
A105: 95 | B105: Infrastructure | C105: INDHOTEL | D105: 2024-08-29 | E105: 614.80 | F105: 618.92 | G105: 605.83 | H105: 596.87 | I105: 583.78 | J105: 627.88 | K105: 640.97 | L105: 649.93 | M105: 632 | N105: 609.95 | O105: 19279000 | P105: -4.95%
A106: 96 | B106: Cement | C106: INDIACEM | D106: 2024-08-29 | E106: 366.45 | F106: 367.10 | G106: 364.35 | H106: 362.25 | I106: 359.50 | J106: 369.20 | K106: 371.95 | L106: 374.05 | M106: 369.85 | N106: 365 | O106: 20569700 | P106: -0.95%
A107: 97 | B107: FMCG | C107: INDIAMART | D107: 2024-08-29 | E107: 2813.55 | F107: 2784.97 | G107: 2739.93 | H107: 2666.32 | I107: 2621.28 | J107: 2858.58 | K107: 2903.62 | L107: 2977.23 | M107: 2830 | N107: 2711.35 | O107: 1662000 | P107: -2.57%
A108: 98 | B108: Infrastructure | C108: INDIGO | D108: 2024-08-29 | E108: 4233.80 | F108: 4255.80 | G108: 4184.60 | H108: 4135.40 | I108: 4064.20 | J108: 4305.00 | K108: 4376.20 | L108: 4425.40 | M108: 4327 | N108: 4206.6 | O108: 6837600 | P108: 8.02%
A109: 99 | B109: Banking | C109: INDUSINDBK | D109: 2024-08-29 | E109: 1352.40 | F109: 1360.00 | G109: 1342.50 | H109: 1332.60 | I109: 1315.10 | J109: 1369.90 | K109: 1387.40 | L109: 1397.30 | M109: 1377.5 | N109: 1350.1 | O109: 37037500 | P109: 8.04%
A110: 100 | B110: Telecom | C110: INDUSTOWER | D110: 2024-08-29 | E110: 418.80 | F110: 417.57 | G110: 413.28 | H110: 407.77 | I110: 403.48 | J110: 423.08 | K110: 427.37 | L110: 432.88 | M110: 421.85 | N110: 412.05 | O110: 84391400 | P110: -1.04%
A111: 101 | B111: Technology | C111: INFY | D111: 2024-08-29 | E111: 1864.90 | F111: 1860.97 | G111: 1854.38 | H111: 1843.87 | I111: 1837.28 | J111: 1871.48 | K111: 1878.07 | L111: 1888.58 | M111: 1867.55 | N111: 1850.45 | O111: 43785200 | P111: 0.49%
A112: 102 | B112: Oil_Gas | C112: IOC | D112: 2024-08-29 | E112: 170.50 | F112: 170.35 | G112: 169.73 | H112: 168.97 | I112: 168.35 | J112: 171.11 | K112: 171.73 | L112: 172.49 | M112: 170.96 | N112: 169.58 | O112: 197325375 | P112: -0.39%
A113: 103 | B113: Pharma | C113: IPCALAB | D113: 2024-08-29 | E113: 1357.85 | F113: 1356.93 | G113: 1344.87 | H113: 1331.88 | I113: 1319.82 | J113: 1369.92 | K113: 1381.98 | L113: 1394.97 | M113: 1369 | N113: 1343.95 | O113: 2587650 | P113: -1.36%
A114: 104 | B114: Infrastructure | C114: IRCTC | D114: 2024-08-29 | E114: 934.20 | F114: 932.30 | G114: 925.10 | H114: 916.00 | I114: 908.80 | J114: 941.40 | K114: 948.60 | L114: 957.70 | M114: 939.5 | N114: 923.2 | O114: 23152500 | P114: 2.77%
A115: 105 | B115: FMCG | C115: ITC | D115: 2024-08-29 | E115: 502.70 | F115: 504.48 | G115: 499.47 | H115: 496.23 | I115: 491.22 | J115: 507.72 | K115: 512.73 | L115: 515.97 | M115: 509.5 | N115: 501.25 | O115: 110923200 | P115: 2.29%
A116: 106 | B116: Metals | C116: JINDALSTEL | D116: 2024-08-29 | E116: 953.35 | F116: 946.83 | G116: 937.77 | H116: 922.18 | I116: 913.12 | J116: 962.42 | K116: 971.48 | L116: 987.07 | M116: 955.9 | N116: 931.25 | O116: 14796875 | P116: 1.76%
A117: 107 | B117: Cement | C117: JKCEMENT | D117: 2024-08-29 | E117: 4327.75 | F117: 4299.13 | G117: 4254.47 | H117: 4181.18 | I117: 4136.52 | J117: 4372.42 | K117: 4417.08 | L117: 4490.37 | M117: 4343.8 | N117: 4225.85 | O117: 832125 | P117: 5.70%
A118: 108 | B118: Metals | C118: JSWSTEEL | D118: 2024-08-29 | E118: 919.20 | F118: 914.57 | G118: 907.63 | H118: 896.07 | I118: 889.13 | J118: 926.13 | K118: 933.07 | L118: 944.63 | M118: 921.5 | N118: 903 | O118: 19490625 | P118: 0.39%
A119: 109 | B119: FMCG | C119: JUBLFOOD | D119: 2024-08-29 | E119: 635.55 | F119: 638.13 | G119: 626.57 | H119: 617.58 | I119: 606.02 | J119: 647.12 | K119: 658.68 | L119: 667.67 | M119: 649.7 | N119: 629.15 | O119: 20320000 | P119: -3.67%
A120: 110 | B120: Banking | C120: KOTAKBANK | D120: 2024-08-29 | E120: 1781.35 | F120: 1780.93 | G120: 1772.37 | H120: 1763.38 | I120: 1754.82 | J120: 1789.92 | K120: 1798.48 | L120: 1807.47 | M120: 1789.5 | N120: 1771.95 | O120: 34731200 | P120: -1.32%
A121: 111 | B121: Finance | C121: LTF | D121: 2024-08-29 | E121: 165.44 | F121: 165.22 | G121: 164.22 | H121: 163.01 | I121: 162.01 | J121: 166.43 | K121: 167.43 | L121: 168.64 | M121: 166.21 | N121: 164 | O121: 79959040 | P121: 2.49%
A122: 112 | B122: Pharma | C122: LALPATHLAB | D122: 2024-08-29 | E122: 3303.60 | F122: 3298.07 | G122: 3276.53 | H122: 3249.47 | I122: 3227.93 | J122: 3325.13 | K122: 3346.67 | L122: 3373.73 | M122: 3319.6 | N122: 3271 | O122: 1300200 | P122: 0.86%
A123: 113 | B123: Pharma | C123: LAURUSLABS | D123: 2024-08-29 | E123: 437.70 | F123: 435.47 | G123: 431.98 | H123: 426.27 | I123: 422.78 | J123: 441.18 | K123: 444.67 | L123: 450.38 | M123: 438.95 | N123: 429.75 | O123: 24592200 | P123: 1.39%
A124: 114 | B124: Finance | C124: LICHSGFIN | D124: 2024-08-29 | E124: 659.20 | F124: 656.30 | G124: 650.70 | H124: 642.20 | I124: 636.60 | J124: 664.80 | K124: 670.40 | L124: 678.90 | M124: 661.9 | N124: 647.8 | O124: 31289000 | P124: -1.12%
A125: 115 | B125: Capital_Goods | C125: LT | D125: 2024-08-29 | E125: 3566.40 | F125: 3574.33 | G125: 3546.07 | H125: 3525.73 | I125: 3497.47 | J125: 3594.67 | K125: 3622.93 | L125: 3643.27 | M125: 3602.6 | N125: 3554 | O125: 17747700 | P125: 2.82%
A126: 116 | B126: Technology | C126: LTIM | D126: 2024-08-29 | E126: 5684.55 | F126: 5658.52 | G126: 5605.98 | H126: 5527.42 | I126: 5474.88 | J126: 5737.08 | K126: 5789.62 | L126: 5868.18 | M126: 5711.05 | N126: 5579.95 | O126: 3084300 | P126: -1.95%
A127: 117 | B127: Technology | C127: LTTS | D127: 2024-08-29 | E127: 5295.25 | F127: 5278.38 | G127: 5224.87 | H127: 5154.48 | I127: 5100.97 | J127: 5348.77 | K127: 5402.28 | L127: 5472.67 | M127: 5331.9 | N127: 5208 | O127: 1579400 | P127: -0.90%
A128: 118 | B128: Pharma | C128: LUPIN | D128: 2024-08-29 | E128: 2075.85 | F128: 2083.63 | G128: 2057.22 | H128: 2038.58 | I128: 2012.17 | J128: 2102.27 | K128: 2128.68 | L128: 2147.32 | M128: 2110.05 | N128: 2065 | O128: 13961675 | P128: 0.15%
A129: 119 | B129: Automobile | C129: M&M | D129: 2024-08-29 | E129: 2770.20 | F129: 2798.85 | G129: 2738.70 | H129: 2707.20 | I129: 2647.05 | J129: 2830.35 | K129: 2890.50 | L129: 2922.00 | M129: 2859 | N129: 2767.35 | O129: 14576100 | P129: 5.30%
A130: 120 | B130: Finance | C130: M&MFIN | D130: 2024-08-29 | E130: 297.25 | F130: 296.28 | G130: 293.37 | H130: 289.48 | I130: 286.57 | J130: 300.17 | K130: 303.08 | L130: 306.97 | M130: 299.2 | N130: 292.4 | O130: 43316000 | P130: -0.80%
A131: 121 | B131: Finance | C131: MANAPPURAM | D131: 2024-08-29 | E131: 201.34 | F131: 201.39 | G131: 198.80 | H131: 196.26 | I131: 193.67 | J131: 203.93 | K131: 206.52 | L131: 209.06 | M131: 203.98 | N131: 198.85 | O131: 66156000 | P131: -0.49%
A132: 122 | B132: FMCG | C132: MARICO | D132: 2024-08-29 | E132: 664.35 | F132: 662.67 | G132: 657.53 | H132: 650.72 | I132: 645.58 | J132: 669.48 | K132: 674.62 | L132: 681.43 | M132: 667.8 | N132: 655.85 | O132: 14954400 | P132: 3.18%
A133: 123 | B133: Automobile | C133: MARUTI | D133: 2024-08-29 | E133: 12166.60 | F133: 12187.33 | G133: 12114.67 | H133: 12062.73 | I133: 11990.07 | J133: 12239.27 | K133: 12311.93 | L133: 12363.87 | M133: 12260 | N133: 12135.4 | O133: 3536000 | P133: 4.49%
A134: 124 | B134: FMCG | C134: UNITDSPR | D134: 2024-08-29 | E134: 1408.25 | F134: 1418.92 | G134: 1392.88 | H134: 1377.52 | I134: 1351.48 | J134: 1434.28 | K134: 1460.32 | L134: 1475.68 | M134: 1444.95 | N134: 1403.55 | O134: 10816400 | P134: 1.91%
A135: 125 | B135: Technology | C135: MCX | D135: 2024-08-29 | E135: 4770.75 | F135: 4732.50 | G135: 4685.45 | H135: 4600.15 | I135: 4553.10 | J135: 4817.80 | K135: 4864.85 | L135: 4950.15 | M135: 4779.55 | N135: 4647.2 | O135: 2435200 | P135: 1.42%
A136: 126 | B136: Pharma | C136: METROPOLIS | D136: 2024-08-29 | E136: 2123.05 | F136: 2125.62 | G136: 2085.53 | H136: 2048.02 | I136: 2007.93 | J136: 2163.13 | K136: 2203.22 | L136: 2240.73 | M136: 2165.7 | N136: 2088.1 | O136: 1625200 | P136: 4.53%
A137: 127 | B137: Finance | C137: MFSL | D137: 2024-08-29 | E137: 994.75 | F137: 1002.82 | G137: 983.83 | H137: 972.92 | I137: 953.93 | J137: 1013.73 | K137: 1032.72 | L137: 1043.63 | M137: 1021.8 | N137: 991.9 | O137: 5179200 | P137: 4.44%
A138: 128 | B138: Oil_Gas | C138: MGL | D138: 2024-08-29 | E138: 1842.25 | F138: 1844.72 | G138: 1820.48 | H138: 1798.72 | I138: 1774.48 | J138: 1866.48 | K138: 1890.72 | L138: 1912.48 | M138: 1868.95 | N138: 1822.95 | O138: 2026000 | P138: -0.08%
A139: 129 | B139: Automobile | C139: MOTHERSON | D139: 2024-08-29 | E139: 186.69 | F139: 186.83 | G139: 185.61 | H139: 184.52 | I139: 183.30 | J139: 187.92 | K139: 189.14 | L139: 190.23 | M139: 188.06 | N139: 185.75 | O139: 134339100 | P139: 0.06%
A140: 130 | B140: Technology | C140: MPHASIS | D140: 2024-08-29 | E140: 2979.70 | F140: 2966.57 | G140: 2938.23 | H140: 2896.77 | I140: 2868.43 | J140: 3008.03 | K140: 3036.37 | L140: 3077.83 | M140: 2994.9 | N140: 2925.1 | O140: 4666475 | P140: 1.98%
A141: 131 | B141: Automobile | C141: MRF | D141: 2024-08-29 | E141: 135214.40 | F141: 135654.33 | G141: 134210.27 | H141: 133206.13 | I141: 131762.07 | J141: 136658.47 | K141: 138102.53 | L141: 139106.67 | M141: 137098.4 | N141: 134650.2 | O141: 69830 | P141: 2.90%
A142: 132 | B142: Finance | C142: MUTHOOTFIN | D142: 2024-08-29 | E142: 1845.70 | F142: 1845.30 | G142: 1830.10 | H142: 1814.50 | I142: 1799.30 | J142: 1860.90 | K142: 1876.10 | L142: 1891.70 | M142: 1860.5 | N142: 1829.7 | O142: 4472050 | P142: -1.02%
A143: 133 | B143: Metals | C143: NATIONALUM | D143: 2024-08-29 | E143: 171.94 | F143: 170.01 | G143: 167.23 | H143: 162.51 | I143: 159.73 | J143: 174.73 | K143: 177.51 | L143: 182.23 | M143: 172.8 | N143: 165.3 | O143: 78821250 | P143: 7.74%
A144: 134 | B144: Technology | C144: NAUKRI | D144: 2024-08-29 | E144: 7409.70 | F144: 7422.32 | G144: 7361.48 | H144: 7313.27 | I144: 7252.43 | J144: 7470.53 | K144: 7531.37 | L144: 7579.58 | M144: 7483.15 | N144: 7374.1 | O144: 1400400 | P144: 2.27%
A145: 135 | B145: Chemicals | C145: NAVINFLUOR | D145: 2024-08-29 | E145: 3293.15 | F145: 3310.28 | G145: 3266.87 | H145: 3240.58 | I145: 3197.17 | J145: 3336.57 | K145: 3379.98 | L145: 3406.27 | M145: 3353.7 | N145: 3284 | O145: 2296700 | P145: 4.66%
A146: 136 | B146: FMCG | C146: NESTLEIND | D146: 2024-08-29 | E146: 2508.85 | F146: 2520.82 | G146: 2493.38 | H146: 2477.92 | I146: 2450.48 | J146: 2536.28 | K146: 2563.72 | L146: 2579.18 | M146: 2548.25 | N146: 2505.35 | O146: 6104400 | P146: -0.29%
A147: 137 | B147: Metals | C147: NMDC | D147: 2024-08-29 | E147: 220.65 | F147: 219.77 | G147: 218.53 | H147: 216.42 | I147: 215.18 | J147: 221.88 | K147: 223.12 | L147: 225.23 | M147: 221 | N147: 217.65 | O147: 96970500 | P147: -2.53%
A148: 138 | B148: Power | C148: NTPC | D148: 2024-08-29 | E148: 403.95 | F148: 404.62 | G148: 401.43 | H148: 398.92 | I148: 395.73 | J148: 407.13 | K148: 410.32 | L148: 412.83 | M148: 407.8 | N148: 402.1 | O148: 86004000 | P148: 0.58%
A149: 139 | B149: Realty | C149: OBEROIRLTY | D149: 2024-08-29 | E149: 1772.05 | F149: 1768.25 | G149: 1754.85 | H149: 1737.65 | I149: 1724.25 | J149: 1785.45 | K149: 1798.85 | L149: 1816.05 | M149: 1781.65 | N149: 1751.05 | O149: 7264600 | P149: 0.84%
A150: 140 | B150: Technology | C150: OFSS | D150: 2024-08-29 | E150: 10965.05 | F150: 11011.63 | G150: 10895.42 | H150: 10825.78 | I150: 10709.57 | J150: 11081.27 | K150: 11197.48 | L150: 11267.12 | M150: 11127.85 | N150: 10942 | O150: 1540400 | P150: -0.94%
A151: 141 | B151: Oil_Gas | C151: ONGC | D151: 2024-08-29 | E151: 333.90 | F151: 334.20 | G151: 331.55 | H151: 329.20 | I151: 326.55 | J151: 336.55 | K151: 339.20 | L151: 341.55 | M151: 336.85 | N151: 331.85 | O151: 127483125 | P151: 1.64%
A152: 142 | B152: Textile | C152: PAGEIND | D152: 2024-08-29 | E152: 40895.65 | F152: 40865.25 | G152: 40430.50 | H152: 39965.35 | I152: 39530.60 | J152: 41330.40 | K152: 41765.15 | L152: 42230.30 | M152: 41300 | N152: 40400.1 | O152: 189345 | P152: 1.10%
A153: 143 | B153: Pharma | C153: PEL | D153: 2024-08-29 | E153: 985.40 | F153: 974.47 | G153: 960.93 | H153: 936.47 | I153: 922.93 | J153: 998.93 | K153: 1012.47 | L153: 1036.93 | M153: 988 | N153: 950 | O153: 10673250 | P153: -8.10%
A154: 144 | B154: Technology | C154: PERSISTENT | D154: 2024-08-29 | E154: 4890.40 | F154: 4879.03 | G154: 4835.82 | H154: 4781.23 | I154: 4738.02 | J154: 4933.62 | K154: 4976.83 | L154: 5031.42 | M154: 4922.25 | N154: 4824.45 | O154: 2311800 | P154: -2.48%
A155: 145 | B155: Oil_Gas | C155: PETRONET | D155: 2024-08-29 | E155: 376.20 | F155: 376.75 | G155: 372.80 | H155: 369.40 | I155: 365.45 | J155: 380.15 | K155: 384.10 | L155: 387.50 | M155: 380.7 | N155: 373.35 | O155: 26019000 | P155: 0.31%
A156: 146 | B156: Finance | C156: PFC | D156: 2024-08-29 | E156: 506.65 | F156: 508.28 | G156: 502.77 | H156: 498.88 | I156: 493.37 | J156: 512.17 | K156: 517.68 | L156: 521.57 | M156: 513.8 | N156: 504.4 | O156: 48226100 | P156: 1.34%
A157: 147 | B157: FMCG | C157: PIDILITIND | D157: 2024-08-29 | E157: 3061.25 | F157: 3068.20 | G157: 3046.40 | H157: 3031.55 | I157: 3009.75 | J157: 3083.05 | K157: 3104.85 | L157: 3119.70 | M157: 3090 | N157: 3053.35 | O157: 2849000 | P157: 0.46%
A158: 148 | B158: Chemicals | C158: PIIND | D158: 2024-08-29 | E158: 4330.80 | F158: 4367.28 | G158: 4264.57 | H158: 4198.33 | I158: 4095.62 | J158: 4433.52 | K158: 4536.23 | L158: 4602.47 | M158: 4470 | N158: 4301.05 | O158: 2046250 | P158: 4.21%
A159: 149 | B159: Banking | C159: PNB | D159: 2024-08-29 | E159: 115.57 | F159: 115.19 | G159: 114.52 | H159: 113.46 | I159: 112.79 | J159: 116.25 | K159: 116.92 | L159: 117.98 | M159: 115.87 | N159: 114.14 | O159: 268280000 | P159: -0.99%
A160: 150 | B160: Capital_Goods | C160: POLYCAB | D160: 2024-08-29 | E160: 6653.00 | F160: 6626.62 | G160: 6533.33 | H160: 6413.67 | I160: 6320.38 | J160: 6746.28 | K160: 6839.57 | L160: 6959.23 | M160: 6719.9 | N160: 6506.95 | O160: 3074875 | P160: 3.64%
A161: 151 | B161: Power | C161: POWERGRID | D161: 2024-08-29 | E161: 340.65 | F161: 341.33 | G161: 339.42 | H161: 338.18 | I161: 336.27 | J161: 342.57 | K161: 344.48 | L161: 345.72 | M161: 343.25 | N161: 340.1 | O161: 71316000 | P161: 0.11%
A162: 152 | B162: Media | C162: PVRINOX | D162: 2024-08-29 | E162: 1524.25 | F162: 1534.63 | G162: 1505.62 | H162: 1486.98 | I162: 1457.97 | J162: 1553.27 | K162: 1582.28 | L162: 1600.92 | M162: 1563.65 | N162: 1516 | O162: 4896617 | P162: 6.69%
A163: 153 | B163: Cement | C163: RAMCOCEM | D163: 2024-08-29 | E163: 816.45 | F163: 819.25 | G163: 807.35 | H163: 798.25 | I163: 786.35 | J163: 828.35 | K163: 840.25 | L163: 849.35 | M163: 831.15 | N163: 810.15 | O163: 9803900 | P163: 5.39%
A164: 154 | B164: Banking | C164: RBLBANK | D164: 2024-08-29 | E164: 210.08 | F164: 210.41 | G164: 208.57 | H164: 207.07 | I164: 205.23 | J164: 211.91 | K164: 213.75 | L164: 215.25 | M164: 212.24 | N164: 208.9 | O164: 69312500 | P164: -0.17%
A165: 155 | B165: Finance | C165: RECLTD | D165: 2024-08-29 | E165: 584.40 | F165: 585.38 | G165: 579.37 | H165: 574.33 | I165: 568.32 | J165: 590.42 | K165: 596.43 | L165: 601.47 | M165: 591.4 | N165: 580.35 | O165: 49438000 | P165: 1.07%
A166: 156 | B166: Oil_Gas | C166: RELIANCE | D166: 2024-08-29 | E166: 2986.15 | F166: 2983.15 | G166: 2964.05 | H166: 2941.95 | I166: 2922.85 | J166: 3005.25 | K166: 3024.35 | L166: 3046.45 | M166: 3002.25 | N166: 2961.05 | O166: 45745500 | P166: 0.95%
A167: 157 | B167: Metals | C167: SAIL | D167: 2024-08-29 | E167: 131.49 | F167: 130.88 | G167: 130.01 | H167: 128.54 | I167: 127.67 | J167: 132.35 | K167: 133.22 | L167: 134.69 | M167: 131.74 | N167: 129.4 | O167: 135196000 | P167: -0.73%
A168: 158 | B168: Finance | C168: SBICARD | D168: 2024-08-29 | E168: 701.15 | F168: 699.63 | G168: 697.12 | H168: 693.08 | I168: 690.57 | J168: 703.67 | K168: 706.18 | L168: 710.22 | M168: 702.15 | N168: 695.6 | O168: 27799200 | P168: 0.15%
A169: 159 | B169: Finance | C169: SBILIFE | D169: 2024-08-29 | E169: 1676.60 | F169: 1681.20 | G169: 1662.40 | H169: 1648.20 | I169: 1629.40 | J169: 1695.40 | K169: 1714.20 | L169: 1728.40 | M169: 1700 | N169: 1667 | O169: 6347625 | P169: -0.97%
A170: 160 | B170: Banking | C170: SBIN | D170: 2024-08-29 | E170: 816.00 | F170: 818.88 | G170: 811.82 | H170: 807.63 | I170: 800.57 | J170: 823.07 | K170: 830.13 | L170: 834.32 | M170: 825.95 | N170: 814.7 | O170: 96240000 | P170: -0.38%
A171: 161 | B171: Cement | C171: SHREECEM | D171: 2024-08-29 | E171: 24870.60 | F171: 24859.42 | G171: 24743.13 | H171: 24615.67 | I171: 24499.38 | J171: 24986.88 | K171: 25103.17 | L171: 25230.63 | M171: 24975.7 | N171: 24731.95 | O171: 311925 | P171: 0.58%
A172: 162 | B172: Capital_Goods | C172: SIEMENS | D172: 2024-08-29 | E172: 7120.15 | F172: 7161.75 | G172: 7064.50 | H172: 7008.85 | I172: 6911.60 | J172: 7217.40 | K172: 7314.65 | L172: 7370.30 | M172: 7259 | N172: 7106.1 | O172: 2282400 | P172: -0.43%
A173: 163 | B173: Textile | C173: SRF | D173: 2024-08-29 | E173: 2482.10 | F173: 2479.00 | G173: 2459.25 | H173: 2436.40 | I173: 2416.65 | J173: 2501.85 | K173: 2521.60 | L173: 2544.45 | M173: 2498.75 | N173: 2456.15 | O173: 5547750 | P173: 1.71%
A174: 164 | B174: Finance | C174: SHRIRAMFIN | D174: 2024-08-29 | E174: 3076.35 | F174: 3059.28 | G174: 3032.57 | H174: 2988.78 | I174: 2962.07 | J174: 3103.07 | K174: 3129.78 | L174: 3173.57 | M174: 3086 | N174: 3015.5 | O174: 6512400 | P174: -0.47%
A175: 165 | B175: Pharma | C175: SUNPHARMA | D175: 2024-08-29 | E175: 1747.75 | F175: 1745.78 | G175: 1741.67 | H175: 1735.58 | I175: 1731.47 | J175: 1751.87 | K175: 1755.98 | L175: 1762.07 | M175: 1749.9 | N175: 1739.7 | O175: 16336950 | P175: -0.00%
A176: 166 | B176: Media | C176: SUNTV | D176: 2024-08-29 | E176: 807.90 | F176: 810.92 | G176: 801.83 | H176: 795.77 | I176: 786.68 | J176: 816.98 | K176: 826.07 | L176: 832.13 | M176: 820 | N176: 804.85 | O176: 9504000 | P176: -0.66%
A177: 167 | B177: Pharma | C177: SYNGENE | D177: 2024-08-29 | E177: 826.55 | F177: 828.18 | G177: 820.47 | H177: 814.38 | I177: 806.67 | J177: 834.27 | K177: 841.98 | L177: 848.07 | M177: 835.9 | N177: 822.1 | O177: 5988000 | P177: 0.93%
A178: 168 | B178: Chemicals | C178: TATACHEM | D178: 2024-08-29 | E178: 1054.20 | F178: 1051.10 | G178: 1045.10 | H178: 1036.00 | I178: 1030.00 | J178: 1060.20 | K178: 1066.20 | L178: 1075.30 | M178: 1057.1 | N178: 1042 | O178: 9372550 | P178: 0.51%
A179: 169 | B179: Telecom | C179: TATACOMM | D179: 2024-08-29 | E179: 1877.50 | F179: 1878.73 | G179: 1870.87 | H179: 1864.23 | I179: 1856.37 | J179: 1885.37 | K179: 1893.23 | L179: 1899.87 | M179: 1886.6 | N179: 1872.1 | O179: 6548000 | P179: -2.09%
A180: 170 | B180: FMCG | C180: TATACONSUM | D180: 2024-08-29 | E180: 1178.90 | F180: 1184.55 | G180: 1169.85 | H180: 1160.80 | I180: 1146.10 | J180: 1193.60 | K180: 1208.30 | L180: 1217.35 | M180: 1199.25 | N180: 1175.5 | O180: 11988696 | P180: 2.77%
A181: 171 | B181: Automobile | C181: TATAMOTORS | D181: 2024-08-29 | E181: 1088.70 | F181: 1091.82 | G181: 1078.63 | H181: 1068.57 | I181: 1055.38 | J181: 1101.88 | K181: 1115.07 | L181: 1125.13 | M181: 1105 | N181: 1081.75 | O181: 69586000 | P181: 1.20%
A182: 172 | B182: Power | C182: TATAPOWER | D182: 2024-08-29 | E182: 419.80 | F182: 418.92 | G182: 416.38 | H182: 412.97 | I182: 410.43 | J182: 422.33 | K182: 424.87 | L182: 428.28 | M182: 421.45 | N182: 415.5 | O182: 98265150 | P182: -0.07%
A183: 173 | B183: Metals | C183: TATASTEEL | D183: 2024-08-29 | E183: 154.17 | F183: 152.96 | G183: 151.53 | H183: 148.88 | I183: 147.45 | J183: 155.61 | K183: 157.04 | L183: 159.69 | M183: 154.4 | N183: 150.32 | O183: 271084000 | P183: -4.05%
A184: 174 | B184: Technology | C184: TCS | D184: 2024-08-29 | E184: 4489.85 | F184: 4461.73 | G184: 4430.77 | H184: 4371.68 | I184: 4340.72 | J184: 4520.82 | K184: 4551.78 | L184: 4610.87 | M184: 4492.7 | N184: 4402.65 | O184: 14768600 | P184: 5.85%
A185: 175 | B185: Technology | C185: TECHM | D185: 2024-08-29 | E185: 1594.60 | F185: 1591.43 | G185: 1581.22 | H185: 1567.83 | I185: 1557.62 | J185: 1604.82 | K185: 1615.03 | L185: 1628.42 | M185: 1601.65 | N185: 1578.05 | O185: 12590400 | P185: 0.12%
A186: 176 | B186: FMCG | C186: TITAN | D186: 2024-08-29 | E186: 3467.00 | F186: 3471.07 | G186: 3437.63 | H186: 3408.27 | I186: 3374.83 | J186: 3500.43 | K186: 3533.87 | L186: 3563.23 | M186: 3504.5 | N186: 3441.7 | O186: 9648275 | P186: -0.83%
A187: 177 | B187: Pharma | C187: TORNTPHARM | D187: 2024-08-29 | E187: 3352.90 | F187: 3354.37 | G187: 3331.13 | H187: 3309.37 | I187: 3286.13 | J187: 3376.13 | K187: 3399.37 | L187: 3421.13 | M187: 3377.6 | N187: 3332.6 | O187: 2409000 | P187: 3.45%
A188: 178 | B188: Textile | C188: TRENT | D188: 2024-08-29 | E188: 6706.45 | F188: 6663.13 | G188: 6578.32 | H188: 6450.18 | I188: 6365.37 | J188: 6791.27 | K188: 6876.08 | L188: 7004.22 | M188: 6747.95 | N188: 6535 | O188: 3193200 | P188: 3.01%
A189: 179 | B189: Automobile | C189: TVSMOTOR | D189: 2024-08-29 | E189: 2614.50 | F189: 2612.20 | G189: 2595.40 | H189: 2576.30 | I189: 2559.50 | J189: 2631.30 | K189: 2648.10 | L189: 2667.20 | M189: 2629 | N189: 2593.1 | O189: 5419750 | P189: 0.28%
A190: 180 | B190: FMCG | C190: UBL | D190: 2024-08-29 | E190: 1974.70 | F190: 1981.93 | G190: 1952.87 | H190: 1931.03 | I190: 1901.97 | J190: 2003.77 | K190: 2032.83 | L190: 2054.67 | M190: 2011 | N190: 1960.1 | O190: 2372400 | P190: 2.54%
A191: 181 | B191: Cement | C191: ULTRACEMCO | D191: 2024-08-29 | E191: 11351.10 | F191: 11387.22 | G191: 11284.48 | H191: 11217.87 | I191: 11115.13 | J191: 11453.83 | K191: 11556.57 | L191: 11623.18 | M191: 11489.95 | N191: 11320.6 | O191: 2227100 | P191: 0.51%
A192: 182 | B192: Chemicals | C192: UPL | D192: 2024-08-29 | E192: 562.95 | F192: 560.60 | G192: 556.05 | H192: 549.15 | I192: 544.60 | J192: 567.50 | K192: 572.05 | L192: 578.95 | M192: 565.15 | N192: 553.7 | O192: 37342500 | P192: 0.80%
A193: 183 | B193: Metals | C193: VEDL | D193: 2024-08-29 | E193: 443.25 | F193: 438.93 | G193: 433.37 | H193: 423.48 | I193: 417.92 | J193: 448.82 | K193: 454.38 | L193: 464.27 | M193: 444.5 | N193: 429.05 | O193: 151312400 | P193: -1.05%
A194: 184 | B194: Capital_Goods | C194: VOLTAS | D194: 2024-08-29 | E194: 1607.20 | F194: 1589.00 | G194: 1567.20 | H194: 1527.20 | I194: 1505.40 | J194: 1629.00 | K194: 1650.80 | L194: 1690.80 | M194: 1610.8 | N194: 1549 | O194: 10086600 | P194: -2.91%
A195: 185 | B195: Technology | C195: WIPRO | D195: 2024-08-29 | E195: 521.40 | F195: 519.97 | G195: 516.33 | H195: 511.27 | I195: 507.63 | J195: 525.03 | K195: 528.67 | L195: 533.73 | M195: 523.6 | N195: 514.9 | O195: 54232500 | P195: 0.48%
A196: 186 | B196: Pharma | C196: ZYDUSLIFE | D196: 2024-08-29 | E196: 1185.00 | F196: 1187.10 | G196: 1177.90 | H196: 1170.80 | I196: 1161.60 | J196: 1194.20 | K196: 1203.40 | L196: 1210.50 | M196: 1196.3 | N196: 1180 | O196: 19876500 | P196: 0.60%
A210: Pivot Point: This is trigger point for intra day buy/sell based on the price range of the previous day
A211: As per the tool,the trader should take BUY position just above Pivot and keep the stop loss of pivot point and the first target would be Resistance 1(R1)
A212: If R1 is crossed then R2 becomes the next target with stop loss of at R1
A213: Similarly if price goes below pivot point then the trader should sell and keep a stop loss of pivot point and the first target would be S1
A214: If S1 is crossed then S2 becomes the next target with stop loss of at S1
A216: Disclaimer:
A217: This document has been prepared by the Retail Research Desk of Asit C Mehta
A218: Investment Intermediates Ltd. and is meant for use of the recipient only
A219: and is not for circulation. This document is not to be reported or
A220: copied or made available to others. It should not be considered to be
... 5 more rows

Sheet Cash Intra
M5: Back to Main Page
A6: FOR INTRA DAY TRADING | K6: =Main!B10 -> 2024-08-20
A8: Sr.no | C8: CLOSE RATE | D8: Pivot Point | E8: Supports | H8: Resistances
E9: S1 | F9: S2 | G9: S3 | H9: R1 | I9: R2 | J9: R3 | K9: HIGH | L9: LOW | M9: Total Trade Quanity in Lakhs
A10: 1 | B10: Nifty 50 | C10: 24572.65 | D10: 24578.13 | E10: 24517.47 | F10: 24462.28 | G10: 24401.62 | H10: 24633.32 | I10: 24693.98 | J10: 24749.17 | K10: 24638.80 | L10: 24522.95
A11: 2 | B11: Nifty Bank | C11: 50368.35 | D11: 50460.05 | E11: 50191.85 | F11: 50015.35 | G11: 49747.15 | H11: 50636.55 | I11: 50904.75 | J11: 51081.25 | K11: 50728.25 | L11: 50283.55
A12: 3 | B12: Nifty CPSE | C12: 7376.75 | D12: 7380.28 | E12: 7353.17 | F12: 7329.58 | G12: 7302.47 | H12: 7403.87 | I12: 7430.98 | J12: 7454.57 | K12: 7407.40 | L12: 7356.70
A13: 4 | B13: Nifty Infra | C13: 9182.70 | D13: 9194.97 | E13: 9154.13 | F13: 9125.57 | G13: 9084.73 | H13: 9223.53 | I13: 9264.37 | J13: 9292.93 | K13: 9235.80 | L13: 9166.40
A14: 5 | B14: Nifty IT | C14: 41236.85 | D14: 41081.67 | E14: 40891.73 | F14: 40546.62 | G14: 40356.68 | H14: 41426.78 | I14: 41616.72 | J14: 41961.83 | K14: 41271.60 | L14: 40736.55
A15: 6 | B15: Nifty PSE | C15: 11314.60 | D15: 11315.40 | E15: 11264.95 | F15: 11215.30 | G15: 11164.85 | H15: 11365.05 | I15: 11415.50 | J15: 11465.15 | K15: 11365.85 | L15: 11265.75
A16: 7 | B16: Nifty Midcap 50 | C16: 16260.05 | D16: 16276.95 | E16: 16184.80 | F16: 16109.55 | G16: 16017.40 | H16: 16352.20 | I16: 16444.35 | J16: 16519.60 | K16: 16369.10 | L16: 16201.70
A17: 8 | B17: ABB | C17: 7822.6 | D17: 7871.98 | E17: 7759.57 | F17: 7696.53 | G17: 7584.12 | H17: 7935.02 | I17: 8047.43 | J17: 8110.47 | K17: 7984.4 | L17: 7808.95 | M17: 1.40445
A18: 9 | B18: ACC | C18: 2347.45 | D18: 2343.80 | E18: 2332.65 | F18: 2317.85 | G18: 2306.70 | H18: 2358.60 | I18: 2369.75 | J18: 2384.55 | K18: 2354.95 | L18: 2329 | M18: 1.7048
A19: 10 | B19: APLAPOLLO | C19: 1357 | D19: 1372.18 | E19: 1336.82 | F19: 1316.63 | G19: 1281.27 | H19: 1392.37 | I19: 1427.73 | J19: 1447.92 | K19: 1407.55 | L19: 1352 | M19: 10.03809
A20: 11 | B20: AUBANK | C20: 615.25 | D20: 615.93 | E20: 609.32 | F20: 603.38 | G20: 596.77 | H20: 621.87 | I20: 628.48 | J20: 634.42 | K20: 622.55 | L20: 610 | M20: 22.73232
A21: 12 | B21: ADANIENSOL | C21: 1092.55 | D21: 1098.08 | E21: 1084.27 | F21: 1075.98 | G21: 1062.17 | H21: 1106.37 | I21: 1120.18 | J21: 1128.47 | K21: 1111.9 | L21: 1089.8 | M21: 17.82102
A22: 13 | B22: ADANIENT | C22: 3102.55 | D22: 3109.93 | E22: 3085.57 | F22: 3068.58 | G22: 3044.22 | H22: 3126.92 | I22: 3151.28 | J22: 3168.27 | K22: 3134.3 | L22: 3092.95 | M22: 5.57265
A23: 14 | B23: ADANIGREEN | C23: 1898 | D23: 1872.70 | E23: 1835.50 | F23: 1773.00 | G23: 1735.80 | H23: 1935.20 | I23: 1972.40 | J23: 2034.90 | K23: 1909.9 | L23: 1810.2 | M23: 17.45998
A24: 15 | B24: ADANIPORTS | C24: 1496.45 | D24: 1497.82 | E24: 1488.63 | F24: 1480.82 | G24: 1471.63 | H24: 1505.63 | I24: 1514.82 | J24: 1522.63 | K24: 1507 | L24: 1490 | M24: 13.43387
A25: 16 | B25: ADANIPOWER | C25: 697 | D25: 698.92 | E25: 691.08 | F25: 685.17 | G25: 677.33 | H25: 704.83 | I25: 712.67 | J25: 718.58 | K25: 706.75 | L25: 693 | M25: 163.69504
A26: 17 | B26: ATGL | C26: 856.35 | D26: 854.40 | E26: 848.00 | F26: 839.65 | G26: 833.25 | H26: 862.75 | I26: 869.15 | J26: 877.50 | K26: 860.8 | L26: 846.05 | M26: 49.51015
A27: 18 | B27: AWL | C27: 359.8 | D27: 362.45 | E27: 355.90 | F27: 352.00 | G27: 345.45 | H27: 366.35 | I27: 372.90 | J27: 376.80 | K27: 369 | L27: 358.55 | M27: 24.4529
A28: 19 | B28: ABCAPITAL | C28: 213 | D28: 214.26 | E28: 210.66 | F28: 208.31 | G28: 204.71 | H28: 216.61 | I28: 220.21 | J28: 222.56 | K28: 217.87 | L28: 211.92 | M28: 57.02535
A29: 20 | B29: ABFRL | C29: 320.25 | D29: 320.63 | E29: 317.42 | F29: 314.58 | G29: 311.37 | H29: 323.47 | I29: 326.68 | J29: 329.52 | K29: 323.85 | L29: 317.8 | M29: 18.04456
A30: 21 | B30: ALKEM | C30: 5740.7 | D30: 5727.57 | E30: 5690.48 | F30: 5640.27 | G30: 5603.18 | H30: 5777.78 | I30: 5814.87 | J30: 5865.08 | K30: 5764.65 | L30: 5677.35 | M30: 2.02117
A31: 22 | B31: AMBUJACEM | C31: 633.7 | D31: 636.52 | E31: 629.38 | F31: 625.07 | G31: 617.93 | H31: 640.83 | I31: 647.97 | J31: 652.28 | K31: 643.65 | L31: 632.2 | M31: 9.38492
A32: 23 | B32: APOLLOHOSP | C32: 6724.9 | D32: 6682.28 | E32: 6607.67 | F32: 6490.43 | G32: 6415.82 | H32: 6799.52 | I32: 6874.13 | J32: 6991.37 | K32: 6756.9 | L32: 6565.05 | M32: 3.98225
A33: 24 | B33: APOLLOTYRE | C33: 483 | D33: 484.67 | E33: 480.53 | F33: 478.07 | G33: 473.93 | H33: 487.13 | I33: 491.27 | J33: 493.73 | K33: 488.8 | L33: 482.2 | M33: 12.62033
A34: 25 | B34: ASHOKLEY | C34: 257.5 | D34: 257.78 | E34: 255.42 | F34: 253.33 | G34: 250.97 | H34: 259.87 | I34: 262.23 | J34: 264.32 | K34: 260.15 | L34: 255.7 | M34: 146.23178
A35: 26 | B35: ASIANPAINT | C35: 3076.3 | D35: 3067.50 | E35: 3047.15 | F35: 3018.00 | G35: 2997.65 | H35: 3096.65 | I35: 3117.00 | J35: 3146.15 | K35: 3087.85 | L35: 3038.35 | M35: 5.42858
A36: 27 | B36: ASTRAL | C36: 1882.75 | D36: 1887.80 | E36: 1865.95 | F36: 1849.15 | G36: 1827.30 | H36: 1904.60 | I36: 1926.45 | J36: 1943.25 | K36: 1909.65 | L36: 1871 | M36: 15.9384
A37: 28 | B37: AUROPHARMA | C37: 1519.2 | D37: 1515.38 | E37: 1494.12 | F37: 1469.03 | G37: 1447.77 | H37: 1540.47 | I37: 1561.73 | J37: 1586.82 | K37: 1536.65 | L37: 1490.3 | M37: 14.72094
A38: 29 | B38: DMART | C38: 5002.7 | D38: 5010.92 | E38: 4973.83 | F38: 4944.97 | G38: 4907.88 | H38: 5039.78 | I38: 5076.87 | J38: 5105.73 | K38: 5048 | L38: 4982.05 | M38: 1.71799
A39: 30 | B39: AXISBANK | C39: 1153.25 | D39: 1158.25 | E39: 1145.20 | F39: 1137.15 | G39: 1124.10 | H39: 1166.30 | I39: 1179.35 | J39: 1187.40 | K39: 1171.3 | L39: 1150.2 | M39: 66.91823
A40: 31 | B40: BAJAJ-AUTO | C40: 9770.65 | D40: 9824.65 | E40: 9705.30 | F40: 9639.95 | G40: 9520.60 | H40: 9890.00 | I40: 10009.35 | J40: 10074.70 | K40: 9944 | L40: 9759.3 | M40: 1.48301
A41: 32 | B41: BAJFINANCE | C41: 6616.35 | D41: 6621.98 | E41: 6587.97 | F41: 6559.58 | G41: 6525.57 | H41: 6650.37 | I41: 6684.38 | J41: 6712.77 | K41: 6656 | L41: 6593.6 | M41: 5.2873
A42: 33 | B42: BAJAJFINSV | C42: 1551.1 | D42: 1553.35 | E42: 1542.80 | F42: 1534.50 | G42: 1523.95 | H42: 1561.65 | I42: 1572.20 | J42: 1580.50 | K42: 1563.9 | L42: 1545.05 | M42: 9.40893
A43: 34 | B43: BAJAJHLDNG | C43: 9607.65 | D43: 9601.23 | E43: 9536.52 | F43: 9465.38 | G43: 9400.67 | H43: 9672.37 | I43: 9737.08 | J43: 9808.22 | K43: 9665.95 | L43: 9530.1 | M43: 0.11623
A44: 35 | B44: BALKRISIND | C44: 2802.3 | D44: 2815.25 | E44: 2783.10 | F44: 2763.90 | G44: 2731.75 | H44: 2834.45 | I44: 2866.60 | J44: 2885.80 | K44: 2847.4 | L44: 2796.05 | M44: 1.82764
A45: 36 | B45: BANDHANBNK | C45: 192.02 | D45: 192.76 | E45: 190.76 | F45: 189.51 | G45: 187.51 | H45: 194.01 | I45: 196.01 | J45: 197.26 | K45: 194.75 | L45: 191.5 | M45: 54.87644
A46: 37 | B46: BANKBARODA | C46: 247.35 | D46: 246.90 | E46: 244.35 | F46: 241.35 | G46: 238.80 | H46: 249.90 | I46: 252.45 | J46: 255.45 | K46: 249.45 | L46: 243.9 | M46: 105.33731
A47: 38 | B47: BANKINDIA | C47: 117.32 | D47: 117.60 | E47: 116.41 | F47: 115.49 | G47: 114.30 | H47: 118.52 | I47: 119.71 | J47: 120.63 | K47: 118.8 | L47: 116.69 | M47: 33.73191
A48: 39 | B48: BATAINDIA | C48: 1425.05 | D48: 1432.42 | E48: 1411.63 | F48: 1398.22 | G48: 1377.43 | H48: 1445.83 | I48: 1466.62 | J48: 1480.03 | K48: 1453.2 | L48: 1419 | M48: 3.27997
A49: 40 | B49: BERGEPAINT | C49: 562.75 | D49: 558.38 | E49: 552.42 | F49: 542.08 | G49: 536.12 | H49: 568.72 | I49: 574.68 | J49: 585.02 | K49: 564.35 | L49: 548.05 | M49: 25.10348
A50: 41 | B50: BDL | C50: 1330.6 | D50: 1331.63 | E50: 1312.27 | F50: 1293.93 | G50: 1274.57 | H50: 1349.97 | I50: 1369.33 | J50: 1387.67 | K50: 1351 | L50: 1313.3 | M50: 8.55127
A51: 42 | B51: BEL | C51: 302.15 | D51: 302.93 | E51: 300.32 | F51: 298.48 | G51: 295.87 | H51: 304.77 | I51: 307.38 | J51: 309.22 | K51: 305.55 | L51: 301.1 | M51: 122.32725
A52: 43 | B52: BHARATFORG | C52: 1587.7 | D52: 1587.18 | E52: 1560.67 | F52: 1533.63 | G52: 1507.12 | H52: 1614.22 | I52: 1640.73 | J52: 1667.77 | K52: 1613.7 | L52: 1560.15 | M52: 11.85925
A53: 44 | B53: BHEL | C53: 293.75 | D53: 295.53 | E53: 291.57 | F53: 289.38 | G53: 285.42 | H53: 297.72 | I53: 301.68 | J53: 303.87 | K53: 299.5 | L53: 293.35 | M53: 98.09448
A54: 45 | B54: BPCL | C54: 343.8 | D54: 341.90 | E54: 338.25 | F54: 332.70 | G54: 329.05 | H54: 347.45 | I54: 351.10 | J54: 356.65 | K54: 345.55 | L54: 336.35 | M54: 178.75728
A55: 46 | B55: BHARTIARTL | C55: 1469.65 | D55: 1474.35 | E55: 1459.60 | F55: 1449.55 | G55: 1434.80 | H55: 1484.40 | I55: 1499.15 | J55: 1509.20 | K55: 1489.1 | L55: 1464.3 | M55: 44.04075
A56: 47 | B56: BIOCON | C56: 344.8 | D56: 344.28 | E56: 341.17 | F56: 337.53 | G56: 334.42 | H56: 347.92 | I56: 351.03 | J56: 354.67 | K56: 347.4 | L56: 340.65 | M56: 34.5351
A57: 48 | B57: BOSCHLTD | C57: 31605.75 | D57: 31737.77 | E57: 31393.08 | F57: 31180.42 | G57: 30835.73 | H57: 31950.43 | I57: 32295.12 | J57: 32507.78 | K57: 32082.45 | L57: 31525.1 | M57: 0.25158
A58: 49 | B58: BRITANNIA | C58: 5732.5 | D58: 5737.95 | E58: 5712.65 | F58: 5692.80 | G58: 5667.50 | H58: 5757.80 | I58: 5783.10 | J58: 5802.95 | K58: 5763.25 | L58: 5718.1 | M58: 1.02452
A59: 50 | B59: CGPOWER | C59: 710.55 | D59: 713.73 | E59: 702.47 | F59: 694.38 | G59: 683.12 | H59: 721.82 | I59: 733.08 | J59: 741.17 | K59: 725 | L59: 705.65 | M59: 12.66637
A60: 51 | B60: CANBK | C60: 109.9 | D60: 109.74 | E60: 108.24 | F60: 106.57 | G60: 105.07 | H60: 111.41 | I60: 112.91 | J60: 114.58 | K60: 111.25 | L60: 108.08 | M60: 277.92179
A61: 52 | B61: CHOLAFIN | C61: 1349.7 | D61: 1357.93 | E61: 1338.87 | F61: 1328.03 | G61: 1308.97 | H61: 1368.77 | I61: 1387.83 | J61: 1398.67 | K61: 1377 | L61: 1347.1 | M61: 10.38009
A62: 53 | B62: CIPLA | C62: 1575.5 | D62: 1576.72 | E62: 1568.48 | F62: 1561.47 | G62: 1553.23 | H62: 1583.73 | I62: 1591.97 | J62: 1598.98 | K62: 1584.95 | L62: 1569.7 | M62: 7.42635
A63: 54 | B63: COALINDIA | C63: 522 | D63: 519.53 | E63: 515.62 | F63: 509.23 | G63: 505.32 | H63: 525.92 | I63: 529.83 | J63: 536.22 | K63: 523.45 | L63: 513.15 | M63: 107.37456
A64: 55 | B64: COFORGE | C64: 6059.65 | D64: 6081.40 | E64: 6012.80 | F64: 5965.95 | G64: 5897.35 | H64: 6128.25 | I64: 6196.85 | J64: 6243.70 | K64: 6150 | L64: 6034.55 | M64: 4.15023
A65: 56 | B65: COLPAL | C65: 3547.05 | D65: 3550.02 | E65: 3530.03 | F65: 3513.02 | G65: 3493.03 | H65: 3567.03 | I65: 3587.02 | J65: 3604.03 | K65: 3570 | L65: 3533 | M65: 3.36203
A66: 57 | B66: CONCOR | C66: 968.3 | D66: 972.52 | E66: 955.23 | F66: 942.17 | G66: 924.88 | H66: 985.58 | I66: 1002.87 | J66: 1015.93 | K66: 989.8 | L66: 959.45 | M66: 23.16816
A67: 58 | B67: COROMANDEL | C67: 1740.85 | D67: 1742.72 | E67: 1711.48 | F67: 1682.12 | G67: 1650.88 | H67: 1772.08 | I67: 1803.32 | J67: 1832.68 | K67: 1773.95 | L67: 1713.35 | M67: 4.39781
A68: 59 | B68: CROMPTON | C68: 453.6 | D68: 450.52 | E68: 445.73 | F68: 437.87 | G68: 433.08 | H68: 458.38 | I68: 463.17 | J68: 471.03 | K68: 455.3 | L68: 442.65 | M68: 41.02713
A69: 60 | B69: CUMMINSIND | C69: 3754.85 | D69: 3759.78 | E69: 3715.07 | F69: 3675.28 | G69: 3630.57 | H69: 3799.57 | I69: 3844.28 | J69: 3884.07 | K69: 3804.5 | L69: 3720 | M69: 5.62243
A70: 61 | B70: DLF | C70: 857.2 | D70: 861.72 | E70: 850.78 | F70: 844.37 | G70: 833.43 | H70: 868.13 | I70: 879.07 | J70: 885.48 | K70: 872.65 | L70: 855.3 | M70: 15.52098
A71: 62 | B71: DABUR | C71: 621.3 | D71: 620.35 | E71: 615.80 | F71: 610.30 | G71: 605.75 | H71: 625.85 | I71: 630.40 | J71: 635.90 | K71: 624.9 | L71: 614.85 | M71: 23.32398
A72: 63 | B72: DALBHARAT | C72: 1768.95 | D72: 1770.38 | E72: 1754.42 | F72: 1739.88 | G72: 1723.92 | H72: 1784.92 | I72: 1800.88 | J72: 1815.42 | K72: 1786.35 | L72: 1755.85 | M72: 5.25217
A73: 64 | B73: DEEPAKNTR | C73: 2874.25 | D73: 2885.97 | E73: 2852.08 | F73: 2829.92 | G73: 2796.03 | H73: 2908.13 | I73: 2942.02 | J73: 2964.18 | K73: 2919.85 | L73: 2863.8 | M73: 1.07996
A74: 65 | B74: DELHIVERY | C74: 432.25 | D74: 427.88 | E74: 421.97 | F74: 411.68 | G74: 405.77 | H74: 438.17 | I74: 444.08 | J74: 454.37 | K74: 433.8 | L74: 417.6 | M74: 64.20594
A75: 66 | B75: DEVYANI | C75: 169.76 | D75: 170.92 | E75: 167.94 | F75: 166.12 | G75: 163.14 | H75: 172.74 | I75: 175.72 | J75: 177.54 | K75: 173.9 | L75: 169.1 | M75: 12.89807
A76: 67 | B76: DIVISLAB | C76: 4669.9 | D76: 4658.47 | E76: 4626.98 | F76: 4584.07 | G76: 4552.58 | H76: 4701.38 | I76: 4732.87 | J76: 4775.78 | K76: 4689.95 | L76: 4615.55 | M76: 2.32374
A77: 68 | B77: DIXON | C77: 12779.95 | D77: 12678.25 | E77: 12521.50 | F77: 12263.05 | G77: 12106.30 | H77: 12936.70 | I77: 13093.45 | J77: 13351.90 | K77: 12835 | L77: 12419.8 | M77: 7.10397
A78: 69 | B78: LALPATHLAB | C78: 3310.9 | D78: 3313.23 | E78: 3287.67 | F78: 3264.43 | G78: 3238.87 | H78: 3336.47 | I78: 3362.03 | J78: 3385.27 | K78: 3338.8 | L78: 3290 | M78: 0.86659
A79: 70 | B79: DRREDDY | C79: 6911.35 | D79: 6884.32 | E79: 6844.63 | F79: 6777.92 | G79: 6738.23 | H79: 6951.03 | I79: 6990.72 | J79: 7057.43 | K79: 6924 | L79: 6817.6 | M79: 1.61847
A80: 71 | B80: EICHERMOT | C80: 4813.3 | D80: 4813.77 | E80: 4779.53 | F80: 4745.77 | G80: 4711.53 | H80: 4847.53 | I80: 4881.77 | J80: 4915.53 | K80: 4848 | L80: 4780 | M80: 2.80722
A81: 72 | B81: ESCORTS | C81: 3728.8 | D81: 3744.50 | E81: 3704.05 | F81: 3679.30 | G81: 3638.85 | H81: 3769.25 | I81: 3809.70 | J81: 3834.45 | K81: 3784.95 | L81: 3719.75 | M81: 1.11006
A82: 73 | B82: NYKAA | C82: 192.63 | D82: 193.87 | E82: 190.05 | F82: 187.48 | G82: 183.66 | H82: 196.44 | I82: 200.26 | J82: 202.83 | K82: 197.68 | L82: 191.29 | M82: 47.28087
A83: 74 | B83: FEDERALBNK | C83: 202.69 | D83: 203.50 | E83: 201.31 | F83: 199.92 | G83: 197.73 | H83: 204.89 | I83: 207.08 | J83: 208.47 | K83: 205.7 | L83: 202.12 | M83: 115.39502
A84: 75 | B84: FACT | C84: 926.5 | D84: 929.72 | E84: 919.43 | F84: 912.37 | G84: 902.08 | H84: 936.78 | I84: 947.07 | J84: 954.13 | K84: 940 | L84: 922.65 | M84: 1.09964
A85: 76 | B85: FORTIS | C85: 523.2 | D85: 528.32 | E85: 514.13 | F85: 505.07 | G85: 490.88 | H85: 537.38 | I85: 551.57 | J85: 560.63 | K85: 542.5 | L85: 519.25 | M85: 20.34984
A86: 77 | B86: GAIL | C86: 238.93 | D86: 237.35 | E86: 235.11 | F86: 231.28 | G86: 229.04 | H86: 241.18 | I86: 243.42 | J86: 247.25 | K86: 239.6 | L86: 233.53 | M86: 190.04338
A87: 78 | B87: GLAND | C87: 1961 | D87: 1969.00 | E87: 1943.00 | F87: 1925.00 | G87: 1899.00 | H87: 1987.00 | I87: 2013.00 | J87: 2031.00 | K87: 1995 | L87: 1951 | M87: 1.36153
A88: 79 | B88: GODREJCP | C88: 1403.65 | D88: 1401.08 | E88: 1388.62 | F88: 1373.58 | G88: 1361.12 | H88: 1416.12 | I88: 1428.58 | J88: 1443.62 | K88: 1413.55 | L88: 1386.05 | M88: 3.71436
A89: 80 | B89: GODREJPROP | C89: 2926 | D89: 2924.63 | E89: 2889.37 | F89: 2852.73 | G89: 2817.47 | H89: 2961.27 | I89: 2996.53 | J89: 3033.17 | K89: 2959.9 | L89: 2888 | M89: 7.01633
A90: 81 | B90: GRASIM | C90: 2598.4 | D90: 2596.87 | E90: 2558.58 | F90: 2518.77 | G90: 2480.48 | H90: 2636.68 | I90: 2674.97 | J90: 2714.78 | K90: 2635.15 | L90: 2557.05 | M90: 6.82028
A91: 82 | B91: FLUOROCHEM | C91: 3377.5 | D91: 3393.70 | E91: 3318.15 | F91: 3258.80 | G91: 3183.25 | H91: 3453.05 | I91: 3528.60 | J91: 3587.95 | K91: 3469.25 | L91: 3334.35 | M91: 0.69987
A92: 83 | B92: GUJGASLTD | C92: 590.75 | D92: 595.20 | E92: 584.55 | F92: 578.35 | G92: 567.70 | H92: 601.40 | I92: 612.05 | J92: 618.25 | K92: 605.85 | L92: 589 | M92: 7.83832
A93: 84 | B93: HCLTECH | C93: 1678.5 | D93: 1674.18 | E93: 1663.37 | F93: 1648.23 | G93: 1637.42 | H93: 1689.32 | I93: 1700.13 | J93: 1715.27 | K93: 1685 | L93: 1659.05 | M93: 16.31947
A94: 85 | B94: HDFCAMC | C94: 4196.15 | D94: 4200.68 | E94: 4157.52 | F94: 4118.88 | G94: 4075.72 | H94: 4239.32 | I94: 4282.48 | J94: 4321.12 | K94: 4243.85 | L94: 4162.05 | M94: 8.84376
A95: 86 | B95: HDFCBANK | C95: 1631.55 | D95: 1630.97 | E95: 1624.28 | F95: 1617.02 | G95: 1610.33 | H95: 1638.23 | I95: 1644.92 | J95: 1652.18 | K95: 1637.65 | L95: 1623.7 | M95: 97.51082
A96: 87 | B96: HDFCLIFE | C96: 685.7 | D96: 684.53 | E96: 679.67 | F96: 673.63 | G96: 668.77 | H96: 690.57 | I96: 695.43 | J96: 701.47 | K96: 689.4 | L96: 678.5 | M96: 23.52893
A97: 88 | B97: HAVELLS | C97: 1881.85 | D97: 1883.05 | E97: 1868.80 | F97: 1855.75 | G97: 1841.50 | H97: 1896.10 | I97: 1910.35 | J97: 1923.40 | K97: 1897.3 | L97: 1870 | M97: 6.22654
A98: 89 | B98: HEROMOTOCO | C98: 5188.9 | D98: 5173.48 | E98: 5122.97 | F98: 5057.03 | G98: 5006.52 | H98: 5239.42 | I98: 5289.93 | J98: 5355.87 | K98: 5224 | L98: 5107.55 | M98: 7.14915
A99: 90 | B99: HINDALCO | C99: 658.85 | D99: 651.88 | E99: 643.47 | F99: 628.08 | G99: 619.67 | H99: 667.27 | I99: 675.68 | J99: 691.07 | K99: 660.3 | L99: 636.5 | M99: 95.10274
A100: 91 | B100: HAL | C100: 4792.25 | D100: 4808.23 | E100: 4758.47 | F100: 4724.68 | G100: 4674.92 | H100: 4842.02 | I100: 4891.78 | J100: 4925.57 | K100: 4858 | L100: 4774.45 | M100: 23.62884
A101: 92 | B101: HINDPETRO | C101: 387.35 | D101: 388.58 | E101: 382.32 | F101: 377.28 | G101: 371.02 | H101: 393.62 | I101: 399.88 | J101: 404.92 | K101: 394.85 | L101: 383.55 | M101: 132.13008
A102: 93 | B102: HINDUNILVR | C102: 2742.55 | D102: 2746.45 | E102: 2733.15 | F102: 2723.75 | G102: 2710.45 | H102: 2755.85 | I102: 2769.15 | J102: 2778.55 | K102: 2759.75 | L102: 2737.05 | M102: 11.30327
A103: 94 | B103: ICICIBANK | C103: 1175.9 | D103: 1181.65 | E103: 1167.55 | F103: 1159.20 | G103: 1145.10 | H103: 1190.00 | I103: 1204.10 | J103: 1212.45 | K103: 1195.75 | L103: 1173.3 | M103: 66.86394
A104: 95 | B104: ICICIGI | C104: 2014.05 | D104: 2019.03 | E104: 1988.07 | F104: 1962.08 | G104: 1931.12 | H104: 2045.02 | I104: 2075.98 | J104: 2101.97 | K104: 2050 | L104: 1993.05 | M104: 5.7028
A105: 96 | B105: ICICIPRULI | C105: 720.05 | D105: 719.70 | E105: 714.90 | F105: 709.75 | G105: 704.95 | H105: 724.85 | I105: 729.65 | J105: 734.80 | K105: 724.5 | L105: 714.55 | M105: 4.72715
A106: 97 | B106: IDFCFIRSTB | C106: 72.01 | D106: 72.00 | E106: 71.61 | F106: 71.22 | G106: 70.83 | H106: 72.39 | I106: 72.78 | J106: 73.17 | K106: 72.38 | L106: 71.6 | M106: 278.26873
A107: 98 | B107: ITC | C107: 501.45 | D107: 503.45 | E107: 497.60 | F107: 493.75 | G107: 487.90 | H107: 507.30 | I107: 513.15 | J107: 517.00 | K107: 509.3 | L107: 499.6 | M107: 101.98725
A108: 99 | B108: INDIANB | C108: 550 | D108: 552.38 | E108: 544.57 | F108: 539.13 | G108: 531.32 | H108: 557.82 | I108: 565.63 | J108: 571.07 | K108: 560.2 | L108: 546.95 | M108: 8.44726
A109: 100 | B109: INDHOTEL | C109: 613.15 | D109: 617.43 | E109: 604.12 | F109: 595.08 | G109: 581.77 | H109: 626.47 | I109: 639.78 | J109: 648.82 | K109: 630.75 | L109: 608.4 | M109: 36.4271
A110: 101 | B110: IOC | C110: 170.08 | D110: 170.07 | E110: 169.33 | F110: 168.58 | G110: 167.84 | H110: 170.82 | I110: 171.56 | J110: 172.31 | K110: 170.81 | L110: 169.32 | M110: 114.57875
A111: 102 | B111: IRCTC | C111: 937.7 | D111: 934.52 | E111: 928.33 | F111: 918.97 | G111: 912.78 | H111: 943.88 | I111: 950.07 | J111: 959.43 | K111: 940.7 | L111: 925.15 | M111: 12.52866
A112: 103 | B112: IRFC | C112: 180.17 | D112: 180.55 | E112: 179.30 | F112: 178.43 | G112: 177.18 | H112: 181.42 | I112: 182.67 | J112: 183.54 | K112: 181.8 | L112: 179.68 | M112: 178.03897
A113: 104 | B113: IGL | C113: 548.15 | D113: 548.73 | E113: 542.47 | F113: 536.78 | G113: 530.52 | H113: 554.42 | I113: 560.68 | J113: 566.37 | K113: 555 | L113: 543.05 | M113: 12.94407
A114: 105 | B114: INDUSTOWER | C114: 418.65 | D114: 417.58 | E114: 413.17 | F114: 407.68 | G114: 403.27 | H114: 423.07 | I114: 427.48 | J114: 432.97 | K114: 422 | L114: 412.1 | M114: 62.17589
A115: 106 | B115: INDUSINDBK | C115: 1347.6 | D115: 1356.32 | E115: 1336.83 | F115: 1326.07 | G115: 1306.58 | H115: 1367.08 | I115: 1386.57 | J115: 1397.33 | K115: 1375.8 | L115: 1345.55 | M115: 58.95105
A116: 107 | B116: NAUKRI | C116: 7393.45 | D116: 7405.90 | E116: 7348.65 | F116: 7303.85 | G116: 7246.60 | H116: 7450.70 | I116: 7507.95 | J116: 7552.75 | K116: 7463.15 | L116: 7361.1 | M116: 1.242
A117: 108 | B117: INFY | C117: 1864.8 | D117: 1860.52 | E117: 1853.48 | F117: 1842.17 | G117: 1835.13 | H117: 1871.83 | I117: 1878.87 | J117: 1890.18 | K117: 1867.55 | L117: 1849.2 | M117: 25.85989
A118: 109 | B118: INDIGO | C118: 4231.95 | D118: 4254.33 | E118: 4183.77 | F118: 4135.58 | G118: 4065.02 | H118: 4302.52 | I118: 4373.08 | J118: 4421.27 | K118: 4324.9 | L118: 4206.15 | M118: 15.48752
A119: 110 | B119: IPCALAB | C119: 1353.25 | D119: 1353.08 | E119: 1338.22 | F119: 1323.18 | G119: 1308.32 | H119: 1368.12 | I119: 1382.98 | J119: 1398.02 | K119: 1367.95 | L119: 1338.05 | M119: 3.01798
A120: 111 | B120: JSWENERGY | C120: 668.55 | D120: 668.93 | E120: 663.62 | F120: 658.68 | G120: 653.37 | H120: 673.87 | I120: 679.18 | J120: 684.12 | K120: 674.25 | L120: 664 | M120: 12.92127
A121: 112 | B121: JSWSTEEL | C121: 917.75 | D121: 913.88 | E121: 907.77 | F121: 897.78 | G121: 891.67 | H121: 923.87 | I121: 929.98 | J121: 939.97 | K121: 920 | L121: 903.9 | M121: 8.47523
A122: 113 | B122: JINDALSTEL | C122: 953.75 | D122: 947.50 | E122: 937.40 | F122: 921.05 | G122: 910.95 | H122: 963.85 | I122: 973.95 | J122: 990.30 | K122: 957.6 | L122: 931.15 | M122: 12.45922
A123: 114 | B123: JUBLFOOD | C123: 633.25 | D123: 636.40 | E123: 623.95 | F123: 614.65 | G123: 602.20 | H123: 645.70 | I123: 658.15 | J123: 667.45 | K123: 648.85 | L123: 627.1 | M123: 26.72648
A124: 115 | B124: KPITTECH | C124: 1834.45 | D124: 1826.97 | E124: 1808.48 | F124: 1782.52 | G124: 1764.03 | H124: 1852.93 | I124: 1871.42 | J124: 1897.38 | K124: 1845.45 | L124: 1801 | M124: 5.90083
A125: 116 | B125: KOTAKBANK | C125: 1781.35 | D125: 1780.78 | E125: 1771.57 | F125: 1761.78 | G125: 1752.57 | H125: 1790.57 | I125: 1799.78 | J125: 1809.57 | K125: 1790 | L125: 1771 | M125: 21.72279
A126: 117 | B126: LTF | C126: 165 | D126: 164.90 | E126: 163.71 | F126: 162.41 | G126: 161.22 | H126: 166.20 | I126: 167.39 | J126: 168.69 | K126: 166.1 | L126: 163.61 | M126: 39.04977
A127: 118 | B127: LTTS | C127: 5284.05 | D127: 5275.55 | E127: 5218.65 | F127: 5153.25 | G127: 5096.35 | H127: 5340.95 | I127: 5397.85 | J127: 5463.25 | K127: 5332.45 | L127: 5210.15 | M127: 1.87873
A128: 119 | B128: LICHSGFIN | C128: 668.1 | D128: 664.75 | E128: 657.70 | F128: 647.30 | G128: 640.25 | H128: 675.15 | I128: 682.20 | J128: 692.60 | K128: 671.8 | L128: 654.35 | M128: 32.3262
A129: 120 | B129: LTIM | C129: 5676.1 | D129: 5651.52 | E129: 5592.53 | F129: 5508.97 | G129: 5449.98 | H129: 5735.08 | I129: 5794.07 | J129: 5877.63 | K129: 5710.5 | L129: 5567.95 | M129: 2.81113
A130: 121 | B130: LT | C130: 3555.05 | D130: 3567.32 | E130: 3534.73 | F130: 3514.42 | G130: 3481.83 | H130: 3587.63 | I130: 3620.22 | J130: 3640.53 | K130: 3599.9 | L130: 3547 | M130: 18.98535
A131: 122 | B131: LAURUSLABS | C131: 436.65 | D131: 434.22 | E131: 430.43 | F131: 424.22 | G131: 420.43 | H131: 440.43 | I131: 444.22 | J131: 450.43 | K131: 438 | L131: 428 | M131: 8.58697
A132: 123 | B132: LICI | C132: 1072.35 | D132: 1068.00 | E132: 1061.00 | F132: 1049.65 | G132: 1042.65 | H132: 1079.35 | I132: 1086.35 | J132: 1097.70 | K132: 1075 | L132: 1056.65 | M132: 17.79464
A133: 124 | B133: LUPIN | C133: 2068.8 | D133: 2078.65 | E133: 2049.75 | F133: 2030.70 | G133: 2001.80 | H133: 2097.70 | I133: 2126.60 | J133: 2145.65 | K133: 2107.55 | L133: 2059.6 | M133: 13.70074
A134: 125 | B134: MRF | C134: 134923.75 | D134: 135474.50 | E134: 133949.75 | F134: 132975.75 | G134: 131451.00 | H134: 136448.50 | I134: 137973.25 | J134: 138947.25 | K134: 136999.25 | L134: 134500.5 | M134: 0.09128
A135: 126 | B135: LODHA | C135: 1287.95 | D135: 1297.50 | E135: 1267.50 | F135: 1247.05 | G135: 1217.05 | H135: 1317.95 | I135: 1347.95 | J135: 1368.40 | K135: 1327.5 | L135: 1277.05 | M135: 3.87206
A136: 127 | B136: M&MFIN | C136: 296.4 | D136: 296.12 | E136: 293.78 | F136: 291.17 | G136: 288.83 | H136: 298.73 | I136: 301.07 | J136: 303.68 | K136: 298.45 | L136: 293.5 | M136: 23.84069
A137: 128 | B137: M&M | C137: 2765.15 | D137: 2795.02 | E137: 2730.13 | F137: 2695.12 | G137: 2630.23 | H137: 2830.03 | I137: 2894.92 | J137: 2929.93 | K137: 2859.9 | L137: 2760 | M137: 25.00718
A138: 129 | B138: MANKIND | C138: 2319.55 | D138: 2308.90 | E138: 2281.20 | F138: 2242.85 | G138: 2215.15 | H138: 2347.25 | I138: 2374.95 | J138: 2413.30 | K138: 2336.6 | L138: 2270.55 | M138: 7.13013
A139: 130 | B139: MARICO | C139: 669.15 | D139: 667.90 | E139: 662.05 | F139: 654.95 | G139: 649.10 | H139: 675.00 | I139: 680.85 | J139: 687.95 | K139: 673.75 | L139: 660.8 | M139: 14.53761
A140: 131 | B140: MARUTI | C140: 12149.8 | D140: 12173.55 | E140: 12103.05 | F140: 12056.30 | G140: 11985.80 | H140: 12220.30 | I140: 12290.80 | J140: 12337.55 | K140: 12244.05 | L140: 12126.8 | M140: 2.77319
A141: 132 | B141: MFSL | C141: 991.5 | D141: 1004.17 | E141: 976.43 | F141: 961.37 | G141: 933.63 | H141: 1019.23 | I141: 1046.97 | J141: 1062.03 | K141: 1031.9 | L141: 989.1 | M141: 10.32864
A142: 133 | B142: MAXHEALTH | C142: 874.55 | D142: 876.42 | E142: 864.33 | F142: 854.12 | G142: 842.03 | H142: 886.63 | I142: 898.72 | J142: 908.93 | K142: 888.5 | L142: 866.2 | M142: 3.90349
A143: 134 | B143: MAZDOCK | C143: 4724.75 | D143: 4774.95 | E143: 4649.80 | F143: 4574.85 | G143: 4449.70 | H143: 4849.90 | I143: 4975.05 | J143: 5050.00 | K143: 4900.1 | L143: 4700 | M143: 19.50181
A144: 139 | B144: MSUMI | C144: 71.83 | D144: 71.69 | E144: 70.74 | F144: 69.65 | G144: 68.70 | H144: 72.78 | I144: 73.73 | J144: 74.82 | K144: 72.64 | L144: 70.6 | M144: 74.1299
A145: 140 | B145: MPHASIS | C145: 2977.7 | D145: 2964.32 | E145: 2935.68 | F145: 2893.67 | G145: 2865.03 | H145: 3006.33 | I145: 3034.97 | J145: 3076.98 | K145: 2992.95 | L145: 2922.3 | M145: 12.71105
A146: 141 | B146: MUTHOOTFIN | C146: 1840.35 | D146: 1844.48 | E146: 1828.12 | F146: 1815.88 | G146: 1799.52 | H146: 1856.72 | I146: 1873.08 | J146: 1885.32 | K146: 1860.85 | L146: 1832.25 | M146: 2.12058
A147: 142 | B147: NHPC | C147: 96.19 | D147: 96.01 | E147: 94.68 | F147: 93.16 | G147: 91.83 | H147: 97.53 | I147: 98.86 | J147: 100.38 | K147: 97.35 | L147: 94.5 | M147: 312.39316
A148: 143 | B148: NMDC | C148: 219.86 | D148: 219.42 | E148: 217.64 | F148: 215.41 | G148: 213.63 | H148: 221.65 | I148: 223.43 | J148: 225.66 | K148: 221.21 | L148: 217.2 | M148: 69.89544
A149: 144 | B149: NTPC | C149: 403.1 | D149: 404.02 | E149: 400.53 | F149: 397.97 | G149: 394.48 | H149: 406.58 | I149: 410.07 | J149: 412.63 | K149: 407.5 | L149: 401.45 | M149: 106.77045
A150: 145 | B150: NAVINFLUOR | C150: 3281.25 | D150: 3301.45 | E150: 3252.05 | F150: 3222.85 | G150: 3173.45 | H150: 3330.65 | I150: 3380.05 | J150: 3409.25 | K150: 3350.85 | L150: 3272.25 | M150: 2.37931
A151: 146 | B151: NESTLEIND | C151: 2503.15 | D151: 2516.57 | E151: 2487.13 | F151: 2471.12 | G151: 2441.68 | H151: 2532.58 | I151: 2562.02 | J151: 2578.03 | K151: 2546 | L151: 2500.55 | M151: 4.77701
A152: 147 | B152: OBEROIRLTY | C152: 1766.95 | D152: 1764.48 | E152: 1748.97 | F152: 1730.98 | G152: 1715.47 | H152: 1782.47 | I152: 1797.98 | J152: 1815.97 | K152: 1780 | L152: 1746.5 | M152: 2.85852
A153: 148 | B153: ONGC | C153: 335.3 | D153: 335.87 | E153: 332.98 | F153: 330.67 | G153: 327.78 | H153: 338.18 | I153: 341.07 | J153: 343.38 | K153: 338.75 | L153: 333.55 | M153: 196.36518
A154: 149 | B154: OIL | C154: 689.55 | D154: 692.32 | E154: 682.33 | F154: 675.12 | G154: 665.13 | H154: 699.53 | I154: 709.52 | J154: 716.73 | K154: 702.3 | L154: 685.1 | M154: 60.55414
A155: 150 | B155: PAYTM | C155: 572.8 | D155: 577.30 | E155: 560.20 | F155: 547.60 | G155: 530.50 | H155: 589.90 | I155: 607.00 | J155: 619.60 | K155: 594.4 | L155: 564.7 | M155: 122.68435
A156: 151 | B156: POLICYBZR | C156: 1652.5 | D156: 1648.83 | E156: 1593.82 | F156: 1535.13 | G156: 1480.12 | H156: 1707.52 | I156: 1762.53 | J156: 1821.22 | K156: 1703.85 | L156: 1590.15 | M156: 20.67265
A157: 152 | B157: PIIND | C157: 4323.6 | D157: 4362.88 | E157: 4257.37 | F157: 4191.13 | G157: 4085.62 | H157: 4429.12 | I157: 4534.63 | J157: 4600.87 | K157: 4468.4 | L157: 4296.65 | M157: 6.72783
A158: 153 | B158: PAGEIND | C158: 41053.05 | D158: 40983.98 | E158: 40621.17 | F158: 40189.28 | G158: 39826.47 | H158: 41415.87 | I158: 41778.68 | J158: 42210.57 | K158: 41346.8 | L158: 40552.1 | M158: 0.23708
A159: 154 | B159: PATANJALI | C159: 1801.15 | D159: 1812.73 | E159: 1780.47 | F159: 1759.78 | G159: 1727.52 | H159: 1833.42 | I159: 1865.68 | J159: 1886.37 | K159: 1845 | L159: 1792.05 | M159: 3.1042
A160: 155 | B160: PERSISTENT | C160: 4874.5 | D160: 4871.80 | E160: 4821.60 | F160: 4768.70 | G160: 4718.50 | H160: 4924.70 | I160: 4974.90 | J160: 5027.80 | K160: 4922 | L160: 4818.9 | M160: 4.77064
A161: 156 | B161: PETRONET | C161: 375.45 | D161: 375.30 | E161: 370.15 | F161: 364.85 | G161: 359.70 | H161: 380.60 | I161: 385.75 | J161: 391.05 | K161: 380.45 | L161: 370 | M161: 29.19118
A162: 157 | B162: PIDILITIND | C162: 3056.6 | D162: 3065.40 | E162: 3042.20 | F162: 3027.80 | G162: 3004.60 | H162: 3079.80 | I162: 3103.00 | J162: 3117.40 | K162: 3088.6 | L162: 3051 | M162: 1.73165
A163: 158 | B163: PEL | C163: 983.55 | D163: 973.52 | E163: 959.43 | F163: 935.32 | G163: 921.23 | H163: 997.63 | I163: 1011.72 | J163: 1035.83 | K163: 987.6 | L163: 949.4 | M163: 22.92886
A164: 159 | B164: POLYCAB | C164: 6616.9 | D164: 6603.98 | E164: 6507.97 | F164: 6399.03 | G164: 6303.02 | H164: 6712.92 | I164: 6808.93 | J164: 6917.87 | K164: 6700 | L164: 6495.05 | M164: 5.67049
A165: 160 | B165: POONAWALLA | C165: 371 | D165: 368.65 | E165: 363.95 | F165: 356.90 | G165: 352.20 | H165: 375.70 | I165: 380.40 | J165: 387.45 | K165: 373.35 | L165: 361.6 | M165: 18.81962
A166: 161 | B166: PFC | C166: 504.95 | D166: 507.02 | E166: 501.08 | F166: 497.22 | G166: 491.28 | H166: 510.88 | I166: 516.82 | J166: 520.68 | K166: 512.95 | L166: 503.15 | M166: 57.00618
A167: 162 | B167: POWERGRID | C167: 340.3 | D167: 340.97 | E167: 338.63 | F167: 336.97 | G167: 334.63 | H167: 342.63 | I167: 344.97 | J167: 346.63 | K167: 343.3 | L167: 339.3 | M167: 58.9137
A168: 163 | B168: PRESTIGE | C168: 1841.6 | D168: 1852.08 | E168: 1825.67 | F168: 1809.73 | G168: 1783.32 | H168: 1868.02 | I168: 1894.43 | J168: 1910.37 | K168: 1878.5 | L168: 1836.15 | M168: 7.98704
A169: 164 | B169: PGHH | C169: 16967.8 | D169: 17019.98 | E169: 16814.97 | F169: 16662.13 | G169: 16457.12 | H169: 17172.82 | I169: 17377.83 | J169: 17530.67 | K169: 17225 | L169: 16867.15 | M169: 0.02038
A170: 165 | B170: PNB | C170: 115.21 | D170: 114.98 | E170: 114.08 | F170: 112.96 | G170: 112.06 | H170: 116.10 | I170: 117.00 | J170: 118.12 | K170: 115.87 | L170: 113.85 | M170: 163.14063
A171: 166 | B171: RECLTD | C171: 584.3 | D171: 585.20 | E171: 579.10 | F171: 573.90 | G171: 567.80 | H171: 590.40 | I171: 596.50 | J171: 601.70 | K171: 591.3 | L171: 580 | M171: 67.15017
A172: 167 | B172: RVNL | C172: 573.5 | D172: 578.17 | E172: 566.33 | F172: 559.17 | G172: 547.33 | H172: 585.33 | I172: 597.17 | J172: 604.33 | K172: 590 | L172: 571 | M172: 167.85488
A173: 168 | B173: RELIANCE | C173: 2976.8 | D173: 2978.13 | E173: 2959.67 | F173: 2942.53 | G173: 2924.07 | H173: 2995.27 | I173: 3013.73 | J173: 3030.87 | K173: 2996.6 | L173: 2961 | M173: 68.98871
A174: 169 | B174: SBICARD | C174: 699.9 | D174: 699.95 | E174: 696.95 | F174: 694.00 | G174: 691.00 | H174: 702.90 | I174: 705.90 | J174: 708.85 | K174: 702.95 | L174: 697 | M174: 5.69447
A175: 170 | B175: SBILIFE | C175: 1671.55 | D175: 1678.12 | E175: 1659.43 | F175: 1647.32 | G175: 1628.63 | H175: 1690.23 | I175: 1708.92 | J175: 1721.03 | K175: 1696.8 | L175: 1666 | M175: 6.32647
A176: 171 | B176: SRF | C176: 2476.15 | D176: 2473.25 | E176: 2454.50 | F176: 2432.85 | G176: 2414.10 | H176: 2494.90 | I176: 2513.65 | J176: 2535.30 | K176: 2492 | L176: 2451.6 | M176: 2.27333
A177: 172 | B177: MOTHERSON | C177: 186.13 | D177: 186.29 | E177: 185.04 | F177: 183.94 | G177: 182.69 | H177: 187.39 | I177: 188.64 | J177: 189.74 | K177: 187.55 | L177: 185.2 | M177: 204.65415
A178: 173 | B178: SHREECEM | C178: 24848.95 | D178: 24837.95 | E178: 24710.00 | F178: 24571.05 | G178: 24443.10 | H178: 24976.90 | I178: 25104.85 | J178: 25243.80 | K178: 24965.9 | L178: 24699 | M178: 0.28455
A179: 174 | B179: SHRIRAMFIN | C179: 3075.6 | D179: 3057.88 | E179: 3030.77 | F179: 2985.93 | G179: 2958.82 | H179: 3102.72 | I179: 3129.83 | J179: 3174.67 | K179: 3085 | L179: 3013.05 | M179: 18.18434
A180: 175 | B180: SIEMENS | C180: 7102.25 | D180: 7144.47 | E180: 7044.93 | F180: 6987.62 | G180: 6888.08 | H180: 7201.78 | I180: 7301.32 | J180: 7358.63 | K180: 7244 | L180: 7087.15 | M180: 2.35437
A181: 176 | B181: SONACOMS | C181: 690.4 | D181: 688.33 | E181: 681.07 | F181: 671.73 | G181: 664.47 | H181: 697.67 | I181: 704.93 | J181: 714.27 | K181: 695.6 | L181: 679 | M181: 5.53062
A182: 177 | B182: SBIN | C182: 813.7 | D182: 817.23 | E182: 809.07 | F182: 804.43 | G182: 796.27 | H182: 821.87 | I182: 830.03 | J182: 834.67 | K182: 825.4 | L182: 812.6 | M182: 101.51482
A183: 178 | B183: SAIL | C183: 131.32 | D183: 130.74 | E183: 129.83 | F183: 128.34 | G183: 127.43 | H183: 132.23 | I183: 133.14 | J183: 134.63 | K183: 131.65 | L183: 129.25 | M183: 146.77989
A184: 179 | B184: SUNPHARMA | C184: 1747.8 | D184: 1747.10 | E184: 1741.35 | F184: 1734.90 | G184: 1729.15 | H184: 1753.55 | I184: 1759.30 | J184: 1765.75 | K184: 1752.85 | L184: 1740.65 | M184: 13.63446
A185: 180 | B185: SUNTV | C185: 814.2 | D185: 817.17 | E185: 808.03 | F185: 801.87 | G185: 792.73 | H185: 823.33 | I185: 832.47 | J185: 838.63 | K185: 826.3 | L185: 811 | M185: 3.55224
A186: 181 | B186: SYNGENE | C186: 824.95 | D186: 826.62 | E186: 818.33 | F186: 811.72 | G186: 803.43 | H186: 833.23 | I186: 841.52 | J186: 848.13 | K186: 834.9 | L186: 820 | M186: 2.06364
A187: 182 | B187: TVSMOTOR | C187: 2607.6 | D187: 2605.95 | E187: 2586.90 | F187: 2566.20 | G187: 2547.15 | H187: 2626.65 | I187: 2645.70 | J187: 2666.40 | K187: 2625 | L187: 2585.25 | M187: 4.64963
A188: 183 | B188: TATACHEM | C188: 1052.95 | D188: 1049.70 | E188: 1044.40 | F188: 1035.85 | G188: 1030.55 | H188: 1058.25 | I188: 1063.55 | J188: 1072.10 | K188: 1055 | L188: 1041.15 | M188: 3.87913
A189: 184 | B189: TATACOMM | C189: 1871.25 | D189: 1873.27 | E189: 1862.83 | F189: 1854.42 | G189: 1843.98 | H189: 1881.68 | I189: 1892.12 | J189: 1900.53 | K189: 1883.7 | L189: 1864.85 | M189: 1.70949
A190: 185 | B190: TCS | C190: 4490 | D190: 4458.20 | E190: 4422.15 | F190: 4354.30 | G190: 4318.25 | H190: 4526.05 | I190: 4562.10 | J190: 4629.95 | K190: 4494.25 | L190: 4390.35 | M190: 20.5521
A191: 186 | B191: TATACONSUM | C191: 1177.4 | D191: 1182.98 | E191: 1165.97 | F191: 1154.53 | G191: 1137.52 | H191: 1194.42 | I191: 1211.43 | J191: 1222.87 | K191: 1200 | L191: 1171.55 | M191: 6.82374
A192: 187 | B192: TATAELXSI | C192: 6927.5 | D192: 6892.83 | E192: 6814.67 | F192: 6701.83 | G192: 6623.67 | H192: 7005.67 | I192: 7083.83 | J192: 7196.67 | K192: 6971 | L192: 6780 | M192: 1.1758
A193: 188 | B193: TATAMTRDVR | C193: 749.05 | D193: 750.40 | E193: 742.40 | F193: 735.75 | G193: 727.75 | H193: 757.05 | I193: 765.05 | J193: 771.70 | K193: 758.4 | L193: 743.75 | M193: 16.53217
A194: 189 | B194: TATAMOTORS | C194: 1087.7 | D194: 1093.23 | E194: 1079.47 | F194: 1071.23 | G194: 1057.47 | H194: 1101.47 | I194: 1115.23 | J194: 1123.47 | K194: 1107 | L194: 1085 | M194: 69.11441
A195: 190 | B195: TATAPOWER | C195: 418.8 | D195: 418.25 | E195: 415.60 | F195: 412.40 | G195: 409.75 | H195: 421.45 | I195: 424.10 | J195: 427.30 | K195: 420.9 | L195: 415.05 | M195: 81.87151
A196: 191 | B196: TATASTEEL | C196: 153.96 | D196: 152.88 | E196: 151.47 | F196: 148.97 | G196: 147.56 | H196: 155.38 | I196: 156.79 | J196: 159.29 | K196: 154.3 | L196: 150.39 | M196: 628.8977
A197: 192 | B197: TECHM | C197: 1594.65 | D197: 1591.07 | E197: 1579.43 | F197: 1564.22 | G197: 1552.58 | H197: 1606.28 | I197: 1617.92 | J197: 1633.13 | K197: 1602.7 | L197: 1575.85 | M197: 16.40507
A198: 193 | B198: RAMCOCEM | C198: 812.95 | D198: 816.02 | E198: 803.43 | F198: 793.92 | G198: 781.33 | H198: 825.53 | I198: 838.12 | J198: 847.63 | K198: 828.6 | L198: 806.5 | M198: 9.29419
A199: 194 | B199: TITAN | C199: 3464.85 | D199: 3468.42 | E199: 3432.63 | F199: 3400.42 | G199: 3364.63 | H199: 3500.63 | I199: 3536.42 | J199: 3568.63 | K199: 3504.2 | L199: 3436.2 | M199: 11.35205
A200: 195 | B200: TORNTPHARM | C200: 3349.35 | D200: 3349.12 | E200: 3328.28 | F200: 3307.22 | G200: 3286.38 | H200: 3370.18 | I200: 3391.02 | J200: 3412.08 | K200: 3369.95 | L200: 3328.05 | M200: 0.82204
A201: 196 | B201: TORNTPOWER | C201: 1672.8 | D201: 1686.50 | E201: 1643.30 | F201: 1613.80 | G201: 1570.60 | H201: 1716.00 | I201: 1759.20 | J201: 1788.70 | K201: 1729.7 | L201: 1657 | M201: 4.83283
A202: 197 | B202: TRENT | C202: 6689.9 | D202: 6654.07 | E202: 6558.13 | F202: 6426.37 | G202: 6330.43 | H202: 6785.83 | I202: 6881.77 | J202: 7013.53 | K202: 6750 | L202: 6522.3 | M202: 18.2785
A203: 198 | B203: TIINDIA | C203: 3983.8 | D203: 4002.82 | E203: 3945.98 | F203: 3908.17 | G203: 3851.33 | H203: 4040.63 | I203: 4097.47 | J203: 4135.28 | K203: 4059.65 | L203: 3965 | M203: 0.95473
A204: 199 | B204: UPL | C204: 560.6 | D204: 558.60 | E204: 553.65 | F204: 546.70 | G204: 541.75 | H204: 565.55 | I204: 570.50 | J204: 577.45 | K204: 563.55 | L204: 551.65 | M204: 24.12431
A205: 200 | B205: ULTRACEMCO | C205: 11315.35 | D205: 11351.73 | E205: 11235.37 | F205: 11155.38 | G205: 11039.02 | H205: 11431.72 | I205: 11548.08 | J205: 11628.07 | K205: 11468.1 | L205: 11271.75 | M205: 2.44264
... 30 more rows

Sheet MidCap Intra
L5: Back To Main Page
A6: FOR INTRA DAY TRADING | K6: =Main!B10 -> 2024-08-20
A9: Sr.no | B9: Scrip | C9: CLOSE RATE | D9: Pivot Point | E9: Supports | H9: Resistances
E10: S1 | F10: S2 | G10: S3 | H10: R1 | I10: R2 | J10: R3 | K10: HIGH | L10: LOW | M10: Total Trade Quanity in Lakhs
A11: 1 | B11: 360ONE | C11: 1098.05 | D11: 1092.10 | E11: 1084.20 | F11: 1070.35 | G11: 1062.45 | H11: 1105.95 | I11: 1113.85 | J11: 1127.70 | K11: 1100 | L11: 1078.25 | M11: 8.40353
A12: 2 | B12: 3MINDIA | C12: 35426.45 | D12: 35665.50 | E12: 34971.00 | F12: 34515.55 | G12: 33821.05 | H12: 36120.95 | I12: 36815.45 | J12: 37270.90 | K12: 36360 | L12: 35210.05 | M12: 0.05834
A13: 3 | B13: ABB | C13: 7822.6 | D13: 7871.98 | E13: 7759.57 | F13: 7696.53 | G13: 7584.12 | H13: 7935.02 | I13: 8047.43 | J13: 8110.47 | K13: 7984.4 | L13: 7808.95 | M13: 1.40445
A14: 4 | B14: ACC | C14: 2347.45 | D14: 2343.80 | E14: 2332.65 | F14: 2317.85 | G14: 2306.70 | H14: 2358.60 | I14: 2369.75 | J14: 2384.55 | K14: 2354.95 | L14: 2329 | M14: 1.7048
A15: 5 | B15: AIAENG | C15: 4595.9 | D15: 4604.30 | E15: 4567.35 | F15: 4538.80 | G15: 4501.85 | H15: 4632.85 | I15: 4669.80 | J15: 4698.35 | K15: 4641.25 | L15: 4575.75 | M15: 0.52405
A16: 6 | B16: APLAPOLLO | C16: 1357 | D16: 1372.18 | E16: 1336.82 | F16: 1316.63 | G16: 1281.27 | H16: 1392.37 | I16: 1427.73 | J16: 1447.92 | K16: 1407.55 | L16: 1352 | M16: 10.03809
A17: 7 | B17: AUBANK | C17: 615.25 | D17: 615.93 | E17: 609.32 | F17: 603.38 | G17: 596.77 | H17: 621.87 | I17: 628.48 | J17: 634.42 | K17: 622.55 | L17: 610 | M17: 22.73232
A18: 8 | B18: AARTIIND | C18: 617.5 | D18: 615.47 | E18: 606.03 | F18: 594.57 | G18: 585.13 | H18: 626.93 | I18: 636.37 | J18: 647.83 | K18: 624.9 | L18: 604 | M18: 26.7027
A19: 9 | B19: AAVAS | C19: 1661.85 | D19: 1671.85 | E19: 1641.75 | F19: 1621.65 | G19: 1591.55 | H19: 1691.95 | I19: 1722.05 | J19: 1742.15 | K19: 1701.95 | L19: 1651.75 | M19: 1.87682
A20: 10 | B20: ABBOTINDIA | C20: 28098.6 | D20: 28004.18 | E20: 27738.42 | F20: 27378.23 | G20: 27112.47 | H20: 28364.37 | I20: 28630.13 | J20: 28990.32 | K20: 28269.95 | L20: 27644 | M20: 0.12331
A21: 11 | B21: ACE | C21: 1310.9 | D21: 1302.63 | E21: 1282.27 | F21: 1253.63 | G21: 1233.27 | H21: 1331.27 | I21: 1351.63 | J21: 1380.27 | K21: 1323 | L21: 1274 | M21: 5.59816
A22: 12 | B22: ADANIENSOL | C22: 1092.55 | D22: 1098.08 | E22: 1084.27 | F22: 1075.98 | G22: 1062.17 | H22: 1106.37 | I22: 1120.18 | J22: 1128.47 | K22: 1111.9 | L22: 1089.8 | M22: 17.82102
A23: 13 | B23: ADANIENT | C23: 3102.55 | D23: 3109.93 | E23: 3085.57 | F23: 3068.58 | G23: 3044.22 | H23: 3126.92 | I23: 3151.28 | J23: 3168.27 | K23: 3134.3 | L23: 3092.95 | M23: 5.57265
A24: 14 | B24: ADANIGREEN | C24: 1898 | D24: 1872.70 | E24: 1835.50 | F24: 1773.00 | G24: 1735.80 | H24: 1935.20 | I24: 1972.40 | J24: 2034.90 | K24: 1909.9 | L24: 1810.2 | M24: 17.45998
A25: 15 | B25: ADANIPORTS | C25: 1496.45 | D25: 1497.82 | E25: 1488.63 | F25: 1480.82 | G25: 1471.63 | H25: 1505.63 | I25: 1514.82 | J25: 1522.63 | K25: 1507 | L25: 1490 | M25: 13.43387
A26: 16 | B26: ADANIPOWER | C26: 697 | D26: 698.92 | E26: 691.08 | F26: 685.17 | G26: 677.33 | H26: 704.83 | I26: 712.67 | J26: 718.58 | K26: 706.75 | L26: 693 | M26: 163.69504
A27: 17 | B27: ATGL | C27: 856.35 | D27: 854.40 | E27: 848.00 | F27: 839.65 | G27: 833.25 | H27: 862.75 | I27: 869.15 | J27: 877.50 | K27: 860.8 | L27: 846.05 | M27: 49.51015
A28: 18 | B28: AWL | C28: 359.8 | D28: 362.45 | E28: 355.90 | F28: 352.00 | G28: 345.45 | H28: 366.35 | I28: 372.90 | J28: 376.80 | K28: 369 | L28: 358.55 | M28: 24.4529
A29: 19 | B29: ABCAPITAL | C29: 213 | D29: 214.26 | E29: 210.66 | F29: 208.31 | G29: 204.71 | H29: 216.61 | I29: 220.21 | J29: 222.56 | K29: 217.87 | L29: 211.92 | M29: 57.02535
A30: 20 | B30: ABFRL | C30: 320.25 | D30: 320.63 | E30: 317.42 | F30: 314.58 | G30: 311.37 | H30: 323.47 | I30: 326.68 | J30: 329.52 | K30: 323.85 | L30: 317.8 | M30: 18.04456
A31: 21 | B31: AEGISLOG | C31: 780.45 | D31: 771.88 | E31: 760.77 | F31: 741.08 | G31: 729.97 | H31: 791.57 | I31: 802.68 | J31: 822.37 | K31: 783 | L31: 752.2 | M31: 1.814
A32: 22 | B32: AETHER | C32: 906.85 | D32: 905.62 | E32: 898.23 | F32: 889.62 | G32: 882.23 | H32: 914.23 | I32: 921.62 | J32: 930.23 | K32: 913 | L32: 897 | M32: 0.29988
A33: 23 | B33: AFFLE | C33: 1575.6 | D33: 1575.72 | E33: 1552.43 | F33: 1529.27 | G33: 1505.98 | H33: 1598.88 | I33: 1622.17 | J33: 1645.33 | K33: 1599 | L33: 1552.55 | M33: 4.38401
A34: 24 | B34: AJANTPHARM | C34: 2933.05 | D34: 2967.00 | E34: 2868.05 | F34: 2803.05 | G34: 2704.10 | H34: 3032.00 | I34: 3130.95 | J34: 3195.95 | K34: 3065.95 | L34: 2902 | M34: 1.53513
A35: 25 | B35: APLLTD | C35: 1070.95 | D35: 1073.25 | E35: 1056.50 | F35: 1042.05 | G35: 1025.30 | H35: 1087.70 | I35: 1104.45 | J35: 1118.90 | K35: 1090 | L35: 1058.8 | M35: 1.93508
A36: 26 | B36: ALKEM | C36: 5740.7 | D36: 5727.57 | E36: 5690.48 | F36: 5640.27 | G36: 5603.18 | H36: 5777.78 | I36: 5814.87 | J36: 5865.08 | K36: 5764.65 | L36: 5677.35 | M36: 2.02117
A37: 27 | B37: ALKYLAMINE | C37: 2006.4 | D37: 2008.58 | E37: 1988.82 | F37: 1971.23 | G37: 1951.47 | H37: 2026.17 | I37: 2045.93 | J37: 2063.52 | K37: 2028.35 | L37: 1991 | M37: 0.31474
A38: 28 | B38: ALLCARGO | C38: 61.5 | D38: 61.31 | E38: 60.69 | F38: 59.87 | G38: 59.25 | H38: 62.13 | I38: 62.75 | J38: 63.57 | K38: 61.94 | L38: 60.5 | M38: 16.00186
A39: 29 | B39: ALOKINDS | C39: 25.29 | D39: 25.35 | E39: 25.08 | F39: 24.86 | G39: 24.59 | H39: 25.57 | I39: 25.84 | J39: 26.06 | K39: 25.63 | L39: 25.14 | M39: 75.33696
A40: 30 | B40: ARE&M | C40: 1556.3 | D40: 1560.43 | E40: 1541.02 | F40: 1525.73 | G40: 1506.32 | H40: 1575.72 | I40: 1595.13 | J40: 1610.42 | K40: 1579.85 | L40: 1545.15 | M40: 3.60432
A41: 31 | B41: AMBER | C41: 4189.95 | D41: 4167.55 | E41: 4120.10 | F41: 4050.25 | G41: 4002.80 | H41: 4237.40 | I41: 4284.85 | J41: 4354.70 | K41: 4215 | L41: 4097.7 | M41: 1.71107
A42: 32 | B42: AMBUJACEM | C42: 633.7 | D42: 636.52 | E42: 629.38 | F42: 625.07 | G42: 617.93 | H42: 640.83 | I42: 647.97 | J42: 652.28 | K42: 643.65 | L42: 632.2 | M42: 9.38492
A43: 33 | B43: ANANDRATHI | C43: 3597.8 | D43: 3605.93 | E43: 3579.87 | F43: 3561.93 | G43: 3535.87 | H43: 3623.87 | I43: 3649.93 | J43: 3667.87 | K43: 3632 | L43: 3588 | M43: 0.13817
A44: 34 | B44: ANGELONE | C44: 2341.2 | D44: 2298.80 | E44: 2217.65 | F44: 2094.10 | G44: 2012.95 | H44: 2422.35 | I44: 2503.50 | J44: 2627.05 | K44: 2379.95 | L44: 2175.25 | M44: 41.87572
A45: 35 | B45: ANURAS | C45: 802.5 | D45: 804.07 | E45: 798.18 | F45: 793.87 | G45: 787.98 | H45: 808.38 | I45: 814.27 | J45: 818.58 | K45: 809.95 | L45: 799.75 | M45: 0.80991
A46: 36 | B46: APARINDS | C46: 8348.85 | D46: 8395.00 | E46: 8264.00 | F46: 8179.15 | G46: 8048.15 | H46: 8479.85 | I46: 8610.85 | J46: 8695.70 | K46: 8526 | L46: 8310.15 | M46: 0.43066
A47: 37 | B47: APOLLOHOSP | C47: 6724.9 | D47: 6682.28 | E47: 6607.67 | F47: 6490.43 | G47: 6415.82 | H47: 6799.52 | I47: 6874.13 | J47: 6991.37 | K47: 6756.9 | L47: 6565.05 | M47: 3.98225
A48: 38 | B48: APOLLOTYRE | C48: 483 | D48: 484.67 | E48: 480.53 | F48: 478.07 | G48: 473.93 | H48: 487.13 | I48: 491.27 | J48: 493.73 | K48: 488.8 | L48: 482.2 | M48: 12.62033
A49: 39 | B49: APTUS | C49: 304.9 | D49: 305.85 | E49: 302.55 | F49: 300.20 | G49: 296.90 | H49: 308.20 | I49: 311.50 | J49: 313.85 | K49: 309.15 | L49: 303.5 | M49: 4.14696
A50: 40 | B50: ACI | C50: 766.8 | D50: 761.25 | E50: 753.00 | F50: 739.20 | G50: 730.95 | H50: 775.05 | I50: 783.30 | J50: 797.10 | K50: 769.5 | L50: 747.45 | M50: 5.10934
A51: 41 | B51: ASAHIINDIA | C51: 644.5 | D51: 641.50 | E51: 637.00 | F51: 629.50 | G51: 625.00 | H51: 649.00 | I51: 653.50 | J51: 661.00 | K51: 646 | L51: 634 | M51: 0.63527
A52: 42 | B52: ASHOKLEY | C52: 257.5 | D52: 257.78 | E52: 255.42 | F52: 253.33 | G52: 250.97 | H52: 259.87 | I52: 262.23 | J52: 264.32 | K52: 260.15 | L52: 255.7 | M52: 146.23178
A53: 43 | B53: ASIANPAINT | C53: 3076.3 | D53: 3067.50 | E53: 3047.15 | F53: 3018.00 | G53: 2997.65 | H53: 3096.65 | I53: 3117.00 | J53: 3146.15 | K53: 3087.85 | L53: 3038.35 | M53: 5.42858
A54: 44 | B54: ASTERDM | C54: 395.9 | D54: 394.18 | E54: 391.52 | F54: 387.13 | G54: 384.47 | H54: 398.57 | I54: 401.23 | J54: 405.62 | K54: 396.85 | L54: 389.8 | M54: 4.9683
A55: 45 | B55: ASTRAZEN | C55: 6625.5 | D55: 6642.32 | E55: 6579.58 | F55: 6533.67 | G55: 6470.93 | H55: 6688.23 | I55: 6750.97 | J55: 6796.88 | K55: 6705.05 | L55: 6596.4 | M55: 0.04087
A56: 46 | B56: ASTRAL | C56: 1882.75 | D56: 1887.80 | E56: 1865.95 | F56: 1849.15 | G56: 1827.30 | H56: 1904.60 | I56: 1926.45 | J56: 1943.25 | K56: 1909.65 | L56: 1871 | M56: 15.9384
A57: 47 | B57: ATUL | C57: 7826 | D57: 7851.67 | E57: 7754.33 | F57: 7682.67 | G57: 7585.33 | H57: 7923.33 | I57: 8020.67 | J57: 8092.33 | K57: 7949 | L57: 7780 | M57: 0.20204
A58: 48 | B58: AUROPHARMA | C58: 1519.2 | D58: 1515.38 | E58: 1494.12 | F58: 1469.03 | G58: 1447.77 | H58: 1540.47 | I58: 1561.73 | J58: 1586.82 | K58: 1536.65 | L58: 1490.3 | M58: 14.72094
A59: 49 | B59: AVANTIFEED | C59: 701.45 | D59: 707.35 | E59: 690.30 | F59: 679.15 | G59: 662.10 | H59: 718.50 | I59: 735.55 | J59: 746.70 | K59: 724.4 | L59: 696.2 | M59: 11.2687
A60: 50 | B60: DMART | C60: 5002.7 | D60: 5010.92 | E60: 4973.83 | F60: 4944.97 | G60: 4907.88 | H60: 5039.78 | I60: 5076.87 | J60: 5105.73 | K60: 5048 | L60: 4982.05 | M60: 1.71799
A61: 51 | B61: AXISBANK | C61: 1153.25 | D61: 1158.25 | E61: 1145.20 | F61: 1137.15 | G61: 1124.10 | H61: 1166.30 | I61: 1179.35 | J61: 1187.40 | K61: 1171.3 | L61: 1150.2 | M61: 66.91823
A62: 52 | B62: BEML | C62: 3839.45 | D62: 3876.25 | E62: 3766.75 | F62: 3694.05 | G62: 3584.55 | H62: 3948.95 | I62: 4058.45 | J62: 4131.15 | K62: 3985.75 | L62: 3803.55 | M62: 10.18218
A63: 53 | B63: BLS | C63: 391.7 | D63: 391.72 | E63: 383.48 | F63: 375.27 | G63: 367.03 | H63: 399.93 | I63: 408.17 | J63: 416.38 | K63: 399.95 | L63: 383.5 | M63: 67.8294
A64: 54 | B64: BSE | C64: 2676.2 | D64: 2680.73 | E64: 2641.47 | F64: 2606.73 | G64: 2567.47 | H64: 2715.47 | I64: 2754.73 | J64: 2789.47 | K64: 2720 | L64: 2646 | M64: 7.90797
A65: 55 | B65: BAJAJ-AUTO | C65: 9770.65 | D65: 9824.65 | E65: 9705.30 | F65: 9639.95 | G65: 9520.60 | H65: 9890.00 | I65: 10009.35 | J65: 10074.70 | K65: 9944 | L65: 9759.3 | M65: 1.48301
A66: 56 | B66: BAJFINANCE | C66: 6616.35 | D66: 6621.98 | E66: 6587.97 | F66: 6559.58 | G66: 6525.57 | H66: 6650.37 | I66: 6684.38 | J66: 6712.77 | K66: 6656 | L66: 6593.6 | M66: 5.2873
A67: 57 | B67: BAJAJFINSV | C67: 1551.1 | D67: 1553.35 | E67: 1542.80 | F67: 1534.50 | G67: 1523.95 | H67: 1561.65 | I67: 1572.20 | J67: 1580.50 | K67: 1563.9 | L67: 1545.05 | M67: 9.40893
A68: 58 | B68: BAJAJHLDNG | C68: 9607.65 | D68: 9601.23 | E68: 9536.52 | F68: 9465.38 | G68: 9400.67 | H68: 9672.37 | I68: 9737.08 | J68: 9808.22 | K68: 9665.95 | L68: 9530.1 | M68: 0.11623
A69: 59 | B69: BALAMINES | C69: 2152.55 | D69: 2169.88 | E69: 2130.67 | F69: 2108.78 | G69: 2069.57 | H69: 2191.77 | I69: 2230.98 | J69: 2252.87 | K69: 2209.1 | L69: 2148 | M69: 0.60579
A70: 60 | B70: BALKRISIND | C70: 2802.3 | D70: 2815.25 | E70: 2783.10 | F70: 2763.90 | G70: 2731.75 | H70: 2834.45 | I70: 2866.60 | J70: 2885.80 | K70: 2847.4 | L70: 2796.05 | M70: 1.82764
A71: 61 | B71: BALRAMCHIN | C71: 532 | D71: 534.15 | E71: 523.75 | F71: 515.50 | G71: 505.10 | H71: 542.40 | I71: 552.80 | J71: 561.05 | K71: 544.55 | L71: 525.9 | M71: 38.76323
A72: 62 | B72: BANDHANBNK | C72: 192.02 | D72: 192.76 | E72: 190.76 | F72: 189.51 | G72: 187.51 | H72: 194.01 | I72: 196.01 | J72: 197.26 | K72: 194.75 | L72: 191.5 | M72: 54.87644
A73: 63 | B73: BANKBARODA | C73: 247.35 | D73: 246.90 | E73: 244.35 | F73: 241.35 | G73: 238.80 | H73: 249.90 | I73: 252.45 | J73: 255.45 | K73: 249.45 | L73: 243.9 | M73: 105.33731
A74: 64 | B74: BANKINDIA | C74: 117.32 | D74: 117.60 | E74: 116.41 | F74: 115.49 | G74: 114.30 | H74: 118.52 | I74: 119.71 | J74: 120.63 | K74: 118.8 | L74: 116.69 | M74: 33.73191
A75: 65 | B75: MAHABANK | C75: 62.5 | D75: 62.18 | E75: 61.62 | F75: 60.73 | G75: 60.17 | H75: 63.07 | I75: 63.63 | J75: 64.52 | K75: 62.75 | L75: 61.3 | M75: 92.14854
A76: 66 | B76: BATAINDIA | C76: 1425.05 | D76: 1432.42 | E76: 1411.63 | F76: 1398.22 | G76: 1377.43 | H76: 1445.83 | I76: 1466.62 | J76: 1480.03 | K76: 1453.2 | L76: 1419 | M76: 3.27997
A77: 67 | B77: BAYERCROP | C77: 6189.25 | D77: 6193.92 | E77: 6135.33 | F77: 6081.42 | G77: 6022.83 | H77: 6247.83 | I77: 6306.42 | J77: 6360.33 | K77: 6252.5 | L77: 6140 | M77: 0.50366
A78: 68 | B78: BERGEPAINT | C78: 562.75 | D78: 558.38 | E78: 552.42 | F78: 542.08 | G78: 536.12 | H78: 568.72 | I78: 574.68 | J78: 585.02 | K78: 564.35 | L78: 548.05 | M78: 25.10348
A79: 69 | B79: BDL | C79: 1330.6 | D79: 1331.63 | E79: 1312.27 | F79: 1293.93 | G79: 1274.57 | H79: 1349.97 | I79: 1369.33 | J79: 1387.67 | K79: 1351 | L79: 1313.3 | M79: 8.55127
A80: 70 | B80: BEL | C80: 302.15 | D80: 302.93 | E80: 300.32 | F80: 298.48 | G80: 295.87 | H80: 304.77 | I80: 307.38 | J80: 309.22 | K80: 305.55 | L80: 301.1 | M80: 122.32725
A81: 71 | B81: BHARATFORG | C81: 1587.7 | D81: 1587.18 | E81: 1560.67 | F81: 1533.63 | G81: 1507.12 | H81: 1614.22 | I81: 1640.73 | J81: 1667.77 | K81: 1613.7 | L81: 1560.15 | M81: 11.85925
A82: 72 | B82: BHEL | C82: 293.75 | D82: 295.53 | E82: 291.57 | F82: 289.38 | G82: 285.42 | H82: 297.72 | I82: 301.68 | J82: 303.87 | K82: 299.5 | L82: 293.35 | M82: 98.09448
A83: 73 | B83: BPCL | C83: 343.8 | D83: 341.90 | E83: 338.25 | F83: 332.70 | G83: 329.05 | H83: 347.45 | I83: 351.10 | J83: 356.65 | K83: 345.55 | L83: 336.35 | M83: 178.75728
A84: 74 | B84: BHARTIARTL | C84: 1469.65 | D84: 1474.35 | E84: 1459.60 | F84: 1449.55 | G84: 1434.80 | H84: 1484.40 | I84: 1499.15 | J84: 1509.20 | K84: 1489.1 | L84: 1464.3 | M84: 44.04075
A85: 75 | B85: BIKAJI | C85: 872.9 | D85: 868.78 | E85: 857.57 | F85: 842.23 | G85: 831.02 | H85: 884.12 | I85: 895.33 | J85: 910.67 | K85: 880 | L85: 853.45 | M85: 8.38759
A86: 76 | B86: BIOCON | C86: 344.8 | D86: 344.28 | E86: 341.17 | F86: 337.53 | G86: 334.42 | H86: 347.92 | I86: 351.03 | J86: 354.67 | K86: 347.4 | L86: 340.65 | M86: 34.5351
A87: 77 | B87: BIRLACORPN | C87: 1297.6 | D87: 1292.88 | E87: 1285.77 | F87: 1273.93 | G87: 1266.82 | H87: 1304.72 | I87: 1311.83 | J87: 1323.67 | K87: 1300 | L87: 1281.05 | M87: 0.86392
A88: 78 | B88: BSOFT | C88: 623.65 | D88: 622.48 | E88: 607.17 | F88: 590.68 | G88: 575.37 | H88: 638.97 | I88: 654.28 | J88: 670.77 | K88: 637.8 | L88: 606 | M88: 114.2341
A89: 79 | B89: BLUEDART | C89: 7934.8 | D89: 7971.57 | E89: 7848.23 | F89: 7761.67 | G89: 7638.33 | H89: 8058.13 | I89: 8181.47 | J89: 8268.03 | K89: 8094.9 | L89: 7885 | M89: 0.06604
A90: 80 | B90: BLUESTARCO | C90: 1731.9 | D90: 1727.28 | E90: 1707.47 | F90: 1683.03 | G90: 1663.22 | H90: 1751.72 | I90: 1771.53 | J90: 1795.97 | K90: 1747.1 | L90: 1702.85 | M90: 2.90352
A91: 81 | B91: BBTC | C91: 2379.9 | D91: 2398.92 | E91: 2291.83 | F91: 2203.77 | G91: 2096.68 | H91: 2486.98 | I91: 2594.07 | J91: 2682.13 | K91: 2506 | L91: 2310.85 | M91: 8.81736
A92: 82 | B92: BORORENEW | C92: 515.3 | D92: 514.20 | E92: 509.10 | F92: 502.90 | G92: 497.80 | H92: 520.40 | I92: 525.50 | J92: 531.70 | K92: 519.3 | L92: 508 | M92: 4.02921
A93: 83 | B93: BOSCHLTD | C93: 31605.75 | D93: 31737.77 | E93: 31393.08 | F93: 31180.42 | G93: 30835.73 | H93: 31950.43 | I93: 32295.12 | J93: 32507.78 | K93: 32082.45 | L93: 31525.1 | M93: 0.25158
A94: 84 | B94: BRIGADE | C94: 1146.7 | D94: 1149.93 | E94: 1137.87 | F94: 1129.03 | G94: 1116.97 | H94: 1158.77 | I94: 1170.83 | J94: 1179.67 | K94: 1162 | L94: 1141.1 | M94: 1.11809
A95: 85 | B95: BRITANNIA | C95: 5732.5 | D95: 5737.95 | E95: 5712.65 | F95: 5692.80 | G95: 5667.50 | H95: 5757.80 | I95: 5783.10 | J95: 5802.95 | K95: 5763.25 | L95: 5718.1 | M95: 1.02452
A96: 86 | B96: MAPMYINDIA | C96: 2262.4 | D96: 2258.13 | E96: 2226.27 | F96: 2190.13 | G96: 2158.27 | H96: 2294.27 | I96: 2326.13 | J96: 2362.27 | K96: 2290 | L96: 2222 | M96: 0.91467
A97: 87 | B97: CCL | C97: 706.7 | D97: 702.83 | E97: 690.97 | F97: 675.23 | G97: 663.37 | H97: 718.57 | I97: 730.43 | J97: 746.17 | K97: 714.7 | L97: 687.1 | M97: 5.41155
A98: 88 | B98: CESC | C98: 173.79 | D98: 173.30 | E98: 169.74 | F98: 165.68 | G98: 162.12 | H98: 177.36 | I98: 180.92 | J98: 184.98 | K98: 176.87 | L98: 169.25 | M98: 83.5672
A99: 89 | B99: CGPOWER | C99: 710.55 | D99: 713.73 | E99: 702.47 | F99: 694.38 | G99: 683.12 | H99: 721.82 | I99: 733.08 | J99: 741.17 | K99: 725 | L99: 705.65 | M99: 12.66637
A100: 90 | B100: CIEINDIA | C100: 530.2 | D100: 532.82 | E100: 524.68 | F100: 519.17 | G100: 511.03 | H100: 538.33 | I100: 546.47 | J100: 551.98 | K100: 540.95 | L100: 527.3 | M100: 1.19322
A101: 91 | B101: CRISIL | C101: 4600.3 | D101: 4581.17 | E101: 4513.33 | F101: 4426.37 | G101: 4358.53 | H101: 4668.13 | I101: 4735.97 | J101: 4822.93 | K101: 4649 | L101: 4494.2 | M101: 0.41409
A102: 92 | B102: CSBBANK | C102: 322.1 | D102: 321.42 | E102: 319.03 | F102: 315.97 | G102: 313.58 | H102: 324.48 | I102: 326.87 | J102: 329.93 | K102: 323.8 | L102: 318.35 | M102: 1.93041
A103: 93 | B103: CAMPUS | C103: 283.75 | D103: 282.57 | E103: 277.53 | F103: 271.32 | G103: 266.28 | H103: 288.78 | I103: 293.82 | J103: 300.03 | K103: 287.6 | L103: 276.35 | M103: 10.3093
A104: 94 | B104: CANFINHOME | C104: 843.75 | D104: 841.82 | E104: 837.63 | F104: 831.52 | G104: 827.33 | H104: 847.93 | I104: 852.12 | J104: 858.23 | K104: 846 | L104: 835.7 | M104: 2.42818
A105: 95 | B105: CANBK | C105: 109.9 | D105: 109.74 | E105: 108.24 | F105: 106.57 | G105: 105.07 | H105: 111.41 | I105: 112.91 | J105: 114.58 | K105: 111.25 | L105: 108.08 | M105: 277.92179
A106: 96 | B106: CAPLIPOINT | C106: 1845.95 | D106: 1783.65 | E106: 1667.30 | F106: 1488.65 | G106: 1372.30 | H106: 1962.30 | I106: 2078.65 | J106: 2257.30 | K106: 1900 | L106: 1605 | M106: 56.85435
A107: 97 | B107: CGCL | C107: 204.07 | D107: 204.29 | E107: 202.57 | F107: 201.08 | G107: 199.36 | H107: 205.78 | I107: 207.50 | J107: 208.99 | K107: 206 | L107: 202.79 | M107: 0.76336
A108: 98 | B108: CARBORUNIV | C108: 1562.15 | D108: 1564.13 | E108: 1534.87 | F108: 1507.58 | G108: 1478.32 | H108: 1591.42 | I108: 1620.68 | J108: 1647.97 | K108: 1593.4 | L108: 1536.85 | M108: 2.44077
A109: 99 | B109: CASTROLIND | C109: 253.4 | D109: 254.07 | E109: 251.43 | F109: 249.47 | G109: 246.83 | H109: 256.03 | I109: 258.67 | J109: 260.63 | K109: 256.7 | L109: 252.1 | M109: 27.31528
A110: 100 | B110: CEATLTD | C110: 2707.55 | D110: 2703.18 | E110: 2664.37 | F110: 2621.18 | G110: 2582.37 | H110: 2746.37 | I110: 2785.18 | J110: 2828.37 | K110: 2742 | L110: 2660 | M110: 2.08807
A111: 101 | B111: CELLO | C111: 882.65 | D111: 886.22 | E111: 872.43 | F111: 862.22 | G111: 848.43 | H111: 896.43 | I111: 910.22 | J111: 920.43 | K111: 900 | L111: 876 | M111: 1.35445
A112: 102 | B112: CENTRALBK | C112: 60.28 | D112: 59.70 | E112: 58.94 | F112: 57.61 | G112: 56.85 | H112: 61.03 | I112: 61.79 | J112: 63.12 | K112: 60.45 | L112: 58.36 | M112: 67.00944
A113: 103 | B113: CDSL | C113: 2876.15 | D113: 2890.38 | E113: 2825.77 | F113: 2775.38 | G113: 2710.77 | H113: 2940.77 | I113: 3005.38 | J113: 3055.77 | K113: 2955 | L113: 2840 | M113: 44.11644
A114: 104 | B114: CENTURYPLY | C114: 720.8 | D114: 720.80 | E114: 716.00 | F114: 711.20 | G114: 706.40 | H114: 725.60 | I114: 730.40 | J114: 735.20 | K114: 725.6 | L114: 716 | M114: 0.39317
A115: 105 | B115: CENTURYTEX | C115: 2133 | D115: 2134.12 | E115: 2113.23 | F115: 2093.47 | G115: 2072.58 | H115: 2153.88 | I115: 2174.77 | J115: 2194.53 | K115: 2155 | L115: 2114.35 | M115: 0.75998
A116: 106 | B116: CERA | C116: 9797.05 | D116: 9898.60 | E116: 9648.45 | F116: 9499.85 | G116: 9249.70 | H116: 10047.20 | I116: 10297.35 | J116: 10445.95 | K116: 10148.75 | L116: 9750 | M116: 0.18156
A117: 107 | B117: CHALET | C117: 776.15 | D117: 787.20 | E117: 754.40 | F117: 732.65 | G117: 699.85 | H117: 808.95 | I117: 841.75 | J117: 863.50 | K117: 820 | L117: 765.45 | M117: 1.71543
A118: 108 | B118: CHAMBLFERT | C118: 496.95 | D118: 496.05 | E118: 492.15 | F118: 487.35 | G118: 483.45 | H118: 500.85 | I118: 504.75 | J118: 509.55 | K118: 499.95 | L118: 491.25 | M118: 10.03411
A119: 109 | B119: CHEMPLASTS | C119: 496.55 | D119: 497.67 | E119: 490.08 | F119: 483.62 | G119: 476.03 | H119: 504.13 | I119: 511.72 | J119: 518.18 | K119: 505.25 | L119: 491.2 | M119: 7.74799
A120: 110 | B120: CHENNPETRO | C120: 986.95 | D120: 992.47 | E120: 978.58 | F120: 970.22 | G120: 956.33 | H120: 1000.83 | I120: 1014.72 | J120: 1023.08 | K120: 1006.35 | L120: 984.1 | M120: 7.51461
A121: 111 | B121: CHOLAHLDNG | C121: 1581.75 | D121: 1588.58 | E121: 1562.17 | F121: 1542.58 | G121: 1516.17 | H121: 1608.17 | I121: 1634.58 | J121: 1654.17 | K121: 1615 | L121: 1569 | M121: 1.94862
A122: 112 | B122: CHOLAFIN | C122: 1349.7 | D122: 1357.93 | E122: 1338.87 | F122: 1328.03 | G122: 1308.97 | H122: 1368.77 | I122: 1387.83 | J122: 1398.67 | K122: 1377 | L122: 1347.1 | M122: 10.38009
A123: 113 | B123: CIPLA | C123: 1575.5 | D123: 1576.72 | E123: 1568.48 | F123: 1561.47 | G123: 1553.23 | H123: 1583.73 | I123: 1591.97 | J123: 1598.98 | K123: 1584.95 | L123: 1569.7 | M123: 7.42635
A124: 114 | B124: CUB | C124: 165.99 | D124: 165.77 | E124: 164.03 | F124: 162.08 | G124: 160.34 | H124: 167.72 | I124: 169.46 | J124: 171.41 | K124: 167.5 | L124: 163.81 | M124: 12.73107
A125: 115 | B125: CLEAN | C125: 1554.2 | D125: 1564.60 | E125: 1541.20 | F125: 1528.20 | G125: 1504.80 | H125: 1577.60 | I125: 1601.00 | J125: 1614.00 | K125: 1588 | L125: 1551.6 | M125: 1.31436
A126: 116 | B126: COALINDIA | C126: 522 | D126: 519.53 | E126: 515.62 | F126: 509.23 | G126: 505.32 | H126: 525.92 | I126: 529.83 | J126: 536.22 | K126: 523.45 | L126: 513.15 | M126: 107.37456
A127: 117 | B127: COCHINSHIP | C127: 2155.45 | D127: 2175.05 | E127: 2130.40 | F127: 2105.35 | G127: 2060.70 | H127: 2200.10 | I127: 2244.75 | J127: 2269.80 | K127: 2219.7 | L127: 2150 | M127: 14.31135
A128: 118 | B128: COFORGE | C128: 6059.65 | D128: 6081.40 | E128: 6012.80 | F128: 5965.95 | G128: 5897.35 | H128: 6128.25 | I128: 6196.85 | J128: 6243.70 | K128: 6150 | L128: 6034.55 | M128: 4.15023
A129: 119 | B129: COLPAL | C129: 3547.05 | D129: 3550.02 | E129: 3530.03 | F129: 3513.02 | G129: 3493.03 | H129: 3567.03 | I129: 3587.02 | J129: 3604.03 | K129: 3570 | L129: 3533 | M129: 3.36203
A130: 120 | B130: CAMS | C130: 4546.9 | D130: 4499.38 | E130: 4360.77 | F130: 4174.63 | G130: 4036.02 | H130: 4685.52 | I130: 4824.13 | J130: 5010.27 | K130: 4638 | L130: 4313.25 | M130: 12.57066
A131: 121 | B131: CONCORDBIO | C131: 1642.05 | D131: 1643.62 | E131: 1608.23 | F131: 1574.42 | G131: 1539.03 | H131: 1677.43 | I131: 1712.82 | J131: 1746.63 | K131: 1679 | L131: 1609.8 | M131: 0.40395
A132: 122 | B132: CONCOR | C132: 968.3 | D132: 972.52 | E132: 955.23 | F132: 942.17 | G132: 924.88 | H132: 985.58 | I132: 1002.87 | J132: 1015.93 | K132: 989.8 | L132: 959.45 | M132: 23.16816
A133: 123 | B133: COROMANDEL | C133: 1740.85 | D133: 1742.72 | E133: 1711.48 | F133: 1682.12 | G133: 1650.88 | H133: 1772.08 | I133: 1803.32 | J133: 1832.68 | K133: 1773.95 | L133: 1713.35 | M133: 4.39781
A134: 124 | B134: CRAFTSMAN | C134: 5425.15 | D134: 5437.92 | E134: 5387.23 | F134: 5349.32 | G134: 5298.63 | H134: 5475.83 | I134: 5526.52 | J134: 5564.43 | K134: 5488.6 | L134: 5400 | M134: 0.09698
A135: 125 | B135: CREDITACC | C135: 1226.45 | D135: 1225.50 | E135: 1209.00 | F135: 1191.55 | G135: 1175.05 | H135: 1242.95 | I135: 1259.45 | J135: 1276.90 | K135: 1242 | L135: 1208.05 | M135: 1.84138
A136: 126 | B136: CROMPTON | C136: 453.6 | D136: 450.52 | E136: 445.73 | F136: 437.87 | G136: 433.08 | H136: 458.38 | I136: 463.17 | J136: 471.03 | K136: 455.3 | L136: 442.65 | M136: 41.02713
A137: 127 | B137: CUMMINSIND | C137: 3754.85 | D137: 3759.78 | E137: 3715.07 | F137: 3675.28 | G137: 3630.57 | H137: 3799.57 | I137: 3844.28 | J137: 3884.07 | K137: 3804.5 | L137: 3720 | M137: 5.62243
A138: 128 | B138: CYIENT | C138: 1820.95 | D138: 1810.00 | E138: 1791.00 | F138: 1761.05 | G138: 1742.05 | H138: 1839.95 | I138: 1858.95 | J138: 1888.90 | K138: 1829 | L138: 1780.05 | M138: 3.46411
A139: 129 | B139: DCMSHRIRAM | C139: 1142.45 | D139: 1127.92 | E139: 1099.83 | F139: 1057.22 | G139: 1029.13 | H139: 1170.53 | I139: 1198.62 | J139: 1241.23 | K139: 1156 | L139: 1085.3 | M139: 1.17808
A140: 130 | B140: DLF | C140: 857.2 | D140: 861.72 | E140: 850.78 | F140: 844.37 | G140: 833.43 | H140: 868.13 | I140: 879.07 | J140: 885.48 | K140: 872.65 | L140: 855.3 | M140: 15.52098
A141: 131 | B141: DOMS | C141: 2265.7 | D141: 2273.78 | E141: 2242.52 | F141: 2219.33 | G141: 2188.07 | H141: 2296.97 | I141: 2328.23 | J141: 2351.42 | K141: 2305.05 | L141: 2250.6 | M141: 1.60326
A142: 132 | B142: DABUR | C142: 621.3 | D142: 620.35 | E142: 615.80 | F142: 610.30 | G142: 605.75 | H142: 625.85 | I142: 630.40 | J142: 635.90 | K142: 624.9 | L142: 614.85 | M142: 23.32398
A143: 133 | B143: DALBHARAT | C143: 1768.95 | D143: 1770.38 | E143: 1754.42 | F143: 1739.88 | G143: 1723.92 | H143: 1784.92 | I143: 1800.88 | J143: 1815.42 | K143: 1786.35 | L143: 1755.85 | M143: 5.25217
A144: 134 | B144: DATAPATTNS | C144: 2867.9 | D144: 2880.12 | E144: 2841.38 | F144: 2814.87 | G144: 2776.13 | H144: 2906.63 | I144: 2945.37 | J144: 2971.88 | K144: 2918.85 | L144: 2853.6 | M144: 3.33619
A145: 135 | B145: DEEPAKFERT | C145: 955.55 | D145: 954.92 | E145: 939.33 | F145: 923.12 | G145: 907.53 | H145: 971.13 | I145: 986.72 | J145: 1002.93 | K145: 970.5 | L145: 938.7 | M145: 7.60183
A146: 136 | B146: DEEPAKNTR | C146: 2874.25 | D146: 2885.97 | E146: 2852.08 | F146: 2829.92 | G146: 2796.03 | H146: 2908.13 | I146: 2942.02 | J146: 2964.18 | K146: 2919.85 | L146: 2863.8 | M146: 1.07996
A147: 137 | B147: DELHIVERY | C147: 432.25 | D147: 427.88 | E147: 421.97 | F147: 411.68 | G147: 405.77 | H147: 438.17 | I147: 444.08 | J147: 454.37 | K147: 433.8 | L147: 417.6 | M147: 64.20594
A148: 138 | B148: DEVYANI | C148: 169.76 | D148: 170.92 | E148: 167.94 | F148: 166.12 | G148: 163.14 | H148: 172.74 | I148: 175.72 | J148: 177.54 | K148: 173.9 | L148: 169.1 | M148: 12.89807
A149: 139 | B149: DIVISLAB | C149: 4669.9 | D149: 4658.47 | E149: 4626.98 | F149: 4584.07 | G149: 4552.58 | H149: 4701.38 | I149: 4732.87 | J149: 4775.78 | K149: 4689.95 | L149: 4615.55 | M149: 2.32374
A150: 140 | B150: DIXON | C150: 12779.95 | D150: 12678.25 | E150: 12521.50 | F150: 12263.05 | G150: 12106.30 | H150: 12936.70 | I150: 13093.45 | J150: 13351.90 | K150: 12835 | L150: 12419.8 | M150: 7.10397
A151: 141 | B151: LALPATHLAB | C151: 3310.9 | D151: 3313.23 | E151: 3287.67 | F151: 3264.43 | G151: 3238.87 | H151: 3336.47 | I151: 3362.03 | J151: 3385.27 | K151: 3338.8 | L151: 3290 | M151: 0.86659
A152: 142 | B152: DRREDDY | C152: 6911.35 | D152: 6884.32 | E152: 6844.63 | F152: 6777.92 | G152: 6738.23 | H152: 6951.03 | I152: 6990.72 | J152: 7057.43 | K152: 6924 | L152: 6817.6 | M152: 1.61847
A153: 143 | B153: EIDPARRY | C153: 773.65 | D153: 775.68 | E153: 757.37 | F153: 741.08 | G153: 722.77 | H153: 791.97 | I153: 810.28 | J153: 826.57 | K153: 794 | L153: 759.4 | M153: 4.4605
A154: 144 | B154: EIHOTEL | C154: 371.15 | D154: 374.62 | E154: 366.13 | F154: 361.12 | G154: 352.63 | H154: 379.63 | I154: 388.12 | J154: 393.13 | K154: 383.1 | L154: 369.6 | M154: 4.97941
A155: 145 | B155: EPL | C155: 249.19 | D155: 250.74 | E155: 246.00 | F155: 242.80 | G155: 238.06 | H155: 253.94 | I155: 258.68 | J155: 261.88 | K155: 255.49 | L155: 247.55 | M155: 41.20235
A156: 146 | B156: EASEMYTRIP | C156: 38.88 | D156: 39.16 | E156: 38.52 | F156: 38.15 | G156: 37.51 | H156: 39.53 | I156: 40.17 | J156: 40.54 | K156: 39.81 | L156: 38.8 | M156: 128.90277
A157: 147 | B157: EICHERMOT | C157: 4813.3 | D157: 4813.77 | E157: 4779.53 | F157: 4745.77 | G157: 4711.53 | H157: 4847.53 | I157: 4881.77 | J157: 4915.53 | K157: 4848 | L157: 4780 | M157: 2.80722
A158: 148 | B158: ELECON | C158: 605.3 | D158: 607.05 | E158: 603.00 | F158: 600.70 | G158: 596.65 | H158: 609.35 | I158: 613.40 | J158: 615.70 | K158: 611.1 | L158: 604.75 | M158: 2.8153
A159: 149 | B159: ELGIEQUIP | C159: 632.9 | D159: 623.75 | E159: 612.15 | F159: 591.40 | G159: 579.80 | H159: 644.50 | I159: 656.10 | J159: 676.85 | K159: 635.35 | L159: 603 | M159: 4.71975
A160: 150 | B160: EMAMILTD | C160: 804 | D160: 811.17 | E160: 793.83 | F160: 783.67 | G160: 766.33 | H160: 821.33 | I160: 838.67 | J160: 848.83 | K160: 828.5 | L160: 801 | M160: 2.68305
A161: 151 | B161: ENDURANCE | C161: 2491 | D161: 2495.80 | E161: 2445.20 | F161: 2399.40 | G161: 2348.80 | H161: 2541.60 | I161: 2592.20 | J161: 2638.00 | K161: 2546.4 | L161: 2450 | M161: 1.0451
A162: 152 | B162: ENGINERSIN | C162: 220.7 | D162: 221.40 | E162: 216.40 | F162: 212.10 | G162: 207.10 | H162: 225.70 | I162: 230.70 | J162: 235.00 | K162: 226.4 | L162: 217.1 | M162: 59.90048
A163: 153 | B163: EQUITASBNK | C163: 81.25 | D163: 81.93 | E163: 80.07 | F163: 78.90 | G163: 77.04 | H163: 83.10 | I163: 84.96 | J163: 86.13 | K163: 83.78 | L163: 80.75 | M163: 64.17374
A164: 154 | B164: ERIS | C164: 1193.25 | D164: 1199.43 | E164: 1174.92 | F164: 1156.58 | G164: 1132.07 | H164: 1217.77 | I164: 1242.28 | J164: 1260.62 | K164: 1223.95 | L164: 1181.1 | M164: 0.95234
A165: 155 | B165: ESCORTS | C165: 3728.8 | D165: 3744.50 | E165: 3704.05 | F165: 3679.30 | G165: 3638.85 | H165: 3769.25 | I165: 3809.70 | J165: 3834.45 | K165: 3784.95 | L165: 3719.75 | M165: 1.11006
A166: 156 | B166: EXIDEIND | C166: 496.95 | D166: 497.18 | E166: 493.92 | F166: 490.88 | G166: 487.62 | H166: 500.22 | I166: 503.48 | J166: 506.52 | K166: 500.45 | L166: 494.15 | M166: 17.36472
A167: 157 | B167: FDC | C167: 485.25 | D167: 484.28 | E167: 481.02 | F167: 476.78 | G167: 473.52 | H167: 488.52 | I167: 491.78 | J167: 496.02 | K167: 487.55 | L167: 480.05 | M167: 0.91345
A168: 158 | B168: NYKAA | C168: 192.63 | D168: 193.87 | E168: 190.05 | F168: 187.48 | G168: 183.66 | H168: 196.44 | I168: 200.26 | J168: 202.83 | K168: 197.68 | L168: 191.29 | M168: 47.28087
A169: 159 | B169: FEDERALBNK | C169: 202.69 | D169: 203.50 | E169: 201.31 | F169: 199.92 | G169: 197.73 | H169: 204.89 | I169: 207.08 | J169: 208.47 | K169: 205.7 | L169: 202.12 | M169: 115.39502
A170: 160 | B170: FACT | C170: 926.5 | D170: 929.72 | E170: 919.43 | F170: 912.37 | G170: 902.08 | H170: 936.78 | I170: 947.07 | J170: 954.13 | K170: 940 | L170: 922.65 | M170: 1.09964
A171: 161 | B171: FINEORG | C171: 5225.4 | D171: 5243.90 | E171: 5192.50 | F171: 5159.60 | G171: 5108.20 | H171: 5276.80 | I171: 5328.20 | J171: 5361.10 | K171: 5295.3 | L171: 5211 | M171: 0.14799
A172: 162 | B172: FINCABLES | C172: 1447.85 | D172: 1445.88 | E172: 1426.97 | F172: 1406.08 | G172: 1387.17 | H172: 1466.77 | I172: 1485.68 | J172: 1506.57 | K172: 1464.8 | L172: 1425 | M172: 1.60994
A173: 163 | B173: FINPIPE | C173: 295.1 | D173: 292.93 | E173: 289.37 | F173: 283.63 | G173: 280.07 | H173: 298.67 | I173: 302.23 | J173: 307.97 | K173: 296.5 | L173: 287.2 | M173: 7.00523
A174: 164 | B174: FSL | C174: 337.35 | D174: 328.93 | E174: 313.97 | F174: 290.58 | G174: 275.62 | H174: 352.32 | I174: 367.28 | J174: 390.67 | K174: 343.9 | L174: 305.55 | M174: 367.47256
A175: 165 | B175: FIVESTAR | C175: 709.55 | D175: 710.57 | E175: 703.33 | F175: 697.12 | G175: 689.88 | H175: 716.78 | I175: 724.02 | J175: 730.23 | K175: 717.8 | L175: 704.35 | M175: 4.48515
A176: 166 | B176: FORTIS | C176: 523.2 | D176: 528.32 | E176: 514.13 | F176: 505.07 | G176: 490.88 | H176: 537.38 | I176: 551.57 | J176: 560.63 | K176: 542.5 | L176: 519.25 | M176: 20.34984
A177: 167 | B177: GAIL | C177: 238.93 | D177: 237.35 | E177: 235.11 | F177: 231.28 | G177: 229.04 | H177: 241.18 | I177: 243.42 | J177: 247.25 | K177: 239.6 | L177: 233.53 | M177: 190.04338
A178: 168 | B178: GMMPFAUDLR | C178: 1300.3 | D178: 1300.12 | E178: 1275.23 | F178: 1250.17 | G178: 1225.28 | H178: 1325.18 | I178: 1350.07 | J178: 1375.13 | K178: 1325 | L178: 1275.05 | M178: 4.13889
A179: 169 | B179: GMRINFRA | C179: 96.29 | D179: 96.68 | E179: 95.62 | F179: 94.96 | G179: 93.90 | H179: 97.34 | I179: 98.40 | J179: 99.06 | K179: 97.73 | L179: 96.01 | M179: 281.04301
A180: 170 | B180: GRSE | C180: 1921.65 | D180: 1950.08 | E180: 1887.57 | F180: 1853.48 | G180: 1790.97 | H180: 1984.17 | I180: 2046.68 | J180: 2080.77 | K180: 2012.6 | L180: 1916 | M180: 7.91411
A181: 171 | B181: GICRE | C181: 399.6 | D181: 395.87 | E181: 388.98 | F181: 378.37 | G181: 371.48 | H181: 406.48 | I181: 413.37 | J181: 423.98 | K181: 402.75 | L181: 385.25 | M181: 13.93872
A182: 172 | B182: GILLETTE | C182: 7931.5 | D182: 7945.77 | E182: 7867.73 | F182: 7803.97 | G182: 7725.93 | H182: 8009.53 | I182: 8087.57 | J182: 8151.33 | K182: 8023.8 | L182: 7882 | M182: 0.12052
A183: 173 | B183: GLAND | C183: 1961 | D183: 1969.00 | E183: 1943.00 | F183: 1925.00 | G183: 1899.00 | H183: 1987.00 | I183: 2013.00 | J183: 2031.00 | K183: 1995 | L183: 1951 | M183: 1.36153
A184: 174 | B184: GLAXO | C184: 2931.35 | D184: 2935.77 | E184: 2901.58 | F184: 2871.82 | G184: 2837.63 | H184: 2965.53 | I184: 2999.72 | J184: 3029.48 | K184: 2969.95 | L184: 2906 | M184: 0.79417
A185: 175 | B185: GLS | C185: 994.2 | D185: 995.07 | E185: 979.13 | F185: 964.07 | G185: 948.13 | H185: 1010.13 | I185: 1026.07 | J185: 1041.13 | K185: 1011 | L185: 980 | M185: 1.06405
A186: 176 | B186: GLENMARK | C186: 1631.5 | D186: 1612.33 | E186: 1584.97 | F186: 1538.43 | G186: 1511.07 | H186: 1658.87 | I186: 1686.23 | J186: 1732.77 | K186: 1639.7 | L186: 1565.8 | M186: 24.4671
A187: 177 | B187: MEDANTA | C187: 1106.25 | D187: 1108.82 | E187: 1095.43 | F187: 1084.62 | G187: 1071.23 | H187: 1119.63 | I187: 1133.02 | J187: 1143.83 | K187: 1122.2 | L187: 1098 | M187: 3.55372
A188: 178 | B188: GPIL | C188: 994.15 | D188: 995.47 | E188: 983.68 | F188: 973.22 | G188: 961.43 | H188: 1005.93 | I188: 1017.72 | J188: 1028.18 | K188: 1007.25 | L188: 985 | M188: 2.66811
A189: 179 | B189: GODFRYPHLP | C189: 5238.6 | D189: 5067.07 | E189: 4691.53 | F189: 4144.47 | G189: 3768.93 | H189: 5614.13 | I189: 5989.67 | J189: 6536.73 | K189: 5442.6 | L189: 4520 | M189: 12.77096
A190: 180 | B190: GODREJCP | C190: 1403.65 | D190: 1401.08 | E190: 1388.62 | F190: 1373.58 | G190: 1361.12 | H190: 1416.12 | I190: 1428.58 | J190: 1443.62 | K190: 1413.55 | L190: 1386.05 | M190: 3.71436
A191: 181 | B191: GODREJIND | C191: 915.95 | D191: 911.43 | E191: 903.12 | F191: 890.28 | G191: 881.97 | H191: 924.27 | I191: 932.58 | J191: 945.42 | K191: 919.75 | L191: 898.6 | M191: 0.77355
A192: 182 | B192: GODREJPROP | C192: 2926 | D192: 2924.63 | E192: 2889.37 | F192: 2852.73 | G192: 2817.47 | H192: 2961.27 | I192: 2996.53 | J192: 3033.17 | K192: 2959.9 | L192: 2888 | M192: 7.01633
A193: 183 | B193: GRANULES | C193: 663.6 | D193: 663.50 | E193: 658.35 | F193: 653.10 | G193: 647.95 | H193: 668.75 | I193: 673.90 | J193: 679.15 | K193: 668.65 | L193: 658.25 | M193: 8.88814
A194: 184 | B194: GRAPHITE | C194: 532.35 | D194: 533.78 | E194: 527.07 | F194: 521.78 | G194: 515.07 | H194: 539.07 | I194: 545.78 | J194: 551.07 | K194: 540.5 | L194: 528.5 | M194: 6.7437
A195: 185 | B195: GRASIM | C195: 2598.4 | D195: 2596.87 | E195: 2558.58 | F195: 2518.77 | G195: 2480.48 | H195: 2636.68 | I195: 2674.97 | J195: 2714.78 | K195: 2635.15 | L195: 2557.05 | M195: 6.82028
A196: 186 | B196: GESHIP | C196: 1388 | D196: 1397.67 | E196: 1375.33 | F196: 1362.67 | G196: 1340.33 | H196: 1410.33 | I196: 1432.67 | J196: 1445.33 | K196: 1420 | L196: 1385 | M196: 8.46946
A197: 187 | B197: GRINDWELL | C197: 2444.65 | D197: 2451.65 | E197: 2413.30 | F197: 2381.95 | G197: 2343.60 | H197: 2483.00 | I197: 2521.35 | J197: 2552.70 | K197: 2490 | L197: 2420.3 | M197: 0.32451
A198: 188 | B198: GAEL | C198: 131.24 | D198: 131.28 | E198: 129.96 | F198: 128.68 | G198: 127.36 | H198: 132.56 | I198: 133.88 | J198: 135.16 | K198: 132.6 | L198: 130 | M198: 4.58695
A199: 189 | B199: FLUOROCHEM | C199: 3377.5 | D199: 3393.70 | E199: 3318.15 | F199: 3258.80 | G199: 3183.25 | H199: 3453.05 | I199: 3528.60 | J199: 3587.95 | K199: 3469.25 | L199: 3334.35 | M199: 0.69987
A200: 190 | B200: GUJGASLTD | C200: 590.75 | D200: 595.20 | E200: 584.55 | F200: 578.35 | G200: 567.70 | H200: 601.40 | I200: 612.05 | J200: 618.25 | K200: 605.85 | L200: 589 | M200: 7.83832
A201: 191 | B201: GMDCLTD | C201: 366.2 | D201: 365.70 | E201: 361.50 | F201: 356.80 | G201: 352.60 | H201: 370.40 | I201: 374.60 | J201: 379.30 | K201: 369.9 | L201: 361 | M201: 6.07638
A202: 192 | B202: GNFC | C202: 650.15 | D202: 652.65 | E202: 645.70 | F202: 641.25 | G202: 634.30 | H202: 657.10 | I202: 664.05 | J202: 668.50 | K202: 659.6 | L202: 648.2 | M202: 4.14199
A203: 193 | B203: GPPL | C203: 233.22 | D203: 232.84 | E203: 230.39 | F203: 227.55 | G203: 225.10 | H203: 235.68 | I203: 238.13 | J203: 240.97 | K203: 235.3 | L203: 230.01 | M203: 32.12752
A204: 194 | B204: GSFC | C204: 226.23 | D204: 225.79 | E204: 224.09 | F204: 221.94 | G204: 220.24 | H204: 227.94 | I204: 229.64 | J204: 231.79 | K204: 227.5 | L204: 223.65 | M204: 9.63589
A205: 195 | B205: GSPL | C205: 320.05 | D205: 323.75 | E205: 315.30 | F205: 310.55 | G205: 302.10 | H205: 328.50 | I205: 336.95 | J205: 341.70 | K205: 332.2 | L205: 319 | M205: 9.78199
A206: 196 | B206: HEG | C206: 2023.2 | D206: 2016.10 | E206: 1997.25 | F206: 1971.30 | G206: 1952.45 | H206: 2042.05 | I206: 2060.90 | J206: 2086.85 | K206: 2034.95 | L206: 1990.15 | M206: 0.98559
... 320 more rows

Sheet Bulk Deals
E6: Back To Main Page
A7: Subject : | B7: BULK DEAL | D7: =Main!B10 -> 2024-08-20
A9: Date | B9: Scrip code | C9: Scrip Name | D9: Client Name | E9: Buy / Sell | F9: Quantity Traded | G9: Trade Price / Wt.Avg.trade price | H9: Exchange
A10: 2024-08-19 | B10: 539661 | C10: ACEMEN | D10: GREEN PEAKS ENTERPRISES LLP | E10: BUY | F10: 20,000 | G10: 74.21 | H10: BSE
A11: 2024-08-19 | B11: 531525 | C11: ACESOFT | D11: ACE TECHNOLOGIES | E11: SELL | F11: 105,000 | G11: 346 | H11: BSE
A12: 2024-08-19 | B12: 531525 | C12: ACESOFT | D12: SHANKAR SHARMA | E12: BUY | F12: 34,000 | G12: 346 | H12: BSE
A13: 2024-08-19 | B13: 538351 | C13: AFEL | D13: KAUSHAL HITESHBHAI PARIKH | E13: SELL | F13: 122,000 | G13: 14.28 | H13: BSE
A14: 2024-08-19 | B14: 540829 | C14: CHANDRIMA | D14: PACE STOCK BROKING SERVICES PVT LTD | E14: SELL | F14: 12,328 | G14: 29.51 | H14: BSE
A15: 2024-08-19 | B15: 534691 | C15: COMCL | D15: RAJEEV PERIWAL | E15: BUY | F15: 60,000 | G15: 36.71 | H15: BSE
A16: 2024-08-19 | B16: 530755 | C16: CORNE | D16: URMIL SATISHKUMAR SHAH | E16: BUY | F16: 27,921 | G16: 10.83 | H16: BSE
A17: 2024-08-19 | B17: 543595 | C17: EPBIO | D17: ANKITAGUPTA | E17: BUY | F17: 10,000 | G17: 204.75 | H17: BSE
A18: 2024-08-19 | B18: 543595 | C18: EPBIO | D18: ANKITAGUPTA | E18: SELL | F18: 500 | G18: 200.05 | H18: BSE
A19: 2024-08-19 | B19: 531035 | C19: ERAAYA | D19: BAL KRISHEN | E19: BUY | F19: 112,500 | G19: 800 | H19: BSE
A20: 2024-08-19 | B20: 522195 | C20: FRONTSP | D20: COUNTER CYCLICAL INVESTMENTS PRIVATE LIMITED | E20: SELL | F20: 22,754 | G20: 2125.35 | H20: BSE
A21: 2024-08-19 | B21: 526727 | C21: GARNET | D21: VENKATA SUBBARAO BOMMISETTY | E21: SELL | F21: 75,000 | G21: 36.1 | H21: BSE
A22: 2024-08-19 | B22: 509563 | C22: GARWAMAR | D22: GREEN PEAKS ENTERPRISES LLP | E22: BUY | F22: 5,000 | G22: 36.95 | H22: BSE
A23: 2024-08-19 | B23: 509563 | C23: GARWAMAR | D23: GREEN PEAKS ENTERPRISES LLP | E23: SELL | F23: 43,136 | G23: 36.95 | H23: BSE
A24: 2024-08-19 | B24: 509563 | C24: GARWAMAR | D24: MULTIPLIER SHARE & STOCK ADVISORS PRIVATE LIMITED | E24: BUY | F24: 50,000 | G24: 36.95 | H24: BSE
A25: 2024-08-19 | B25: 531723 | C25: GATECH | D25: DHRUV GANJI | E25: BUY | F25: 1,993,622 | G25: 1.27 | H25: BSE
A26: 2024-08-19 | B26: 540266 | C26: GLCL | D26: NILAM HIMANSHUKUMAR SONI | E26: SELL | F26: 45,965 | G26: 23.16 | H26: BSE
A27: 2024-08-19 | B27: 540266 | C27: GLCL | D27: ASHOK AMRITLAL SHAH | E27: SELL | F27: 55,777 | G27: 23.16 | H27: BSE
A28: 2024-08-19 | B28: 540266 | C28: GLCL | D28: KALPESH VINODRAY MEHTA | E28: SELL | F28: 49,500 | G28: 23.16 | H28: BSE
A29: 2024-08-19 | B29: 540266 | C29: GLCL | D29: PARESH DHIRAJLAL SHAH | E29: BUY | F29: 50,000 | G29: 23.16 | H29: BSE
A30: 2024-08-19 | B30: 537709 | C30: HANSUGAR | D30: MULTIPLIER SHARE & STOCK ADVISORS PRIVATE LIMITED | E30: SELL | F30: 132,474 | G30: 6.76 | H30: BSE
A31: 2024-08-19 | B31: 543951 | C31: INNOVATUS | D31: MINIBOSS CONSULTANCY PRIVATE LIMITED | E31: SELL | F31: 21,000 | G31: 52.92 | H31: BSE
A32: 2024-08-19 | B32: 512405 | C32: IPOWER | D32: SYKES AND RAY EQUITIES (INDIA) LIMITED | E32: SELL | F32: 32,574 | G32: 13.08 | H32: BSE
A33: 2024-08-19 | B33: 540953 | C33: KENVI | D33: MONIKA SEKHRI | E33: BUY | F33: 868,860 | G33: 6.08 | H33: BSE
A34: 2024-08-19 | B34: 535730 | C34: KHOOBSURAT | D34: VISAGAR FINANCIAL SERVICES LIMITED | E34: SELL | F34: 10,200,000 | G34: 1.15 | H34: BSE
A35: 2024-08-19 | B35: 531328 | C35: KRETTOSYS | D35: MULTIPLIER SHARE & STOCK ADVISORS PRIVATE LIMITED | E35: SELL | F35: 1,683,066 | G35: 1.29 | H35: BSE
A36: 2024-08-19 | B36: 531328 | C36: KRETTOSYS | D36: MULTIPLIER SHARE & STOCK ADVISORS PRIVATE LIMITED | E36: BUY | F36: 136,623 | G36: 1.29 | H36: BSE
A37: 2024-08-19 | B37: 526179 | C37: LUDLOWJUT | D37: NISHTHA INVESTMENT & SONSULTANCY SERVICES PRIVATE LIMITED | E37: BUY | F37: 200,000 | G37: 131.85 | H37: BSE
A38: 2024-08-19 | B38: 526179 | C38: LUDLOWJUT | D38: SHUBHAM FINANCIAL SERVICES | E38: SELL | F38: 63,843 | G38: 127.91 | H38: BSE
A39: 2024-08-19 | B39: 526179 | C39: LUDLOWJUT | D39: SHUBHAM FINANCIAL SERVICES | E39: BUY | F39: 33,843 | G39: 131.47 | H39: BSE
A40: 2024-08-19 | B40: 526179 | C40: LUDLOWJUT | D40: GUTTIKONDA VARA LAKSHMI | E40: BUY | F40: 212,728 | G40: 128.69 | H40: BSE
A41: 2024-08-19 | B41: 538895 | C41: MIHIKA | D41: BLISSFULBOUNTY AGRI PRIVATE LIMITED | E41: SELL | F41: 67,575 | G41: 22.03 | H41: BSE
A42: 2024-08-19 | B42: 538895 | C42: MIHIKA | D42: GANDHI NARENDRABHAI FATECHAND (HUF) | E42: BUY | F42: 55,700 | G42: 22.1 | H42: BSE
A43: 2024-08-19 | B43: 531832 | C43: NAGTECH | D43: PROGNOSIS SECURITIES PVT. LTD. | E43: SELL | F43: 85,000 | G43: 32.8 | H43: BSE
A44: 2024-08-19 | B44: 531832 | C44: NAGTECH | D44: MULTIPLIER SHARE & STOCK ADVISORS PRIVATE LIMITED | E44: BUY | F44: 100,000 | G44: 32.8 | H44: BSE
A45: 2024-08-19 | B45: 531832 | C45: NAGTECH | D45: PARESH DHIRAJLAL SHAH | E45: SELL | F45: 50,431 | G45: 32.8 | H45: BSE
A46: 2024-08-19 | B46: 531832 | C46: NAGTECH | D46: PARESH DHIRAJLAL SHAH | E46: BUY | F46: 13,017 | G46: 32.8 | H46: BSE
A47: 2024-08-19 | B47: 511644 | C47: OMEGAIN | D47: JAYESHJIVRAJBHAIPRAJAPATI | E47: SELL | F47: 6,625 | G47: 231.67 | H47: BSE
A48: 2024-08-19 | B48: 511644 | C48: OMEGAIN | D48: PURV DIPAKKUMAR PATEL | E48: BUY | F48: 5,675 | G48: 229.63 | H48: BSE
A49: 2024-08-19 | B49: 531496 | C49: OMKAR | D49: DHRUV C BHANDERI | E49: SELL | F49: 35,053 | G49: 5.19 | H49: BSE
A50: 2024-08-19 | B50: 538742 | C50: PANABYTE | D50: VARSHA AJAY ATHA | E50: SELL | F50: 47,151 | G50: 25.99 | H50: BSE
A51: 2024-08-19 | B51: 538742 | C51: PANABYTE | D51: NISHA KAUSHIK DESAI | E51: BUY | F51: 22,500 | G51: 26.18 | H51: BSE
A52: 2024-08-19 | B52: 538742 | C52: PANABYTE | D52: NISHA KAUSHIK DESAI | E52: SELL | F52: 21,500 | G52: 28.27 | H52: BSE
A53: 2024-08-19 | B53: 538742 | C53: PANABYTE | D53: SHARE INDIA SECURITIES LIMITED | E53: SELL | F53: 22,763 | G53: 25.96 | H53: BSE
A54: 2024-08-19 | B54: 538742 | C54: PANABYTE | D54: SHARE INDIA SECURITIES LIMITED | E54: BUY | F54: 22,763 | G54: 25.54 | H54: BSE
A55: 2024-08-19 | B55: 538742 | C55: PANABYTE | D55: AMIT D RAMBHIA | E55: SELL | F55: 98,000 | G55: 25.72 | H55: BSE
A56: 2024-08-19 | B56: 538742 | C56: PANABYTE | D56: DOCTORVINAYKUMARBOMMIREDDY | E56: SELL | F56: 39,200 | G56: 27.37 | H56: BSE
A57: 2024-08-19 | B57: 538742 | C57: PANABYTE | D57: DHEERAJ | E57: BUY | F57: 39,886 | G57: 29.23 | H57: BSE
A58: 2024-08-19 | B58: 538742 | C58: PANABYTE | D58: DOCTORVINAYKUMARBOMMIREDDY | E58: BUY | F58: 39,200 | G58: 27.47 | H58: BSE
A59: 2024-08-19 | B59: 532911 | C59: PARLEIND | D59: HITENDRA KUMAR JAIN | E59: SELL | F59: 101,220 | G59: 12.11 | H59: BSE
A60: 2024-08-19 | B60: 526773 | C60: PRESSURS | D60: ISHAAN TRADEFIN LLP | E60: BUY | F60: 1,090,464 | G60: 6.43 | H60: BSE
A61: 2024-08-19 | B61: 526773 | C61: PRESSURS | D61: ISHAAN TRADEFIN LLP | E61: SELL | F61: 437,454 | G61: 6.37 | H61: BSE
A62: 2024-08-19 | B62: 526773 | C62: PRESSURS | D62: SAHASTRAA ADVISORS PRIVATE LIMITED | E62: BUY | F62: 1,080,003 | G62: 6.43 | H62: BSE
A63: 2024-08-19 | B63: 526773 | C63: PRESSURS | D63: SAHASTRAA ADVISORS PRIVATE LIMITED | E63: SELL | F63: 1,080,003 | G63: 6.42 | H63: BSE
A64: 2024-08-19 | B64: 526773 | C64: PRESSURS | D64: SPARK FINANCE | E64: SELL | F64: 1,540,825 | G64: 6.41 | H64: BSE
A65: 2024-08-19 | B65: 526773 | C65: PRESSURS | D65: SPARK FINANCE | E65: BUY | F65: 1,839,251 | G65: 6.37 | H65: BSE
A66: 2024-08-19 | B66: 511557 | C66: PROFINC | D66: DILKUSH BAFNA J | E66: BUY | F66: 1,100,000 | G66: 1.02 | H66: BSE
A67: 2024-08-19 | B67: 536659 | C67: PVVINFRA | D67: MANBHUPINDER SINGH ATWAL | E67: BUY | F67: 500,000 | G67: 18.67 | H67: BSE
A68: 2024-08-19 | B68: 536659 | C68: PVVINFRA | D68: ABHISHEK VISHNUDEV MISRA | E68: SELL | F68: 150,000 | G68: 18.67 | H68: BSE
A69: 2024-08-19 | B69: 538452 | C69: QUASAR | D69: ROMESH KUMAR GOEL | E69: BUY | F69: 30,000 | G69: 15.08 | H69: BSE
A70: 2024-08-19 | B70: 540259 | C70: SHANGAR | D70: HEMALBEN SANJAY SHAH | E70: SELL | F70: 92,838 | G70: 10.09 | H70: BSE
A71: 2024-08-19 | B71: 540259 | C71: SHANGAR | D71: HEMALBEN SANJAY SHAH | E71: BUY | F71: 9,806 | G71: 10.08 | H71: BSE
A72: 2024-08-19 | B72: 540786 | C72: SHARIKA | D72: ISHAAN TRADEFIN LLP | E72: SELL | F72: 1 | G72: 20.19 | H72: BSE
A73: 2024-08-19 | B73: 540786 | C73: SHARIKA | D73: ISHAAN TRADEFIN LLP | E73: BUY | F73: 532,001 | G73: 20.2 | H73: BSE
A74: 2024-08-19 | B74: 538212 | C74: SHARPINV | D74: JIGNESHBHUPENDRARUPARELIYA | E74: BUY | F74: 1,881,244 | G74: 0.86 | H74: BSE
A75: 2024-08-19 | B75: 540147 | C75: SHASHIJIT | D75: VIKRAMBHAI GOKALBHAI CHAUDHARI | E75: BUY | F75: 1,010,519 | G75: 7.22 | H75: BSE
A76: 2024-08-19 | B76: 511493 | C76: SHRYDUS | D76: NANDKISHOR SHIVNARAYAN RATHI | E76: BUY | F76: 100,000 | G76: 18.24 | H76: BSE
A77: 2024-08-19 | B77: 511493 | C77: SHRYDUS | D77: N L RUNGTA (HUF) | E77: SELL | F77: 61,500 | G77: 18.17 | H77: BSE
A78: 2024-08-19 | B78: 511493 | C78: SHRYDUS | D78: AJIT MANOHAR GURAV | E78: SELL | F78: 99,999 | G78: 18.24 | H78: BSE
A79: 2024-08-19 | B79: 533014 | C79: SICAGEN | D79: AMI HOLDINGS PRIVATE LIMITED | E79: BUY | F79: 390,000 | G79: 70.25 | H79: BSE
A80: 2024-08-19 | B80: 519566 | C80: SIMRAN | D80: MULTIPLIER SHARE & STOCK ADVISORS PRIVATE LIMITED | E80: BUY | F80: 25,000 | G80: 245.15 | H80: BSE
A81: 2024-08-19 | B81: 508905 | C81: SMIFS | D81: PLASMA COMMERCIALS PRIVATE LIMITED | E81: BUY | F81: 269,500 | G81: 55.68 | H81: BSE
A82: 2024-08-19 | B82: 508905 | C82: SMIFS | D82: ASTRA MERCHANDISING PRIVATE LIMITED | E82: SELL | F82: 269,509 | G82: 55.68 | H82: BSE
A83: 2024-08-19 | B83: 519242 | C83: SRDAPRT | D83: MARWADI CHANDARANA INTERMEDIARIES BROKERS PRIVATE LIMITED | E83: BUY | F83: 10,000 | G83: 97.9 | H83: BSE
A84: 2024-08-19 | B84: 519242 | C84: SRDAPRT | D84: ATUL PRATAP SHAH | E84: SELL | F84: 25,000 | G84: 97.9 | H84: BSE
A85: 2024-08-19 | B85: 539217 | C85: SRESTHA | D85: SYLPH TECHNOLOGIES LIMITED | E85: BUY | F85: 82,568 | G85: 2.33 | H85: BSE
A86: 2024-08-19 | B86: 539217 | C86: SRESTHA | D86: SYLPH TECHNOLOGIES LIMITED | E86: SELL | F86: 7,555,111 | G86: 2.34 | H86: BSE
A87: 2024-08-19 | B87: 539217 | C87: SRESTHA | D87: ASHISH GOYAL . | E87: SELL | F87: 6,500,000 | G87: 2.34 | H87: BSE
A88: 2024-08-19 | B88: 540492 | C88: STARLENT | D88: DHRUV GANJI | E88: SELL | F88: 270,320 | G88: 126.25 | H88: BSE
A89: 2024-08-19 | B89: 540492 | C89: STARLENT | D89: DHRUV GANJI | E89: BUY | F89: 249,523 | G89: 125.72 | H89: BSE
A90: 2024-08-19 | B90: 531039 | C90: SWADHATURE | D90: MULTIPLIER SHARE & STOCK ADVISORS PRIVATE LIMITED | E90: SELL | F90: 28,349 | G90: 10.07 | H90: BSE
A91: 2024-08-19 | B91: 542803 | C91: VEL | D91: VIJAYAPRIYA VASUDEVAN | E91: BUY | F91: 70,000 | G91: 9.11 | H91: BSE
A92: 2024-08-19 | B92: 542803 | C92: VEL | D92: PRIYA KABRA | E92: SELL | F92: 76,099 | G92: 9.12 | H92: BSE
A93: 2024-08-19 | B93: 542803 | C93: VEL | D93: VIDHI WASTE RECYCLERS LIMITED | E93: SELL | F93: 50,000 | G93: 9.2 | H93: BSE
A94: 2024-08-19 | B94: 538732 | C94: VGCL | D94: SIDDHARTHA BHAIYA | E94: SELL | F94: 121,064 | G94: 79.51 | H94: BSE
A95: 2024-08-19 | B95: 512064 | C95: VISVEN | D95: MULTIPLIER SHARE & STOCK ADVISORS PRIVATE LIMITED | E95: SELL | F95: 29,000 | G95: 54.21 | H95: BSE
A96: 2024-08-19 | B96: 512064 | C96: VISVEN | D96: MULTIPLIER SHARE & STOCK ADVISORS PRIVATE LIMITED | E96: BUY | F96: 55 | G96: 56 | H96: BSE
A97: 2024-08-19 | B97: 512064 | C97: VISVEN | D97: GULSHAN INVESTMENT COMPANY LIMITED | E97: SELL | F97: 25,000 | G97: 54.42 | H97: BSE
A98: 2024-08-19 | B98: 512064 | C98: VISVEN | D98: JYOTSNA RAMESHBHAI PATEL | E98: BUY | F98: 10,000 | G98: 54.16 | H98: BSE
A99: 2024-08-19 | B99: 524661 | C99: WELCURE | D99: RUCHIRA GOYAL | E99: BUY | F99: 213,099 | G99: 7.33 | H99: BSE
A100: 2024-08-19 | B100: 524661 | C100: WELCURE | D100: MINABEN KIRITBHAI SHAH | E100: SELL | F100: 132,662 | G100: 7.33 | H100: BSE
A101: 2024-08-19 | B101: ADSL | C101: Allied Digital Services L | D101: GRAVITON RESEARCH CAPITAL LLP | E101: BUY | F101: 284,058 | G101: 224.69 | H101: NSE
A102: 2024-08-19 | B102: AESTHETIK | C102: Aesthetik Engineers Ltd | D102: MULTIPLIER SHARE & STOCK ADVISORS PRIVATE LIMITED | E102: BUY | F102: 130,000 | G102: 121.45 | H102: NSE
A103: 2024-08-19 | B103: AMDIND | C103: AMD Industries Limited | D103: SUNDERDEVI GOVIND MAHESHWARI | E103: BUY | F103: 113,882 | G103: 81.54 | H103: NSE
A104: 2024-08-19 | B104: AMJUMBO | C104: A and M Jumbo Bags Ltd | D104: KAUSHAL HITESHBHAI PARIKH | E104: BUY | F104: 184,000 | G104: 18.85 | H104: NSE
A105: 2024-08-19 | B105: AMJUMBO | C105: A and M Jumbo Bags Ltd | D105: THAKAR JITAL ASHISH | E105: BUY | F105: 80,000 | G105: 20.26 | H105: NSE
A106: 2024-08-19 | B106: ASPINWALL | C106: Aspinwall & Co Ltd | D106: SANJANABEN SUKHABHAI KHANT | E106: BUY | F106: 42,598 | G106: 306.75 | H106: NSE
A107: 2024-08-19 | B107: BLSE | C107: BLS E-Services Limited | D107: GRAVITON RESEARCH CAPITAL LLP | E107: BUY | F107: 502,716 | G107: 242.28 | H107: NSE
A108: 2024-08-19 | B108: BSOFT | C108: BIRLASOFT LIMITED | D108: GRAVITON RESEARCH CAPITAL LLP | E108: BUY | F108: 1,425,012 | G108: 626.83 | H108: NSE
A109: 2024-08-19 | B109: BURNPUR | C109: Burnpur Cement Limited | D109: CAMELLIA TRADEX PRIVATE LIMITED | E109: BUY | F109: 49,500 | G109: 7.84 | H109: NSE
A110: 2024-08-19 | B110: CADSYS | C110: Cadsys (India) Limited | D110: MULTIPLIER SHARE & STOCK ADVISORS PRIVATE LIMITED | E110: BUY | F110: 91,500 | G110: 152.65 | H110: NSE
A111: 2024-08-19 | B111: CAPACITE | C111: Capacite Infraproject Ltd | D111: GRAVITON RESEARCH CAPITAL LLP | E111: BUY | F111: 429,827 | G111: 351.9 | H111: NSE
A112: 2024-08-19 | B112: CAPLIPOINT | C112: Caplin Point Lab Ltd. | D112: GRAVITON RESEARCH CAPITAL LLP | E112: BUY | F112: 444,478 | G112: 1761.72 | H112: NSE
A113: 2024-08-19 | B113: DCXINDIA | C113: DCX Systems Limited | D113: UPADHYAYA AJAY SHIV NARAYAN | E113: BUY | F113: 1,500,000 | G113: 337.95 | H113: NSE
A114: 2024-08-19 | B114: DCXINDIA | C114: DCX Systems Limited | D114: NEOMILE GROWTH FUND - SERIES I | E114: BUY | F114: 739,700 | G114: 337.95 | H114: NSE
A115: 2024-08-19 | B115: DSSL | C115: Dynacons Sys & Sol. Ltd. | D115: GRAVITON RESEARCH CAPITAL LLP | E115: BUY | F115: 64,277 | G115: 1574.8 | H115: NSE
A116: 2024-08-19 | B116: DUCON | C116: Ducon Infratech Ltd | D116: VIRAL DINESH SHAH | E116: BUY | F116: 1,840,457 | G116: 8.47 | H116: NSE
A117: 2024-08-19 | B117: DURLAX | C117: Durlax Top Surface Ltd | D117: HI GROWTH CORPORATE SERVICES PVT LTD | E117: BUY | F117: 96,000 | G117: 69.26 | H117: NSE
A118: 2024-08-19 | B118: ETHOSLTD | C118: Ethos Limited | D118: BANDHAN MUTUAL FUND | E118: BUY | F118: 160,000 | G118: 3346 | H118: NSE
A119: 2024-08-19 | B119: FSL | C119: Firstsource Solutions Lim | D119: GRAVITON RESEARCH CAPITAL LLP | E119: BUY | F119: 3,539,527 | G119: 327.22 | H119: NSE
A120: 2024-08-19 | B120: GATECH | C120: GACM Technologies Limited | D120: MAKVANA MITESH | E120: BUY | F120: 5,000,000 | G120: 1.32 | H120: NSE
A121: 2024-08-19 | B121: GATECH | C121: GACM Technologies Limited | D121: DHRUV GANJI | E121: BUY | F121: 4,236,888 | G121: 1.27 | H121: NSE
A122: 2024-08-19 | B122: GLOBALPET | C122: Global Pet Industries Ltd | D122: SAREEN ESTATES PVT LTD | E122: BUY | F122: 87,000 | G122: 103 | H122: NSE
A123: 2024-08-19 | B123: GLOBALPET | C123: Global Pet Industries Ltd | D123: MOONLIGHT CONTINENTAL PRIVATE LIMITED | E123: BUY | F123: 51,000 | G123: 103 | H123: NSE
A124: 2024-08-19 | B124: GPTHEALTH | C124: GPT Healthcare Limited | D124: GRAVITON RESEARCH CAPITAL LLP | E124: BUY | F124: 481,731 | G124: 187.89 | H124: NSE
A125: 2024-08-19 | B125: GRAVITA | C125: Gravita India Limited | D125: GRAVITON RESEARCH CAPITAL LLP | E125: BUY | F125: 362,793 | G125: 2414.94 | H125: NSE
A126: 2024-08-19 | B126: GRMOVER | C126: GRM Overseas Limited | D126: GRAVITON RESEARCH CAPITAL LLP | E126: BUY | F126: 376,323 | G126: 272.52 | H126: NSE
A127: 2024-08-19 | B127: ISHAN | C127: Ishan International Ltd | D127: MAHADEV MANUBHAI MAKVANA | E127: BUY | F127: 1,248,000 | G127: 2.8 | H127: NSE
A128: 2024-08-19 | B128: KANDARP | C128: Kandarp Dg Smart Bpo Ltd | D128: HEMENDRA RATILAL MEHTA | E128: BUY | F128: 48,000 | G128: 40.26 | H128: NSE
A129: 2024-08-19 | B129: KITEX | C129: Kitex Garments Ltd | D129: AAKRAYA RESEARCH LLP | E129: BUY | F129: 548,621 | G129: 363.69 | H129: NSE
A130: 2024-08-19 | B130: KITEX | C130: Kitex Garments Ltd | D130: MICROCURVES TRADING PRIVATE LIMITED | E130: BUY | F130: 337,610 | G130: 359.21 | H130: NSE
A131: 2024-08-19 | B131: KITEX | C131: Kitex Garments Ltd | D131: NK SECURITIES RESEARCH PRIVATE LIMITED | E131: BUY | F131: 584,836 | G131: 359.91 | H131: NSE
A132: 2024-08-19 | B132: KITEX | C132: Kitex Garments Ltd | D132: QE SECURITIES LLP | E132: BUY | F132: 398,661 | G132: 359.52 | H132: NSE
A133: 2024-08-19 | B133: KITEX | C133: Kitex Garments Ltd | D133: HRTI PRIVATE LIMITED | E133: BUY | F133: 735,829 | G133: 362.09 | H133: NSE
A134: 2024-08-19 | B134: KITEX | C134: Kitex Garments Ltd | D134: GRAVITON RESEARCH CAPITAL LLP | E134: BUY | F134: 575,400 | G134: 355.49 | H134: NSE
A135: 2024-08-19 | B135: KOPRAN | C135: Kopran Ltd. | D135: HRTI PRIVATE LIMITED | E135: BUY | F135: 264,457 | G135: 297.47 | H135: NSE
A136: 2024-08-19 | B136: KOPRAN | C136: Kopran Ltd. | D136: GRAVITON RESEARCH CAPITAL LLP | E136: BUY | F136: 468,147 | G136: 297.18 | H136: NSE
A137: 2024-08-19 | B137: KTL | C137: Kalahridhaan Trendz Ltd | D137: DHRUV GANJI | E137: BUY | F137: 489,000 | G137: 38.98 | H137: NSE
A138: 2024-08-19 | B138: KTL | C138: Kalahridhaan Trendz Ltd | D138: APPU FINANCIAL SERVICES LTD | E138: BUY | F138: 93,000 | G138: 40 | H138: NSE
A139: 2024-08-19 | B139: KTL | C139: Kalahridhaan Trendz Ltd | D139: SOHAM FINCARE INDIA LLP | E139: BUY | F139: 81,000 | G139: 39.58 | H139: NSE
A140: 2024-08-19 | B140: MAHAPEXLTD | C140: Maha Rashtra Apex Corp | D140: SANJANABEN SUKHABHAI KHANT | E140: BUY | F140: 121,924 | G140: 207.22 | H140: NSE
A141: 2024-08-19 | B141: MAHAPEXLTD | C141: Maha Rashtra Apex Corp | D141: NK SECURITIES RESEARCH PRIVATE LIMITED | E141: BUY | F141: 138,941 | G141: 209.12 | H141: NSE
A142: 2024-08-19 | B142: MAITREYA | C142: Maitreya Medicare Limited | D142: HASHIM MOHAMED YACOOBALI | E142: BUY | F142: 34,400 | G142: 217.52 | H142: NSE
A143: 2024-08-19 | B143: MALUPAPER | C143: Malu Paper Mills Limited | D143: SILVER LINE VENTURES PRIVATE LIMITED | E143: BUY | F143: 133,999 | G143: 49.62 | H143: NSE
A144: 2024-08-19 | B144: MOREPENLAB | C144: Morepan Laboratories Ltd. | D144: HRTI PRIVATE LIMITED | E144: BUY | F144: 7,396,160 | G144: 67.42 | H144: NSE
A145: 2024-08-19 | B145: MOREPENLAB | C145: Morepan Laboratories Ltd. | D145: MATHISYS ADVISORS LLP | E145: BUY | F145: 3,551,645 | G145: 68.13 | H145: NSE
A146: 2024-08-19 | B146: MOREPENLAB | C146: Morepan Laboratories Ltd. | D146: QE SECURITIES LLP | E146: BUY | F146: 3,297,250 | G146: 67.13 | H146: NSE
A147: 2024-08-19 | B147: MOREPENLAB | C147: Morepan Laboratories Ltd. | D147: GRAVITON RESEARCH CAPITAL LLP | E147: BUY | F147: 4,750,279 | G147: 66.51 | H147: NSE
A148: 2024-08-19 | B148: NIRMAN-RE | C148: Nirman Agri Genetics Ltd- | D148: SETU SECURITIES PVT LTD | E148: BUY | F148: 1,030 | G148: 91.3 | H148: NSE
A149: 2024-08-19 | B149: PASUPTAC | C149: Pasupati Acrylon Limited | D149: RAMDOOT REALTORS PVT LTD | E149: BUY | F149: 1,056,371 | G149: 51.76 | H149: NSE
A150: 2024-08-19 | B150: PASUPTAC | C150: Pasupati Acrylon Limited | D150: GRAVITON RESEARCH CAPITAL LLP | E150: BUY | F150: 498,912 | G150: 51.65 | H150: NSE
A151: 2024-08-19 | B151: PASUPTAC | C151: Pasupati Acrylon Limited | D151: PARTH INFIN BROKERS PVT LTD | E151: BUY | F151: 797,550 | G151: 50.77 | H151: NSE
A152: 2024-08-19 | B152: PEARLPOLY | C152: Pearl Polymers Ltd | D152: SILVER LINE VENTURES PRIVATE LIMITED | E152: BUY | F152: 102,729 | G152: 41.88 | H152: NSE
A153: 2024-08-19 | B153: PEARLPOLY | C153: Pearl Polymers Ltd | D153: NAGARAJA SHASHWATH | E153: BUY | F153: 102,415 | G153: 40.95 | H153: NSE
A154: 2024-08-19 | B154: PEARLPOLY | C154: Pearl Polymers Ltd | D154: MARWADI CHANDARANA INTERMEDIARIES BROKERS PRIVATE LIMITED | E154: BUY | F154: 89,921 | G154: 42.11 | H154: NSE
A155: 2024-08-19 | B155: PRITIKA | C155: Pritika Eng Compo Ltd | D155: GAYATRIBEN NISHANT SHAH | E155: BUY | F155: 66,000 | G155: 111.6 | H155: NSE
A156: 2024-08-19 | B156: PRUDENT | C156: Prudent Corp Adv Ser Ltd | D156: SOCIETE GENERALE | E156: BUY | F156: 275,000 | G156: 2450 | H156: NSE
A157: 2024-08-19 | B157: PRUDMOULI | C157: Prudential Sugars Corp | D157: EMRALD COMMERCIAL LIMITED | E157: BUY | F157: 485,345 | G157: 20 | H157: NSE
A158: 2024-08-19 | B158: PRUDMOULI | C158: Prudential Sugars Corp | D158: REGENT COMMODITIES BROKING PRIVATE LIMITED | E158: BUY | F158: 208,316 | G158: 22.98 | H158: NSE
A159: 2024-08-19 | B159: RADHIKAJWE | C159: Radhika Jeweltech Limited | D159: GRAVITON RESEARCH CAPITAL LLP | E159: BUY | F159: 611,417 | G159: 83.14 | H159: NSE
A160: 2024-08-19 | B160: RADHIKAJWE | C160: Radhika Jeweltech Limited | D160: HRTI PRIVATE LIMITED | E160: BUY | F160: 1,243,357 | G160: 86.68 | H160: NSE
A161: 2024-08-19 | B161: RADHIKAJWE | C161: Radhika Jeweltech Limited | D161: YUGA STOCKS AND COMMODITIES PRIVATE LIMITED . | E161: BUY | F161: 1,100,000 | G161: 90.74 | H161: NSE
A162: 2024-08-19 | B162: SANSTAR | C162: Sanstar Limited | D162: GRAVITON RESEARCH CAPITAL LLP | E162: BUY | F162: 1,054,954 | G162: 121.42 | H162: NSE
A163: 2024-08-19 | B163: SATECH | C163: S A Tech Software India L | D163: VARUN GOYAL | E163: BUY | F163: 56,000 | G163: 139.14 | H163: NSE
A164: 2024-08-19 | B164: SATECH | C164: S A Tech Software India L | D164: ROHAN GUPTA | E164: BUY | F164: 76,000 | G164: 133.61 | H164: NSE
A165: 2024-08-19 | B165: SATECH | C165: S A Tech Software India L | D165: MANSI SHARE AND STOCK ADVISORS PVT LTD | E165: BUY | F165: 134,000 | G165: 148.38 | H165: NSE
A166: 2024-08-19 | B166: SATECH | C166: S A Tech Software India L | D166: J4S FINANCIAL SOLUTIONS LLP | E166: BUY | F166: 78,000 | G166: 138.29 | H166: NSE
A167: 2024-08-19 | B167: SATECH | C167: S A Tech Software India L | D167: SONALI RAJEEV MAHESHWARI | E167: BUY | F167: 70,000 | G167: 141.44 | H167: NSE
A168: 2024-08-19 | B168: SATECH | C168: S A Tech Software India L | D168: YUGA STOCKS AND COMMODITIES PRIVATE LIMITED . | E168: BUY | F168: 70,000 | G168: 148.26 | H168: NSE
A169: 2024-08-19 | B169: SGL | C169: STL Global Limited | D169: RAJESH KOLEKAR HUF | E169: BUY | F169: 184,239 | G169: 22.81 | H169: NSE
A170: 2024-08-19 | B170: SPRL | C170: SP Refractories Limited | D170: SPEXTRA MULTIBIZ PRIVATE LIMITED | E170: BUY | F170: 15,200 | G170: 248.81 | H170: NSE
A171: 2024-08-19 | B171: STERTOOLS | C171: Sterling Tools Ltd. | D171: GRAVITON RESEARCH CAPITAL LLP | E171: BUY | F171: 196,697 | G171: 485.62 | H171: NSE
A172: 2024-08-19 | B172: TBZ | C172: Trib Bhimji Zaveri Ltd | D172: GRAVITON RESEARCH CAPITAL LLP | E172: BUY | F172: 390,240 | G172: 182.49 | H172: NSE
A173: 2024-08-19 | B173: TRU | C173: TruCap Finance Limited | D173: IND SWIFT LABORATORIES LIMITED | E173: BUY | F173: 943,545 | G173: 47.99 | H173: NSE
A174: 2024-08-19 | B174: UFLEX | C174: UFLEX Limited | D174: AAKRAYA RESEARCH LLP | E174: BUY | F174: 459,037 | G174: 745.63 | H174: NSE
A175: 2024-08-19 | B175: UFLEX | C175: UFLEX Limited | D175: HRTI PRIVATE LIMITED | E175: BUY | F175: 368,513 | G175: 742.78 | H175: NSE
A176: 2024-08-19 | B176: UFLEX | C176: UFLEX Limited | D176: GRAVITON RESEARCH CAPITAL LLP | E176: BUY | F176: 454,369 | G176: 739.01 | H176: NSE
A177: 2024-08-19 | B177: UNIECOM | C177: Unicommerce Esolutions L | D177: NK SECURITIES RESEARCH PRIVATE LIMITED | E177: BUY | F177: 516,497 | G177: 217.02 | H177: NSE
A178: 2024-08-19 | B178: UNIVASTU | C178: Univastu India Limited | D178: JYOTHI KAILASH KABRA | E178: BUY | F178: 326,399 | G178: 230.11 | H178: NSE
A179: 2024-08-19 | B179: UTSSAV | C179: Utssav CZ Gold Jewels Ltd | D179: MANSI SHARE AND STOCK ADVISORS PVT LTD | E179: BUY | F179: 3,600 | G179: 162.4 | H179: NSE
A180: 2024-08-19 | B180: VINEETLAB | C180: Vineet Laboratories Ltd | D180: MITTAL RIMPY | E180: BUY | F180: 174,248 | G180: 62.56 | H180: NSE
A181: 2024-08-19 | B181: VISASTEEL | C181: Visa Steel Limited | D181: VISA INDUSTRIES LIMITED | E181: BUY | F181: 5,090,000 | G181: 19.6 | H181: NSE
A182: 2024-08-19 | B182: VLEGOV | C182: VL E Gov and IT Sol Ltd | D182: KABEELON SALES CORP | E182: BUY | F182: 566,426 | G182: 107.26 | H182: NSE
A183: 2024-08-19 | B183: ADSL | C183: Allied Digital Services L | D183: GRAVITON RESEARCH CAPITAL LLP | E183: SELL | F183: 284,058 | G183: 224.73 | H183: NSE
A184: 2024-08-19 | B184: AMDIND | C184: AMD Industries Limited | D184: SUNDERDEVI GOVIND MAHESHWARI | E184: SELL | F184: 90,000 | G184: 81.27 | H184: NSE
A185: 2024-08-19 | B185: AMJUMBO | C185: A and M Jumbo Bags Ltd | D185: ANSHU MISHRA | E185: SELL | F185: 248,000 | G185: 18.85 | H185: NSE
A186: 2024-08-19 | B186: ASPINWALL | C186: Aspinwall & Co Ltd | D186: SANJANABEN SUKHABHAI KHANT | E186: SELL | F186: 42,598 | G186: 307.32 | H186: NSE
A187: 2024-08-19 | B187: BLSE | C187: BLS E-Services Limited | D187: GRAVITON RESEARCH CAPITAL LLP | E187: SELL | F187: 502,716 | G187: 243.01 | H187: NSE
A188: 2024-08-19 | B188: BSOFT | C188: BIRLASOFT LIMITED | D188: GRAVITON RESEARCH CAPITAL LLP | E188: SELL | F188: 1,425,012 | G188: 627.9 | H188: NSE
A189: 2024-08-19 | B189: BURNPUR | C189: Burnpur Cement Limited | D189: CAMELLIA TRADEX PRIVATE LIMITED | E189: SELL | F189: 598,234 | G189: 8.55 | H189: NSE
A190: 2024-08-19 | B190: CADSYS | C190: Cadsys (India) Limited | D190: MULTIPLIER SHARE & STOCK ADVISORS PRIVATE LIMITED | E190: SELL | F190: 53,500 | G190: 155.22 | H190: NSE
A191: 2024-08-19 | B191: CAPACITE | C191: Capacite Infraproject Ltd | D191: GRAVITON RESEARCH CAPITAL LLP | E191: SELL | F191: 429,827 | G191: 351.66 | H191: NSE
A192: 2024-08-19 | B192: CAPLIPOINT | C192: Caplin Point Lab Ltd. | D192: GRAVITON RESEARCH CAPITAL LLP | E192: SELL | F192: 444,478 | G192: 1763.58 | H192: NSE
A193: 2024-08-19 | B193: DCXINDIA | C193: DCX Systems Limited | D193: NCBG HOLDINGS INC | E193: SELL | F193: 2,959,100 | G193: 337.95 | H193: NSE
A194: 2024-08-19 | B194: DCXINDIA | C194: DCX Systems Limited | D194: NEOMILE GROWTH FUND - SERIES I | E194: SELL | F194: 47,726 | G194: 337.39 | H194: NSE
A195: 2024-08-19 | B195: DESTINY | C195: Destiny Logistics & I Ltd | D195: ANANT WEALTH CONSULTANTS PRIVATE LIMITED | E195: SELL | F195: 99,000 | G195: 31.05 | H195: NSE
A196: 2024-08-19 | B196: DESTINY | C196: Destiny Logistics & I Ltd | D196: ADCON CAPITAL SERVICES LIMITED | E196: SELL | F196: 192,000 | G196: 31.29 | H196: NSE
A197: 2024-08-19 | B197: DIAMONDYD | C197: Prataap Snacks Limited | D197: RAJESH KUMAR MEHTA | E197: SELL | F197: 185,000 | G197: 856.38 | H197: NSE
A198: 2024-08-19 | B198: DSSL | C198: Dynacons Sys & Sol. Ltd. | D198: GRAVITON RESEARCH CAPITAL LLP | E198: SELL | F198: 64,277 | G198: 1575.89 | H198: NSE
A199: 2024-08-19 | B199: DUCON | C199: Ducon Infratech Ltd | D199: VIRAL DINESH SHAH | E199: SELL | F199: 1,840,457 | G199: 8.41 | H199: NSE
A200: 2024-08-19 | B200: DURLAX | C200: Durlax Top Surface Ltd | D200: HI GROWTH CORPORATE SERVICES PVT LTD | E200: SELL | F200: 96,000 | G200: 71.26 | H200: NSE
A201: 2024-08-19 | B201: ETHOSLTD | C201: Ethos Limited | D201: MAHEN DISTRIBUTION LIMITED | E201: SELL | F201: 160,000 | G201: 3346 | H201: NSE
A202: 2024-08-19 | B202: ETHOSLTD | C202: Ethos Limited | D202: MASTER CAPITAL SERVICES LIMITED | E202: SELL | F202: 140,000 | G202: 3346 | H202: NSE
A203: 2024-08-19 | B203: FOCUS | C203: Focus Lightg | D203: RISHI RAJENDRA SHAH | E203: SELL | F203: 379,000 | G203: 94.75 | H203: NSE
A204: 2024-08-19 | B204: FSL | C204: Firstsource Solutions Lim | D204: GRAVITON RESEARCH CAPITAL LLP | E204: SELL | F204: 3,539,527 | G204: 327.2 | H204: NSE
A205: 2024-08-19 | B205: GATECH | C205: GACM Technologies Limited | D205: MAKVANA MITESH | E205: SELL | F205: 1,438,192 | G205: 1.25 | H205: NSE
A206: 2024-08-19 | B206: GATECH | C206: GACM Technologies Limited | D206: DHRUV GANJI | E206: SELL | F206: 5,861,621 | G206: 1.31 | H206: NSE
... 68 more rows

Sheet Call Tracker (Equity)
M5: Back To Main Page
A6: Retail Research Technical Calls & Fundamental Performance Report for the month of July-2024
M7: =Main!B10 -> 2024-08-20
A8: Positional Call
A9: Sr.no | B9: Date | D9: Company | E9: Rec | F9: Rec Price | G9: Stop Loss*** | H9: Call Closed At | I9: Target | J9: Remark | K9: Profit / Loss per Share | L9: All charges | M9: Net Gain / Loss % | N9: Status | O9: Closed Date | P9: Market Closing Price | Q9: Second Buying Date
A10: 1 | B10: 2024-06-25 | D10: HAPPSTMNDS | E10: Accu | F10: 830 | G10: 795 | H10: 780 | I10: 900-950 | J10: Loss of Rs.50/- | K10: =H10-F10 -> -50 | L10: =(F10*-0.3)/100 -> -2.49 | M10: =(K10+L10)/F10 -> -6.32% | N10: Unsuccessful | O10: 2024-08-05 | R10: H
A11: 2 | B11: 2024-06-27 | D11: BAJAJ-AUTO | E11: Accu | F11: 9325 | G11: 8900 | H11: 9825 | I11: 10000-10400 | J11: Profit of Rs.500/- | K11: =H11-F11 -> 500 | L11: =(F11*-0.3)/100 -> -27.98 | M11: =(K11+L11)/F11 -> 5.06% | N11: Successful | O11: 2024-08-01 | R11: H
A12: 3 | B12: 2024-07-01 | D12: RELIANCE | E12: Accu | F12: 3075 | G12: 2940 | H12: 2900 | I12: 3300-3500 | J12: Loss of Rs.175/- | K12: -175 | L12: -9.23 | M12: -5.99% | N12: Unsuccessful | O12: 2024-08-05 | R12: H
A13: 4 | B13: 2024-07-19 | D13: BAJAJFINSV | E13: Accu | F13: 1617 | G13: 1560 | H13: 1555 | I13: 1720-1800 | J13: Loss of Rs.62/- | K13: =H13-F13 -> -62 | L13: =(F13*-0.3)/100 -> -4.85 | M13: =(K13+L13)/F13 -> -4.13% | N13: Unsuccessful | O13: 2024-08-08 | R13: H
A14: 5 | B14: 2024-07-25 | D14: NESTLEIND | E14: Accu | F14: 2390-2470 | G14: 2330 | I14: 2650-2800 | J14: Open | P14: =VLOOKUP(D14,'MidCap Intra'!$B$11:$C$571,2,0) -> 2503.15 | R14: H
A15: 6 | B15: 2024-07-26 | D15: LTF | E15: Accu | F15: 173.5 | G15: 164 | H15: 163.5 | I15: 195-205 | J15: Loss of Rs.10/- | K15: =H15-F15 -> -10 | L15: =(F15*-0.3)/100 -> -0.52 | M15: =(K15+L15)/F15 -> -6.06% | N15: Unsuccessful | O15: 2024-08-13 | R15: H
A16: 7 | B16: 2024-07-26 | D16: RKFORGE | E16: Accu | F16: 840 | G16: 790 | H16: 882 | I16: 900-950 | J16: Profit of Rs.42/- | K16: =H16-F16 -> 42 | L16: =(F16*-0.3)/100 -> -2.52 | M16: =(K16+L16)/F16 -> 4.70% | N16: Successful | O16: 2024-08-02 | R16: H
A17: 8 | B17: 2024-07-29 | D17: CARBORUNIV | E17: Accu | F17: 1710 | G17: 1645 | H17: 1605 | I17: 1840-1940 | J17: Loss of Rs.105/- | K17: -105 | L17: -5.13 | M17: -6.44% | N17: Unsuccessful | O17: 2024-08-05 | R17: H
A18: 9 | B18: 2024-07-30 | D18: LTTS | E18: Accu | F18: 5040-5170 | G18: 4800 | I18: 5540-5900 | J18: Open | P18: =VLOOKUP(D18,'MidCap Intra'!$B$11:$C$571,2,0) -> 5284.05 | R18: K
A19: 10 | B19: 2024-07-30 | D19: VBL | E19: Accu | F19: 1565 | G19: 1495 | H19: 1490 | I19: 1700-1800 | J19: Loss of Rs.75/- | K19: =H19-F19 -> -75 | L19: =(F19*-0.3)/100 -> -4.70 | M19: =(K19+L19)/F19 -> -5.09% | N19: Unsuccessful | O19: 2024-08-06 | R19: H
A20: 11 | B20: 2024-07-30 | D20: IOC | E20: Accu | F20: 177.5 | G20: 167 | H20: 167 | I20: 195-210 | J20: Loss of Rs.10.5/- | K20: =H20-F20 -> -10.5 | L20: =(F20*-0.3)/100 -> -0.53 | M20: =(K20+L20)/F20 -> -6.22% | N20: Unsuccessful | O20: 2024-08-06 | R20: H
A21: 12 | B21: 2024-08-01 | D21: TRENT | E21: Accu | F21: 5700 | G21: 5400 | H21: 5375 | I21: 6200-6500 | J21: Loss of Rs.325/- | K21: =H21-F21 -> -325 | L21: =(F21*-0.3)/100 -> -17.10 | M21: =(K21+L21)/F21 -> -6.00% | N21: Unsuccessful | O21: 2024-08-05
A22: 13 | B22: 2024-08-06 | D22: TATAMOTORS | E22: Accu | F22: 1029 | G22: 948 | H22: 1078 | I22: 1120-1200 | J22: Profit of Rs.49/- | K22: 49 | L22: -3.09 | M22: 4.46% | N22: Successful | O22: 2024-08-12
A23: 14 | B23: 2024-08-06 | D23: LT | E23: Accu | F23: 3495-3595 | G23: 3440 | I23: 3750-3900 | J23: Open | P23: =VLOOKUP(D23,'MidCap Intra'!$B$11:$C$571,2,0) -> 3555.05
A24: 15 | B24: 2024-08-06 | D24: NIACL | E24: Accu | F24: 259 | G24: 246 | H24: 271.5 | I24: 284-300 | J24: Profit of Rs.12.5/- | K24: =H24-F24 -> 12.5 | L24: =(F24*-0.3)/100 -> -0.78 | M24: =(K24+L24)/F24 -> 4.53% | N24: Successful | O24: 2024-08-08
A25: 16 | B25: 2024-08-06 | D25: BEL | E25: Accu | F25: 280-292 | G25: 268 | I25: 320-340 | J25: Open | P25: =VLOOKUP(D25,'MidCap Intra'!$B$11:$C$571,2,0) -> 302.15
A26: 17 | B26: 2024-08-08 | D26: BHARTIARTL | E26: Accu | F26: 1426-1456 | G26: 1390 | I26: 1530-1600 | J26: Open | P26: =VLOOKUP(D26,'MidCap Intra'!$B$11:$C$571,2,0) -> 1469.65
A27: 18 | B27: 2024-08-08 | D27: ASHOKLEY | E27: Accu | F27: 241.5-247.5 | G27: 232 | I27: 262-277 | J27: Open | P27: =VLOOKUP(D27,'MidCap Intra'!$B$11:$C$571,2,0) -> 257.50
A28: 19 | B28: 2024-08-08 | D28: POONAWALLA | E28: Accu | F28: 358-368 | G28: 345 | I28: 400-430 | J28: Open | P28: =VLOOKUP(D28,'MidCap Intra'!$B$11:$C$571,2,0) -> 371.00
A29: 20 | B29: 2024-08-09 | D29: ASTRAL | E29: Accu | F29: 2010 | G29: 1930 | H29: 1915 | I29: 2200-2350 | J29: Loss of Rs.95/- | K29: =H29-F29 -> -95 | L29: =(F29*-0.3)/100 -> -6.03 | M29: =(K29+L29)/F29 -> -5.03% | N29: Unsuccessful | O29: 2024-08-13
A30: 21 | B30: 2024-08-12 | D30: HINDUNILVR | E30: Accu | F30: 2650-2730 | G30: 2540 | I30: 3000-3290 | J30: Open | P30: =VLOOKUP(D30,'MidCap Intra'!$B$11:$C$571,2,0) -> 2742.55
A31: 22 | B31: 2024-08-12 | D31: SIEMENS | E31: Accu | F31: 6890 | G31: 6490 | H31: 7240 | I31: 7350-7750 | J31: Profit of Rs.350/- | K31: =H31-F31 -> 350 | L31: =(F31*-0.3)/100 -> -20.67 | M31: =(K31+L31)/F31 -> 4.78% | N31: Successful | O31: 2024-08-19
A32: 23 | B32: 2024-08-16 | D32: VBL | E32: Accu | F32: 1420 | G32: 1335 | H32: 1498 | I32: 1500-1580 | J32: Profit of Rs.78/- | K32: =H32-F32 -> 78 | L32: =(F32*-0.3)/100 -> -4.26 | M32: =(K32+L32)/F32 -> 5.19% | N32: Successful | O32: 2024-08-19
A33: 24 | B33: 2024-08-19 | D33: HINDZINC | E33: Accu | F33: 481-491 | G33: 468 | I33: 520-550 | J33: Open | P33: =VLOOKUP(D33,'MidCap Intra'!$B$11:$C$571,2,0) -> 495.70
A38: CLBS = Closing Basis ***
A39: Dividend adjusted <> | F39: Reinitiated $
A40: Part book {} | D40: s | F40: Revised stoploss #
A44: Smart Delivery (Positional)
A45: Sr.no | B45: Date | D45: Company | E45: Rec | F45: Rec Price | G45: Stop Loss*** | H45: Call Closed At | I45: Target | J45: Remark | K45: Profit / Loss per Share/Lot | L45: All charges | M45: Net Gain / Loss % | N45: Status | O45: Closed Date | P45: Market Closing Price | Q45: Second Buying Date
A46: 1 | B46: 2024-08-19 | D46: UDS | E46: Accu | F46: 315.50-327.5 | G46: 298 | I46: 365-400 | J46: Open | R46: H
R48: H
A49: CLBS = Closing Basis *** | F49: Reinitiated $
A50: Dividend adjusted <> | F50: Revised stoploss # | H50: .................
A53: Techno -Funda (positional)
A54: Sr.no | B54: Date | D54: Company | E54: Rec | F54: Rec Price | G54: Stop Loss*** | H54: Call Closed At | I54: Target | J54: Remark | K54: Profit / Loss per Share/Lot | L54: All charges | M54: Net Gain / Loss % | N54: Status | O54: Closed Date | P54: Market Closing Price | Q54: Second Buying Date
A55: 1 | B55: 2024-03-05 | D55: TRIDENT | E55: Accu <> | F55: 38.94 | G55: 34.64 | I55: 47.64-51.64 | J55: Open | P55: =VLOOKUP(D55,'MidCap Intra'!$B$11:$C$571,2,0) -> 37.18 | R55: H
A56: 2 | B56: 2024-07-25 | D56: SCHAEFFLER | E56: Accu | F56: 3825-4025 | G56: 3600 | I56: 4500-5000 | J56: Open | P56: =VLOOKUP(D56,'MidCap Intra'!$B$11:$C$571,2,0) -> 3972.60 | R56: H
A57: 3 | B57: 2024-08-13 | D57: THERMAX | E57: Accu | F57: 4195-4325 | G57: 3970 | I57: 4800-5000 | J57: Open | P57: =VLOOKUP(D57,'MidCap Intra'!$B$11:$C$571,2,0) -> 4314.00
A60: CLBS = Closing Basis *** | F60: Reinitiated $
A61: Dividend adjusted <> | F61: Revised stoploss # | H61: .................
B64: Investment Idea
A65: Sr.no | B65: Date | D65: Company | E65: Rec | F65: Rec Price | G65: Point of Review | H65: Close Rate | I65: Target | J65: Remark | K65: Profit / Loss per Share | L65: Gain / Loss % | M65: Status | N65: Closed Date
A66: 1 | B66: 2013-11-01 | D66: L&T Finance Holding | E66: Accu | F66: 82.00 | G66: - | H66: 100 | I66: 100.00 | J66: Target Achieved | K66: =H66-F66 -> 18.00 | L66: =K66/F66 -> 21.95% | M66: Successful | N66: 2016-10-14
A67: 2 | B67: 2014-06-04 | D67: Finolex Inds | E67: Buy | F67: 257.00 | G67: - | H67: 300 | I67: 300.00 | J67: Target Achieved | K67: 43.00 | L67: 16.73% | M67: Successful | N67: 2014-07-02
A68: 3 | B68: 2014-07-08 | D68: JK Cement | E68: Buy | F68: 393.00 | G68: - | H68: 468 | I68: 468.00 | J68: Target Achieved | K68: 75.00 | L68: 19.08% | M68: Successful | N68: 2014-08-12
A69: 4 | B69: 2014-08-06 | D69: Finolex Cables | E69: Buy | F69: 205.00 | G69: - | H69: 275 | I69: 250.00 | J69: Target Achieved | K69: 70.00 | L69: 34.15% | M69: Successful | N69: 2014-11-19
A70: 5 | B70: 2014-09-04 | D70: Exide Inds | E70: Buy | F70: 162.00 | G70: - | H70: 190 | I70: 190.00 | J70: Target Achieved | K70: 28.00 | L70: 17.28% | M70: Successful | N70: 2015-01-02
A71: 6 | B71: 2014-09-04 | D71: Deepak Nitrite | E71: Buy | F71: 75.00 | G71: - | H71: 91.5 | I71: 95-100 | J71: Profit of Rs.16.50/- | K71: 16.50 | L71: 22.00% | M71: Successful | N71: 2014-11-11
A72: 7 | B72: 2014-10-01 | D72: Mercks | E72: Buy | F72: 850.00 | G72: - | H72: 982.5 | I72: 1050.00 | J72: Profit of Rs.132.50/- | K72: 132.50 | L72: 15.59% | M72: Successful | N72: 2015-02-04
A73: 8 | B73: 2014-10-01 | D73: Grindwell Norton | E73: Buy | F73: 475.00 | G73: - | H73: 515 | I73: 600.00 | J73: Profit of Rs.40/- | K73: 40.00 | L73: 8.42% | M73: Successful | N73: 2014-10-27
A74: 9 | B74: 2014-10-01 | D74: Snowman Logistics | E74: Buy | F74: 86.00 | G74: - | H74: 99 | I74: 140.00 | J74: Profit of Rs.13.00/- | K74: 13.00 | L74: 15.12% | M74: Successful | N74: 2014-10-27
A75: 10 | B75: 2014-10-14 | D75: Birla Corp | E75: Buy | F75: 496.60 | G75: - | H75: 621 | I75: 580.00 | J75: Target Achieved | K75: 124.40 | L75: 25.05% | M75: Successful | N75: 2016-08-23
A76: 11 | B76: 2014-10-14 | D76: Ultratech Cem | E76: Buy | F76: 2481.90 | G76: - | H76: 2840 | I76: 2870.00 | J76: Profit of Rs.358.10/- | K76: 358.10 | L76: 14.43% | M76: Successful | N76: 2015-01-13
A77: 12 | B77: 2014-10-16 | D77: Sintex Inds | E77: Buy | F77: 84.50 | G77: - | H77: 93 | I77: 110.00 | J77: Profit of Rs.8.50/- | K77: 8.50 | L77: 10.06% | M77: Successful | N77: 2014-10-27
A78: 13 | B78: 2014-10-16 | D78: HSIL | E78: Buy | F78: 401.00 | G78: - | H78: 428 | I78: 450.00 | J78: Profit of Rs.27.00/- | K78: 27.00 | L78: 6.73% | M78: Successful | N78: 2015-01-16
A79: 14 | B79: 2014-10-16 | D79: Eveready Inds | E79: Buy | F79: 101.00 | G79: - | H79: 112 | I79: 120.00 | J79: Profit of Rs.11.00/- | K79: 11.00 | L79: 10.89% | M79: Successful | N79: 2014-10-27
A80: 15 | B80: 2014-11-11 | D80: Pennar Inds | E80: Buy | F80: 59.00 | G80: - | H80: 76 | I80: 76.00 | J80: Target Achieved | K80: 17.00 | L80: 28.81% | M80: Successful | N80: 2017-10-24
A81: 16 | B81: 2014-11-11 | D81: Snowman Logistics | E81: Buy | F81: 99.00 | G81: - | H81: 120 | I81: 120.00 | J81: Profit of Rs.21/- | K81: 21.00 | L81: 21.21% | M81: Successful | N81: 2014-11-17
A82: 17 | B82: 2014-11-13 | D82: Dharamsi Morarji Chem | E82: Buy | F82: 22.00 | G82: - | H82: 33.55 | I82: 32.00 | J82: Profit of Rs 11.55/- | K82: 11.55 | L82: 52.50% | M82: Successful | N82: 2015-07-03
A83: 18 | B83: 2014-12-03 | D83: Tatachem | E83: Buy | F83: 440.00 | G83: - | H83: 520 | I83: 520.00 | J83: Profit of Rs 80.00/- | K83: 80.00 | L83: 18.18% | M83: Successful | N83: 2015-07-23
A84: 19 | B84: 2014-12-03 | D84: Advanta | E84: Buy | F84: 360.00 | G84: - | H84: 427 | I84: 425.00 | J84: Profit of Rs.67.00/- | K84: 67.00 | L84: 18.61% | M84: Successful | N84: 2015-02-23
A85: 20 | B85: 2015-01-08 | D85: GDL | E85: Buy | F85: 360.00 | G85: - | H85: 455 | I85: 420.00 | J85: Profit of Rs.95.00/- | K85: 95.00 | L85: 26.39% | M85: Successful | N85: 2015-01-20
A86: 21 | B86: 2015-01-08 | D86: NRB Bearing | E86: Buy | F86: 130.00 | H86: 175.5 | I86: 165.00 | J86: Profit of Rs 45.50/- | K86: 45.50 | L86: 35.00% | M86: Successful | N86: 2017-12-19
A87: 22 | B87: 2015-02-05 | D87: GSFC | E87: Accu | F87: 98.00 | H87: 120 | I87: 120.00 | J87: Target Achieved | K87: 22.00 | L87: 22.45% | M87: Successful | N87: 2017-01-18
A88: 23 | B88: 2015-02-05 | D88: Sundrmfast | E88: Accu | F88: 196.00 | H88: 262 | I88: 255.00 | J88: Target Achieved | K88: 66.00 | L88: 33.67% | M88: Successful | N88: 2016-08-17
A89: 24 | B89: 2015-03-04 | D89: GPPL | E89: Accu | F89: 235 | H89: 77.00 | I89: 280-285 | J89: Loss of Rs.158/- | K89: -158.00 | L89: -67.23% | M89: Unsuccessful | N89: 2019-02-26
A90: 25 | B90: 2015-03-04 | D90: ORIENTCEM | E90: Accu | F90: 185.00 | H90: 224 | I90: 220-225 | J90: Target Achieved | K90: 39.00 | L90: 21.08% | M90: Successful | N90: 2016-10-04
A91: 26 | B91: 2015-03-27 | D91: PFS | E91: Accu | F91: 49.5 | H91: 15.85 | I91: 67.00 | J91: Loss of Rs.33.65/- | K91: -33.65 | L91: -68% | M91: Unsuccessful | N91: 2019-06-11
A92: 27 | B92: 2015-03-30 | D92: Walchandnagar Ind Ltd | E92: Accu | F92: 183.50 | H92: 219 | I92: 218.00 | J92: Profit of Rs.35.50/- | K92: 35.50 | L92: 19.35% | M92: Successful | N92: 2015-04-09
A93: 28 | B93: 2015-04-20 | D93: Kalpataru Power Transmission Ltd | E93: Accu | F93: =(227+237)/2 -> 232.00 | H93: 298 | I93: 298.00 | J93: Target Achieved | K93: 66.00 | L93: 28.45% | M93: Successful | N93: 2017-03-29
A94: 29 | B94: 2015-05-04 | D94: Mastek Ltd | E94: Buy | F94: 385.00 | H94: =212.5+331 -> 543.5 | I94: 510.00 | J94: Profit of Rs 158.50/- | K94: 158.50 | L94: 41.17% | M94: Successful | N94: 2015-08-19
A95: 30 | B95: 2015-05-04 | D95: Suprajit Eng | E95: Buy | F95: 115.50 | H95: 146 | I95: 142.00 | J95: Profit of Rs 30.50/- | K95: 30.50 | L95: 26.41% | M95: Successful | N95: 2015-07-17
A96: 31 | B96: 2015-05-27 | D96: TCI | E96: Buy | F96: 237.50 | H96: 279.5 | I96: 278.00 | J96: Target Achieved | K96: 42.00 | L96: 17.68% | M96: Successful | N96: 2015-08-06
A97: 32 | B97: 2015-06-19 | D97: HSIL | E97: Accu | F97: 340.00 | H97: 448 | I97: 448.00 | J97: Target Achieved | K97: 108.00 | L97: 31.76% | M97: Successful | N97: 2017-10-10
A98: 33 | B98: 2015-07-06 | D98: Capital First | E98: Accu | F98: 390.00 | H98: 460 | I98: 460.00 | J98: Target Achieved | K98: =H98-F98 -> 70.00 | L98: =K98/F98 -> 17.95% | M98: Successful | N98: 2016-04-18
A99: 34 | B99: 2015-07-10 | D99: Dolphin OffShore | E99: Accu | F99: 122.5 | H99: 61.00 | I99: 172.00 | J99: Loss of Rs.61.50/- | K99: -61.50 | L99: -50.20% | M99: Unsuccessful | N99: 2018-08-21
A100: 35 | B100: 2015-08-03 | D100: Allcargo logistics | E100: Accu | F100: 297.50 | H100: 350 | I100: 360.00 | J100: Profit of Rs 52.50/- | K100: 52.50 | L100: 17.65% | M100: Successful | N100: 2015-08-16
A101: 36 | B101: 2015-08-03 | D101: Camline Fine | E101: Accu | F101: 115.50 | H101: 149 | I101: 140.00 | J101: Profit of Rs 33.50/- | K101: 33.50 | L101: 29.00% | M101: Successful | N101: 2017-01-05
A102: 37 | B102: 2015-09-04 | D102: TCI | E102: Accu | F102: 226.00 | H102: 292 | I102: 292.00 | J102: Target Achieved | K102: 66.00 | L102: 29.20% | M102: Successful | N102: 2015-10-09
A103: 38 | B103: 2015-09-07 | D103: Kalpataru Power Transmission Ltd | E103: Accu | F103: 232.50 | H103: 312.5 | I103: 310.00 | J103: Target Achieved | K103: 80.00 | L103: 34.41% | M103: Successful | N103: 2017-03-29
A104: 39 | B104: 2015-09-21 | D104: LLOYD ELECTRIC & ENG LTD | E104: Accu | F104: 196.50 | H104: 238 | I104: 238.00 | J104: Target Achieved | K104: 41.50 | L104: 21.12% | M104: Successful | N104: 2015-10-14
A105: 40 | B105: 2015-09-24 | D105: L&T Finance Holding | E105: Accu | F105: 65.00 | H105: 82 | I105: 82.00 | J105: Target Achieved | K105: 17.00 | L105: 26.15% | M105: Successful | N105: 2016-07-27
A106: 41 | B106: 2015-10-14 | D106: KEC International ltd | E106: Accu | F106: 144.00 | H106: 182.5 | I106: 181.00 | J106: Target Achieved | K106: 38.50 | L106: 26.74% | M106: Successful | N106: 2017-03-23
A107: 42 | B107: 2015-10-14 | D107: Gruh Finance | E107: Accu | F107: 264.00 | H107: 311 | I107: 311.00 | J107: Target Achieved | K107: 47.00 | L107: 17.80% | M107: Successful | N107: 2016-08-22
A108: 43 | B108: 2015-11-10 | D108: Pidilitind | E108: Buy | F108: 549.50 | H108: 630 | I108: 630.00 | J108: Target Achieved | K108: 80.50 | L108: 14.65% | M108: Successful | N108: 2016-02-19
A109: 44 | B109: 2015-12-04 | D109: Zensar Technology | E109: Accu | F109: 1027.50 | H109: 1315 | I109: 1250.00 | J109: Target Achieved | K109: 287.50 | L109: 27.98% | M109: Successful | N109: 2018-05-24
A110: 45 | B110: 2015-12-29 | D110: Vinati Organics Ltd | E110: Accu | F110: 465.00 | H110: 540 | I110: 540.00 | J110: Target Achieved | K110: 75.00 | L110: 16.13% | M110: Successful | N110: 2016-06-09
A111: 46 | B111: 2016-01-11 | D111: GSFC | E111: Buy | F111: 81.00 | H111: 110 | I111: 110.00 | J111: Target Achieved | K111: 29.00 | L111: 35.80% | M111: Successful | N111: 2017-01-10
A112: 47 | B112: 2016-01-13 | D112: SSWL | E112: Buy | F112: 417.50 | H112: 547 | I112: 535.00 | J112: Target Achieved | K112: 129.50 | L112: 31.02% | M112: Successful | N112: 2016-07-27
A113: 48 | B113: 2016-02-08 | D113: Persistent System Ltd | E113: Accu | F113: 650.00 | H113: 800 | I113: 800.00 | J113: Target Achieved | K113: 150.00 | L113: 23.08% | M113: Successful | N113: 2018-02-23
A114: 49 | B114: 2016-03-04 | D114: UPL | E114: Accu | F114: 437.50 | H114: 504.5 | I114: 522.00 | J114: Profit of Rs.67/- | K114: 67.00 | L114: 15.31% | M114: Successful | N114: 2016-04-20
A115: 50 | B115: 2016-03-09 | D115: Ashoka Buildcon Ltd | E115: Accu | F115: 189.50 | H115: 218 | I115: 218.00 | J115: Target Achieved | K115: 28.50 | L115: 15.04% | M115: Successful | N115: 2017-10-26
A116: 51 | B116: 2016-04-11 | D116: PTC INDIA FIN SERV LTD | E116: Accu | F116: 36.5 | H116: 15.85 | I116: 60.00 | J116: Loss of Rs.20.65/- | K116: -20.65 | L116: -56.58% | M116: Unsuccessful | N116: 2019-06-11
A117: 52 | B117: 2016-04-12 | D117: CAMLINFINE $ | E117: Accu | F117: 93.00 | H117: 149 | I117: 140.00 | J117: Profit of Rs 56/- | K117: 56.00 | L117: 60.22% | M117: Successful | N117: 2017-01-05
A118: 53 | B118: 2016-04-12 | D118: Greaves Cotton Ltd. | E118: Accu | F118: 130.00 | H118: 150 | I118: 150-155 | J118: Target Achieved | K118: 20.00 | L118: 15.38% | M118: Successful | N118: 2016-07-13
A119: 54 | B119: 2016-04-13 | D119: DHFL | E119: Accu | F119: 196.00 | H119: 299 | I119: 299.00 | J119: Target Achieved | K119: 103.00 | L119: 52.55% | M119: Successful | N119: 2016-09-07
A120: 55 | B120: 2016-04-13 | D120: Magma | E120: Accu | F120: 88.00 | H120: 103 | I120: 103.00 | J120: Target Achieved | K120: 15.00 | L120: 17.05% | M120: Successful | N120: 2016-06-09
A121: 56 | B121: 2016-05-02 | D121: KEC International ltd $ | E121: Accu | F121: 127.50 | H121: 148 | I121: 148-150 | J121: Target Achieved | K121: =H121-F121 -> 20.50 | L121: =K121/F121 -> 16.08% | M121: Successful | N121: 2016-07-13
A122: 57 | B122: 2016-05-03 | D122: Mindtree | E122: Accu | F122: 675.00 | H122: 815 | I122: 790-800 | J122: Target Achieved | K122: =H122-F122 -> 140.00 | L122: =K122/F122 -> 20.74% | M122: Successful | N122: 2018-02-23
A123: 58 | B123: 2016-06-01 | D123: Atulauto | E123: Accu | F123: 500 | H123: 232.50 | I123: 565-570 | J123: Loss of Rs.267.50 /- | K123: =H123-F123 -> -267.50 | L123: =K123/F123 -> -53.50% | M123: Unsuccessful | N123: 2019-09-27
A124: 59 | B124: 2016-06-06 | D124: TRITURBINE | E124: Accu | F124: 110.00 | H124: 126.5 | I124: 125.00 | J124: Profit of Rs.16.50/- | K124: =H124-F124 -> 16.50 | L124: =K124/F124 -> 15.00% | M124: Successful | N124: 2016-07-01
A125: 60 | B125: 2016-06-17 | D125: Pennar Industries Ltd | E125: Accu | F125: 44.00 | H125: 69.5 | I125: 69.50 | J125: Profit of Rs.25.50/- | K125: =H125-F125 -> 25.50 | L125: =K125/F125 -> 57.95% | M125: Successful | N125: 2017-08-30
A126: 61 | B126: 2016-06-28 | D126: EVEREADY | E126: Accu | F126: 262.50 | H126: 340 | I126: 333.00 | J126: Profit of Rs.77.50/- | K126: 77.50 | L126: 29.52% | M126: Successful | N126: 2017-10-09
A127: 62 | B127: 2016-06-28 | D127: FIEMIND | E127: Accu | F127: 840.00 | H127: 1230 | I127: 1230.00 | J127: Target Achieved | K127: 390.00 | L127: 46.43% | M127: Successful | N127: 2016-10-06
A128: 63 | B128: 2016-07-05 | D128: Bajaj Corp Ltd | E128: Accu | F128: 395 | H128: =(468.5+342.5)/2 -> 405.50 | I128: 510.00 | J128: Profit of Rs.10.50/- | K128: =H128-F128 -> 10.50 | L128: =K128/F128 -> 3% | M128: Neutral | N128: 2019-05-21
A129: 64 | B129: 2016-08-02 | D129: GPPL $ | E129: Buy | F129: =169.5-12.8 -> 156.7 | H129: 77.00 | I129: 198-200 | J129: Loss of Rs.79.7/- | K129: -79.70 | L129: -50.86% | M129: Unsuccessful | N129: 2019-02-26
A130: 65 | B130: 2016-08-04 | D130: WONDERLA HOLIDAYS LTD | E130: Accu | F130: 400 | H130: 305.00 | I130: 475.00 | J130: Loss of Rs.95/- | K130: -95.00 | L130: -23.75% | M130: Unsuccessful | N130: 2019-05-21
A131: 66 | B131: 2016-08-11 | D131: CAMLINFINE | E131: Accu | F131: 86.50 | H131: 130 | I131: 130.00 | J131: Profit of Rs.43.50/- | K131: 43.50 | L131: 50.29% | M131: Successful | N131: 2017-12-22
A132: 67 | B132: 2016-08-18 | D132: GRANULES | E132: Accu | F132: 133.5 | H132: 126.50 | I132: 178.00 | J132: Exit | K132: -7.00 | L132: -5.24% | M132: Unsuccessful | N132: 2016-09-02
A133: 68 | B133: 2016-08-31 | D133: VA TECH WABAG | E133: Accu | F133: 560.00 | H133: 725 | I133: 725.00 | J133: Target Achieved | K133: 165.00 | L133: 29.46% | M133: Successful | N133: 2016-03-27
A134: 69 | B134: 2016-09-01 | D134: SKIPPER LIMITED | E134: Accu | F134: 160.50 | H134: 210 | I134: 210.00 | J134: Target Achieved | K134: 49.50 | L134: 30.84% | M134: Successful | N134: 2017-05-16
A135: 70 | B135: 2016-10-03 | D135: IFBIND | E135: Accu | F135: 430.00 | H135: 596 | I135: 575.00 | J135: Profit of Rs.166/- | K135: 166.00 | L135: 38.60% | M135: Successful | N135: 2017-02-03
A136: 71 | B136: 2016-10-14 | D136: ASIANTILES | E136: Accu | F136: 280.00 | H136: 345 | I136: 345.00 | J136: Target Achieved | K136: =H136-F136 -> 65.00 | L136: =K136/F136 -> 23.21% | M136: Successful | N136: 2017-03-20
A137: 72 | B137: 2016-10-14 | D137: DEEPIND | E137: Accu | F137: 245.00 | H137: 325.5 | I137: 330.00 | J137: Profit of Rs.80.5/- | K137: 80.50 | L137: =K137/F137 -> 32.86% | M137: Successful | N137: 2017-02-03
A138: 73 | B138: 2016-10-17 | D138: DCBBANK | E138: Accu | F138: 125.00 | H138: 160 | I138: 160.00 | J138: Target Achieved | K138: 35.00 | L138: 28.00% | M138: Successful | N138: 2017-03-09
A139: 74 | B139: 2016-10-17 | D139: ORIENTREF | E139: Accu | F139: 114.00 | H139: 145 | I139: 145.00 | J139: Target Achieved | K139: 31.00 | L139: =K139/F139 -> 27.19% | M139: Successful | N139: 2017-05-04
A140: 75 | B140: 2016-10-17 | D140: GANECOS | E140: Accu | F140: 212.00 | H140: 280 | I140: 276.00 | J140: Profit of Rs.68/- | K140: 68.00 | L140: =K140/F140 -> 32.08% | M140: Successful | N140: 2017-05-03
A141: 76 | B141: 2016-11-04 | D141: NBCC | E141: Accu | F141: 155.00 | H141: 210 | I141: 210.00 | J141: Profit of Rs.55/- | K141: 55.00 | L141: =K141/F141 -> 35.48% | M141: Successful | N141: 2017-07-28
A142: 77 | B142: 2016-12-06 | D142: PRECAM | E142: Accu | F142: 150.5 | H142: 72.50 | I142: 174.00 | J142: Loss of Rs.78/- | K142: -78.00 | L142: -51.83% | M142: Unsuccessful | N142: 2018-08-21
A143: 78 | B143: 2016-12-08 | D143: INFRATEL | E143: Accu | F143: 380.00 | H143: 478 | I143: 468.00 | J143: Target Achieved | K143: =H143-F143 -> 98.00 | L143: =K143/F143 -> 25.79% | M143: Successful | N143: 2017-10-17
A144: 79 | B144: 2016-12-30 | D144: GODREJPROP | E144: Accu | F144: 305.00 | H144: 375 | I144: 375.00 | J144: Target Achieved | K144: =H144-F144 -> 70.00 | L144: =K144/F144 -> 22.95% | M144: Successful | N144: 2017-02-02
A145: 80 | B145: 2017-01-04 | D145: DEEPAKNTR | E145: Accu | F145: 99.50 | H145: 158 | I145: 158.00 | J145: Target Achieved | K145: =H145-F145 -> 58.50 | L145: =K145/F145 -> 58.79% | M145: Successful | N145: 2017-06-12
A146: 81 | B146: 2017-01-04 | D146: DEEPAKNTR | E146: Accu | F146: 99.50 | H146: 158 | I146: 158.00 | J146: Target Achieved | K146: 58.50 | L146: 58.79% | M146: Successful | N146: 2017-06-12
A147: 82 | B147: 2017-02-20 | D147: RECLTD | E147: Accu | F147: 140.50 | H147: 220 | I147: 220.00 | J147: Target Achieved | K147: =H147-F147 -> 79.50 | L147: =K147/F147 -> 56.58% | M147: Successful | N147: 2017-05-09
A148: 83 | B148: 2017-02-20 | D148: SUBROS | E148: Accu | F148: 202.50 | H148: 234 | I148: 234.00 | J148: Target Achieved | K148: 31.50 | L148: 15.56% | M148: Successful | N148: 2017-04-11
A149: 84 | B149: 2017-03-24 | D149: VRLLOG | E149: Accu | F149: 300.50 | H149: 417.5 | I149: 420.00 | J149: Profit of Rs.117/- | K149: =H149-F149 -> 117.00 | L149: =K149/F149 -> 38.94% | M149: Successful | N149: 2017-12-01
A150: 85 | B150: 2017-03-24 | D150: FIEMIND | E150: Accu | F150: 850.00 | H150: 1042.5 | I150: 1023.00 | J150: Profit of Rs 192.50/- | K150: 192.50 | L150: 22.65% | M150: Successful | N150: 2017-04-05
A151: 86 | B151: 2017-04-05 | D151: RATNAMANI | E151: Accu | F151: 785.00 | H151: 930 | I151: 920.00 | J151: Profit of Rs.145/- | K151: =H151-F151 -> 145.00 | L151: =K151/F151 -> 18.47% | M151: Successful | N151: 2017-08-29
A152: 87 | B152: 2017-04-06 | D152: ZEEMEDIA | E152: Accu | F152: 40 | H152: 13.10 | I152: 60.00 | J152: Loss of Rs.26.9/- | K152: -26.90 | L152: -67.25% | M152: Unsuccessful | N152: 2018-02-07
A153: 88 | B153: 2017-04-12 | D153: DABUR | E153: Accu | F153: 289.50 | H153: 354 | I153: 360.00 | J153: Profit of Rs.64.5/- | K153: =H153-F153 -> 64.50 | L153: =K153/F153 -> 22.28% | M153: Successful | N153: 2017-11-01
A154: 89 | B154: 2017-04-20 | D154: KPRMILL | E154: Accu | F154: 700.00 | H154: 840 | I154: 840.00 | J154: Profit of Rs.140/- | K154: 140.00 | L154: 20.00% | M154: Successful | N154: 2017-06-07
A155: 90 | B155: 2017-06-01 | D155: ESSELPACK | E155: Accu | F155: 130.00 | H155: 144.25 | I155: 170.00 | J155: Profit of Rs.14.25/- | K155: 14.25 | L155: 10.96% | M155: Successful | N155: 2019-07-29
A156: 91 | B156: 2017-06-15 | D156: KEI | E156: Accu | F156: 214.50 | H156: 262 | I156: 262.00 | J156: Profit of Rs.47.5/- | K156: 47.50 | L156: 22.14% | M156: Successful | N156: 2017-08-30
A157: 92 | B157: 2017-07-17 | D157: MAYURUNIQ | E157: Accu | F157: 370.00 | H157: 447.5 | I157: 450.00 | J157: Target Achieved | K157: 77.50 | L157: 20.95% | M157: Successful | N157: 2017-10-27
A158: 93 | B158: 2017-07-27 | D158: RAMCOCEM | E158: Accu | F158: 657.50 | H158: 825 | I158: 820.00 | J158: Target Achieved | K158: 167.50 | L158: 25.48% | M158: Successful | N158: 2017-12-21
A159: 94 | B159: 2017-08-17 | D159: FINPIPE | E159: Accu | F159: 605.00 | H159: 750 | I159: 750.00 | J159: Profit of Rs.145/- | K159: 145.00 | L159: 23.97% | M159: Successful | N159: 2017-10-19
A160: 95 | B160: 2017-09-01 | D160: SHK | E160: Accu | F160: 255 | H160: 217.25 | I160: 320.00 | J160: Loss of Rs.37.75/- | K160: -37.75 | L160: -15% | M160: Unsuccessful | N160: 2019-07-15
A161: 96 | B161: 2017-09-19 | D161: SKIPPER | E161: Accu | F161: 215.00 | H161: 258 | I161: 258.00 | J161: Target Achieved | K161: 43.00 | L161: 20.00% | M161: Successful | N161: 2017-11-01
A162: 97 | B162: 2017-09-19 | D162: SKIPPER | E162: Accu | F162: 215.00 | H162: 258 | I162: 258.00 | J162: Target Achieved | K162: 43.00 | L162: 20.00% | M162: Successful | N162: 2017-11-01
A163: 98 | B163: 2017-09-20 | D163: CAMLINFINE$ | E163: Accu | F163: 75.00 | H163: 90 | I163: 90.00 | J163: Profit of Rs.15.00/- | K163: =H163-F163 -> 15.00 | L163: =K163/F163 -> 20.00% | M163: Successful | N163: 2017-10-11
A164: 99 | B164: 2017-10-03 | D164: GNA | E164: Accu | F164: 315.00 | H164: 392 | I164: 384.00 | J164: Profit of Rs.77/- | K164: 77.00 | L164: 24.44% | M164: Successful | N164: 2017-10-09
A165: 100 | B165: 2017-10-05 | D165: NOCIL | E165: Accu | F165: 145.00 | H165: 179 | I165: 180.00 | J165: Profit of Rs.34/- | K165: 34.00 | L165: 23.45% | M165: Successful | N165: 2017-10-17
A166: 101 | B166: 2017-10-06 | D166: CENTURYPLY | E166: Accu | F166: 256.00 | H166: 323 | I166: 320.00 | J166: Target Achieved | K166: 67.00 | L166: 26.17% | M166: Successful | N166: 2017-11-28
A167: 102 | B167: 2017-10-09 | D167: EIHOTEL | E167: Accu | F167: 137.50 | H167: 184 | I167: 183.00 | J167: Profit of Rs.46.5/- | K167: 46.50 | L167: 33.82% | M167: Successful | N167: 2018-01-08
A168: 103 | B168: 2017-10-10 | D168: NRBBEARING | E168: Accu | F168: 125.50 | H168: 158 | I168: 155.00 | J168: Profit of Rs.32.5/- | K168: 32.50 | L168: 25.90% | M168: Successful | N168: 2017-11-28
A169: 104 | B169: 2017-10-10 | D169: BOROSIL | E169: Accu | F169: 895.00 | H169: 1122.5 | I169: 1078.00 | J169: Profit of Rs.227.5/- | K169: 227.50 | L169: 25.42% | M169: Successful | N169: 2018-01-17
A170: 105 | B170: 2017-10-12 | D170: CYIENT | E170: Accu | F170: 525.00 | H170: 629 | I170: 629.00 | J170: Target Achieved | K170: 104.00 | L170: 19.81% | M170: Successful | N170: 2018-01-19
A171: 106 | B171: 2017-11-07 | D171: HATSUN | E171: Accu | F171: 740.00 | H171: 892.5 | I171: 900.00 | J171: Profit of Rs.152.5/- | K171: =H171-F171 -> 152.50 | L171: =K171/F171 -> 20.61% | M171: Successful | N171: 2017-11-13
A172: 107 | B172: 2017-12-04 | D172: SANGHIIND | E172: Accu | F172: 118.50 | H172: 143.5 | I172: 145.00 | J172: Profit of Rs.25/- | K172: =H172-F172 -> 25.00 | L172: =K172/F172 -> 21.10% | M172: Successful | N172: 2017-12-28
A173: 108 | B173: 2017-12-21 | D173: KAJARIACER | E173: Accu | F173: 715 | H173: 500.00 | I173: 872.00 | J173: Loss of Rs.215/- | K173: =H173-F173 -> -215.00 | L173: =K173/F173 -> -30.07% | M173: Unsuccessful | N173: 2019-07-24
A174: 109 | B174: 2017-12-29 | D174: GNA | E174: Accu | F174: 435.00 | H174: 542.5 | I174: 539.00 | J174: Target Achieved | K174: 107.50 | L174: 24.71% | M174: Successful | N174: 2018-04-16
A175: 110 | B175: 2017-12-29 | D175: ZENSARTECH | E175: Accu | F175: 885.00 | H175: 1090 | I175: 1084.00 | J175: Target Achieved | K175: 205.00 | L175: 23.16% | M175: Successful | N175: 2018-04-23
A176: 111 | B176: 2018-04-02 | D176: EVERESTIND | E176: Accu | F176: 478.50 | H176: 442 | I176: 613.00 | J176: Loss of Rs.36.50 /- | K176: =H176-F176 -> -36.50 | L176: =K176/F176 -> -7.63% | M176: Unsuccessful | N176: 2019-10-24
A177: 112 | B177: 2018-04-04 | D177: GPPL$ | E177: Accu | F177: =141.5-7.3 -> 134.2 | H177: 77.00 | I177: 180.00 | J177: Loss of Rs.57.2/- | K177: =H177-F177 -> -57.20 | L177: =K177/F177 -> -42.62% | M177: Unsuccessful | N177: 2019-02-26
A178: 113 | B178: 2018-04-19 | D178: MANPASAND | E178: Accu | F178: 430 | H178: 220.00 | I178: 537.00 | J178: Loss of Rs.210/- | K178: =H178-F178 -> -210.00 | L178: =K178/F178 -> -48.84% | M178: Unsuccessful | N178: 2018-06-01
A179: 114 | B179: 2018-04-30 | D179: HEIDELBERG | E179: Accu | F179: 153.5 | H179: 196 | I179: 196.00 | J179: Profit of Rs.42.50/- | K179: =H179-F179 -> 42.50 | L179: =K179/F179 -> 27.69% | M179: Successful | N179: 2019-05-20
A180: 115 | B180: 2018-07-25 | D180: ZEEMEDIA | E180: Accu | F180: 27.5 | H180: 13.10 | I180: 60.00 | J180: Loss of Rs.14.40/- | K180: -14.40 | L180: -52.36% | M180: Unsuccessful | N180: 2018-02-07
A181: 116 | B181: 2018-08-06 | D181: GABRIEL | E181: Accu | F181: 148.5 | H181: 102 | I181: 182.00 | J181: Loss of Rs.46.50/- | K181: =H181-F181 -> -46.50 | L181: =K181/F181 -> -31.31% | M181: Unsuccessful | N181: 2019-07-15
A182: 117 | B182: 2018-08-23 | D182: INDIANHUME | E182: Accu | F182: 285 | H182: 355 | I182: 364.00 | J182: Profit of Rs.70/- | K182: 70.00 | L182: 24.56% | M182: Successful | N182: 2018-12-21
A183: 118 | B183: 2018-08-29 | D183: GRINDWELL | E183: Accu | F183: 525 | H183: 585 | I183: 635.00 | J183: Profit of Rs.60- | K183: =H183-F183 -> 60.00 | L183: =K183/F183 -> 11.43% | M183: Successful | N183: 2019-07-16
A184: 119 | B184: 2018-10-22 | D184: FINPIPE | E184: Accu | F184: 475 | H184: 574 | I184: 570.00 | J184: Target Achieved | K184: 99.00 | L184: 20.84% | M184: Successful | N184: 2018-10-30
A185: 120 | B185: 2018-10-24 | D185: GULFOILLUB | E185: Accu | F185: 707.5 | H185: 872 | I185: 872.00 | J185: Target Achieved | K185: 164.50 | L185: 23.25% | M185: Successful | N185: 2019-01-17
A186: 121 | B186: 2018-10-25 | D186: DBCORP | E186: Accu | F186: 162 | H186: 204 | I186: 209.00 | J186: Profit of Rs.42/- | K186: 42.00 | L186: 25.93% | M186: Successful | N186: 2019-03-15
A187: 122 | B187: 2018-10-26 | D187: RITES | E187: Accu | F187: 240 | H187: 297 | I187: 297.00 | J187: Target Achieved | K187: 57.00 | L187: 23.75% | M187: Successful | N187: 2018-11-13
A188: 123 | B188: 2018-12-05 | D188: BRIGADE | E188: Accu | F188: 202.5 | H188: 255 | I188: 252.00 | J188: Target Achieved | K188: 52.50 | L188: 25.93% | M188: Successful | N188: 2019-03-18
A189: 124 | B189: 2018-12-31 | D189: JKCEMENT | E189: Accu | F189: 710 | H189: 866 | I189: 866.00 | J189: Target Achieved | K189: 156.00 | L189: 21.97% | M189: Successful | N189: 2019-03-29
A190: 125 | B190: 2019-02-26 | D190: MARICO | E190: Accu | F190: 337.25 | H190: 398.5 | I190: 411.00 | J190: Profit of Rs.61.25/- | K190: 61.25 | L190: 18.16% | M190: Successful | N190: 2019-10-22
A191: 126 | B191: 2019-04-04 | D191: ITDCEM | E191: Accu | F191: 130 | H191: 65 | I191: 158.00 | J191: Loss of Rs.65 /- | K191: -65.00 | L191: -50.00% | M191: Unsuccessful | N191: 2019-09-18
A192: 127 | B192: 2017-10-09 | D192: RECLTD | E192: Accu | F192: 141.5 | H192: 183.5 | I192: 210.00 | J192: Profit of Rs.42/- | K192: 42.00 | L192: 29.68% | M192: Successful | N192: 2017-11-03
A193: 128 | B193: 2017-12-05 | D193: ALLCARGO | E193: Accu | F193: 172.00 | H193: 155.25 | I193: 230.00 | J193: Loss of Rs.16.75/- | K193: -16.75 | L193: -9.74% | M193: Unsuccessful | N193: 2019-11-18
A194: 129 | B194: 2018-10-25 | D194: GODREJCP | E194: Accu | F194: 698.5 | H194: 890 | I194: 890.00 | J194: Profit of Rs.191.50/- | K194: 191.50 | L194: 27.42% | M194: Successful | N194: 2021-05-12
A195: 130 | B195: 2017-05-22 | D195: GREAVESCOT | E195: Accu | F195: 127.6 | H195: 138 | I195: 190.00 | J195: Profit of Rs.10.40 | K195: 10.40 | L195: 8.15% | M195: Successful | N195: 2019-11-05
A196: 131 | B196: 2018-02-27 | D196: MOLDTKPAC | E196: Accu | F196: 317 | H196: 382.5 | I196: 398.00 | J196: Profit of Rs.65.5 | K196: 65.50 | L196: 20.66% | M196: Successful | N196: 2021-02-11
A197: 132 | B197: 2018-03-05 | D197: LICHSGFIN | E197: Accu | F197: =510-14.4 -> 495.60 | H197: 350 | I197: 672.00 | J197: Loss of Rs.145.60/- | K197: -145.60 | L197: -29.38% | M197: Unsuccessful | N197: 2020-02-26
A198: 133 | B198: 2018-05-17 | D198: PHILIPCARB | E198: Accu | F198: 230.30 | H198: 102.5 | I198: 348.00 | J198: Loss of Rs.127.80/- | K198: -127.80 | L198: -55.49% | M198: Unsuccessful | N198: 2020-03-06
A199: 134 | B199: 2018-06-07 | D199: KEC | E199: Accu | F199: =342.5-5.1 -> 337.4 | H199: 412.5 | I199: 439.00 | J199: Profit of Rs.75.10 | K199: 75.10 | L199: 22.26% | M199: Successful | N199: 2021-02-03
A200: 135 | B200: 2018-07-04 | D200: ASHOKLEY | E200: Accu | F200: =127.5-5.53 -> 121.97 | H200: 122.50 | I200: 170.00 | J200: Profit of Rs.0.53/- | K200: 0.53 | L200: 0% | M200: Neutral | N200: 2021-08-23 | R200: V
A201: 136 | B201: 2018-07-13 | D201: FCONSUMER | E201: Accu | F201: 46.50 | H201: 17 | I201: 59.00 | J201: Loss of Rs.29.50/- | K201: -29.50 | L201: -63.44% | M201: Unsuccessful | N201: 2020-02-26 | R201: V
A202: 137 | B202: 2018-10-23 | D202: JKPAPER | E202: Accu | F202: 156.5 | H202: 207.5 | I202: 191.00 | J202: Target Achieved | K202: 51.00 | L202: 32.59% | M202: Successful | N202: 2021-06-22 | R202: V
A203: 138 | B203: 2018-12-05 | D203: CCL | E203: Accu | F203: 259.5 | H203: 320 | I203: 320.00 | J203: Target Achieved | K203: 60.50 | L203: 23.31% | M203: Successful | N203: 2021-05-07 | R203: K
A204: 139 | B204: 2018-12-05 | D204: VARROC | E204: Accu | F204: 715 | H204: 445 | I204: 840.00 | J204: Loss of Rs.270/- | K204: -270.00 | L204: -37.76% | M204: Unsuccessful | N204: 2019-12-01 | R204: K
A205: 140 | B205: 2019-01-04 | D205: MGL | E205: Accu | F205: 875 | H205: 1165 | I205: 1185.00 | J205: Profit of Rs.290/- | K205: 290.00 | L205: 33.14% | M205: Successful | N205: 2020-01-17 | R205: K
A206: 141 | B206: 2019-04-04 | D206: COCHINSHIP | E206: Accu | F206: =387-14.63 -> 372.37 | H206: 490 | I206: 490.00 | J206: Target Achieved | K206: 117.63 | L206: 31.59% | M206: Successful | N206: 2020-01-20 | R206: V
A207: 142 | B207: 2019-04-23 | D207: MAHINDCIE | E207: Buy | F207: 220 | H207: 127.5 | I207: 284.00 | J207: Loss of Rs.92.50/- | K207: -92.50 | L207: -42.05% | M207: Unsuccessful | N207: 2020-03-06 | R207: K
A208: 143 | B208: 2019-06-06 | D208: RADICO | E208: Buy | F208: 332.8 | H208: 405 | I208: 419.00 | J208: Profit of Rs.72.20/- | K208: 72.20 | L208: 21.69% | M208: Successful | N208: 2020-01-30 | R208: K
A209: 144 | B209: 2019-06-25 | D209: M&MFIN | E209: Accu | F209: 386 | H209: 395.00 | I209: 452.00 | J209: Profit of Rs.9/- | K209: 9.00 | L209: 2% | M209: Neutral | N209: 2020-02-07 | R209: V
A210: 145 | B210: 2019-08-30 | D210: INDHOTEL | E210: Accu | F210: 137.5 | H210: 138.50 | I210: 190.00 | J210: Profit of Rs.1/- | K210: 1.00 | L210: 1% | M210: Neutral | N210: 2021-08-24 | R210: V
A211: 146 | B211: 2019-09-23 | D211: KNRCON | E211: Accu | F211: 235 | H211: 295 | I211: 296.00 | J211: Profit of Rs.60/- | K211: 60.00 | L211: 25.53% | M211: Successful | N211: 2020-01-14 | R211: K
A212: 147 | B212: 2019-10-14 | D212: KEC$ | E212: Accu | F212: 277.5 | H212: 333 | I212: 333.00 | J212: Profit of Rs.55.50/- | K212: 55.50 | L212: 20.00% | M212: Successful | N212: 2020-01-16 | R212: V
A213: 148 | B213: 2019-10-14 | D213: MGL$ | E213: Accu | F213: 930 | H213: 1165 | I213: 1200.00 | J213: Profit of Rs.235/- | K213: 235.00 | L213: 25.27% | M213: Successful | N213: 2020-01-17 | R213: V
A214: 149 | B214: 2019-10-15 | D214: JKPAPER$ | E214: Accu | F214: 111.00 | H214: 141 | I214: 141.00 | J214: Profit of Rs.30/- | K214: 30.00 | L214: 27.03% | M214: Successful | N214: 2021-05-12 | R214: V
A215: 150 | B215: 2019-10-15 | D215: RADICO$ | E215: Accu | F215: 296.00 | H215: 370 | I215: 370.00 | J215: Target Achieved | K215: =H215-F215 -> 74.00 | L215: =K215/F215 -> 25.00% | M215: Successful | N215: 2020-01-23 | R215: V
A216: 151 | B216: 2019-10-16 | D216: MOLDTKPAC$ | E216: Accu | F216: 300.00 | H216: 382.5 | I216: 344.00 | J216: Profit of Rs.82.5/- | K216: 82.50 | L216: 27.50% | M216: Successful | N216: 2021-02-11 | R216: V
A217: 152 | B217: 2020-01-02 | D217: PSPPROJECT | E217: Accu | F217: 495.00 | H217: 595 | I217: 590.00 | J217: Profit of Rs.100/- | K217: 100.00 | L217: 20.20% | M217: Successful | N217: 2022-01-28 | R217: V
A218: 153 | B218: 2020-05-15 | D218: BEL | E218: Accu | F218: 67.50 | H218: 86 | I218: 86.00 | J218: Profit of Rs.18.50/- | K218: 18.50 | L218: 27.41% | M218: Successful | N218: 2020-06-26 | R218: V
... 73 more rows

Sheet Call Tracker (F&O)
A2: Master Trade High Risk
A3: Sr.no | B3: Date | D3: Company | E3: Rec | F3: Rec Price | G3: Stop Loss | H3: Call Closed At | I3: Target | J3: Remark | K3: Profit / Loss per share | L3: All charges | M3: Gain / Loss per Lot | N3: Lot | O3: Status | P3: Closed Date
A4: 1 | B4: 2024-08-19 | D4: ICICIBANK 29AUG FUT | E4: BUY | F4: 1180 | G4: 1158 | I4: 1220 | J4: Open
A8: Master Trade Medium Risk
A9: Sr.no | B9: Date | D9: Company | E9: Rec | F9: Rec Price | G9: Stop Loss | H9: Call Closed At | I9: Target | J9: Remark | K9: Profit/ Loss per lot | L9: All charges | M9: Gain / Loss per Lot | N9: Lot | O9: Status | P9: Closed Date
A10: 1 | B10: 2024-08-09 | D10: BANKNIFTY 50800 CE 14 AUG | E10: Buy | F10: 285 | G10: 180 | H10: 202.5 | I10: 280-290 | J10: Loss of Rs.82.5/- | K10: =H10-F10 -> -82.5 | L10: 50.00 | M10: =(K10*N10)-L10 -> -1287.5 | N10: 15 | O10: Unsuccessful | P10: 2024-08-09
A11: 2 | B11: 2024-08-13 | D11: BANKNIFTY 50200 PE 14 AUG | E11: Buy | F11: 175 | G11: 100 | H11: 265 | I11: 280 | J11: Profit of Rs.90/- | K11: =H11-F11 -> 90 | L11: 50.00 | M11: 1300.0 | N11: 15 | O11: Successful | P11: 2024-08-13
A12: 3 | B12: 2024-08-14 | D12: BANKNIFTY 49800 PE 14 AUG | E12: Buy | F12: 92.5 | G12: 45 | H12: 70 | I12: 265 | J12: Loss of Rs.22.5/- | K12: =H12-F12 -> -22.5 | L12: 50.00 | M12: -387.5 | N12: 15 | O12: Unsuccessful | P12: 2024-08-14
A13: 4 | B13: 2024-08-16 | D13: BANKNIFTY 50200 CE 21 AUG | E13: BUY | F13: 245 | H13: 322.5 | J13: Profit of Rs.45/- | K13: =H13-F13 -> 77.5 | L13: 51.00 | M13: 572.0 | N13: 15 | O13: Successful | P13: 2024-08-16
D14: BANKNIFTY 50600 CE 21 AUG | E14: SELL | F14: 120 | H14: 152.5 | K14: =F14-H14 -> -32.5 | L14: 52.00
